Workbook

Sheet Data Summary
A1: Report Name
A2: Table 1 : SEBI Registered Market Intermediaries/Market Infrastructure Institutions
A3: Table 2 : Company-wise Capital Raised through Public and Rights Issues (Equity) during the month
A4: Table 3 : Open Offers Closed under SAST Regulations (during the month)
A5: Table 4 : Substantial Acquisition of Shares and Takeovers
A6: Table 5 : Capital Raised from the Primary Market through Public and Rights Issues
A7: Table 6 : Issues Listed on SME Platform
A8: Table 7 : Industry-wise Classification of Capital Raised through Public and Rights Issues (Equity)
A9: Table 8 : Sector-wise and Region-wise Distribution of Capital Mobilised through Public and Rights Issues (Equity)
A10: Table 9 : Size-wise Classification of Capital Raised through Public and Rights Issues (Equity)
A11: Table 10 : Capital Raised by Listed Companies from the Primary Market through QIPs
A12: Table 11 : Preferential Allotments Listed at Stock Exchanges
A13: Table 12 : Private Placement of Corporate Debt Reported to Stock Exchanges
A14: Table 13 : Trading in the Corporate Debt Market
A15: Table 14 : Ratings Assigned for Long-term Corporate Debt Securities (Maturity ≥ 1 year)
A16: Table 15 : Review of Accepted Ratings of Corporate Debt Securities (Maturity ≥ 1 year)
A17: Table 16 : Distribution of Turnover on Cash Segments of Stock Exchanges (₹crore)
A18: Table 17 : Trends in Cash Segment of BSE
A19: Table 18 : Trends in Cash Segment of NSE
A20: Table 19 : Trends in Cash Segment of MSEI
A21: Table 20 : City-wise Distribution of Turnover on Cash Segment of Exchanges
A22: Table 21 : Category-wise Share of Turnover in Cash Segment of BSE
A23: Table 22 : Category-wise Share of Turnover in Cash Segment of NSE
A24: Table 23 : Category-wise Share of Turnover in Cash Segment of MSEI
A25: Table 24 : Component Stocks: S&P BSE Sensex during September 2020
A26: Table 25 : Component Stocks: Nifty 50 Index during September 2020
A27: Table 26 : Component Stocks: SX40 Index during September 2020
A28: Table 27 : Advances/Declines in Cash Segment of Exchanges
A29: Table 28 : Trading Frequency in Cash Segment of of Exchanges
A30: Table 29 : Daily Volatility of Major Indices
A31: Table 30 : Percentage Share of Top ‘N’ Securities/Members in Turnover of Cash Segment of Exchanges
A32: Table 31 : Settlement Statistics for Cash Segment of ICCL
A33: Table 32 : Settlement Statistics for Cash Segment of NSCCL
A34: Table 33 : Settlement Statistics for Cash Segment of MCCIL
A35: Table 34 : Trends in Equity Derivatives Segment at BSE (Turnover in Notional Value)
A36: Table 35 : Trends in Equity Derivatives Segment at NSE (Turnover in Notional Value)
A37: Table 36 : Settlement Statistics in Equity Derivatives Segment
A38: Table 37 : Category-wise Share of Turnover & Open Interest in Equity Derivative Segment of BSE
A39: Table 38 : Category-wise Share of Turnover & Open Interest in Equity Derivative Segment of NSE
A40: Table 39 : Instrument-wise Turnover in Index Derivatives at BSE
A41: Table 40 : Instrument-wise Turnover in Index Derivatives at NSE
A42: Table 41 : Trends in Currency Derivatives Segment at BSE
A43: Table 42 : Trends in Currency Derivatives Segment at NSE
A44: Table 43 : Trends in Currency Derivatives Segment at MSEI
A45: Table 44 : Settlement Statistics of Currency Derivatives Segment
A46: Table 45 : Instrument-wise Turnover in Currency Derivative Segment of BSE
A47: Table 46 : Instrument-wise Turnover in Currency Derivatives of NSE
A48: Table 47 : Instrument-wise Turnover in Currency Derivative Segment of MSEI
A49: Table 48 : Maturity-wise Turnover in Currency Derivative Segment of BSE
A50: Table 49 : Maturity-wise Turnover in Currency Derivative Segment of NSE
A51: Table 50 : Maturity-wise Turnover in Currency Derivative Segment of MSEI
A52: Table 51 : Trading Statistics in Interest Rate Futures Segment
A53: Table 52 : Settlement Statistics in Interest Rate Futures Segment
A54: Table 53 : Trends in Foreign Portfolio Investment
A55: Table 54 : Notional Value of Offshore Derivative Instruments (ODIs) compared to Assets Under Custody (AUC) of FPIs/Deemed FPIs
A56: Table 55 : Assets under the Custody of Custodians
A57: Table 56 : Trends in Resource Mobilization by Mutual Funds
A58: Table 57 : Status of Mutual Funds Industry in India
A59: Table 58 : Trends in Transactions on Stock Exchanges by Mutual Funds
A60: Table 59 : Assets Managed by Portfolio Managers
A61: Table 60 : Progress Report of NSDL & CDSL for Listed Companies
A62: Table 61 : Progress of Dematerialisation at NSDL and CDSL (Listed and Unlisted Companies)
A63: Table 62 : Depository Statistics
A64: Table 63 : Number of Commodities Permitted and Traded at Exchanges
A65: Table 64 : Trends in Commodity Indices
A66: Table 65 : Trends in Commodity Derivatives at MCX
A67: Table 66 : Trends in Commodity derivatives at NCDEX
A68: Table 67 : Trends in Commodity Derivatives at ICEX
A69: Table 68 : Trends in Commodity Derivatives Segment at BSE
A70: Table 69 : Trends in Commodity Derivatives Segment at NSE
A71: Table 70 : Participant-wise percentage Share of Turnover in Commodity Derivatives at various Exchanges
A72: Table 71 : Commodity-wise Turnover and Trading Volume at MCX
A73: Table 72 : Commodity-wise Turnover and Trading Volume at NCDEX
A74: Table 73 : Commodity-wise Turnover and Trading Volume at ICEX, BSE and NSE
A75: Table 74 : Macro Economic Indicators
A78: Note- No. - Number

Sheet 1
A1: Table 1: SEBI Recognised/Registered Intermediaries / Market Infrastructure Institutions
A2: Particular | B2: 2019-20 | C2: 2020-21$
A3: Stock Exchanges (Cash Segment)# | B3: 4 | C3: 3
A4: Stock Exchanges (Equity Derivatives Segment)# | B4: 3 | C4: 3
A5: Stock Exchanges (Currency Derivatives Segment)# | B5: 3 | C5: 3
A6: Stock Exchanges (Commodity Derivatives Segment)# | B6: 5 | C6: 5
A7: International Exchange (IFSC)# | B7: 2 | C7: 2
A8: Brokers (Cash Segment) | B8: 4249 | C8: 4603
A9: Brokers (Equity Derivatives Segment) | B9: 3460 | C9: 3475
A10: Brokers (Currency Derivatives Segment) | B10: 2708 | C10: 2707
A11: Brokers (Debt Segment) | B11: 378 | C11: 391
A12: Brokers (Commodity Derivatives Segment) | B12: 2257 | C12: 2263
A13: Corporate Brokers(Cash Segment) | B13: 3231 | C13: 3550
A14: Sub-brokers (Cash Segment)* | B14: 0 | C14: 0
A15: Foreign Portfolio Investors (FPIs) | B15: 9825 | C15: 9827
A16: Deemed FPI | B16: 0 | C16: 0
A17: Custodians | B17: 19 | C17: 19
A18: Depositories | B18: 2 | C18: 2
A19: Depository Participants (NSDL) | B19: 285 | C19: 285
A20: Depository Participants (CDSL) | B20: 614 | C20: 617
A21: Merchant Bankers | B21: 215 | C21: 214
A22: Bankers to an Issue | B22: 66 | C22: 65
A23: Underwriters | B23: 2 | C23: 2
A24: Debenture Trustees | B24: 31 | C24: 31
A25: Credit Rating Agencies | B25: 7 | C25: 7
A26: KYC Registration Agencies (KRA) | B26: 5 | C26: 5
A27: Registrars to an Issue & Share Transfer Agents | B27: 80 | C27: 80
A28: Venture Capital Funds | B28: 189 | C28: 188
A29: Foreign Venture Capital Investors | B29: 251 | C29: 252
A30: Alternative Investment Funds | B30: 649 | C30: 693
A31: Portfolio Managers | B31: 351 | C31: 354
A32: Mutual Funds | B32: 47 | C32: 49
A33: Investment Advisors | B33: 1291 | C33: 1331
A34: Research Analysts | B34: 680 | C34: 695
A35: Infrastructure Investment Trusts (InvITs) | B35: 10 | C35: 10
A36: Collective Investment Schemes | B36: 1 | C36: 1
A37: Approved Intermediaries (Stock Lending Schemes) | B37: 2 | C37: 2
A38: STP (Centralised Hub) | B38: 1 | C38: 1
A39: STP Service Providers | B39: 2 | C39: 2
A41: Notes:
A42: $ indicates as on September 30, 2020
A43: # SEBI has granted recognition for carring out operations in the respective segment.
A44: Source: SEBI, NSDL.

Sheet 2
A1: Table 2: Company-wise Capital Raised through Public and Rights Issues (Equity) during the month
A2: Sl.No. | B2: Name of the Issuer/Company | C2: Date of Listing | D2: Type of Issue | E2: Type of Instrument | F2: No. of Shares Issued | G2: Face Value (`) | H2: Premium Value (`) | I2: Issue Price (`) | J2: Size of Issue (` crore)
A3: 1 | B3: Happiest Minds Technologies Limited | C3: 2020-09-17 | D3: IPO | E3: Equity | F3: 42290091 | G3: 2 | H3: 164 | I3: 166 | J3: 702.02
A4: 2 | B4: Route Mobile Limited | C4: 2020-09-21 | D4: IPO | E4: Equity | F4: 17142856 | G4: 10 | H4: 340 | I4: 350 | J4: 600
A5: 3 | B5: Satin Creditcare Network Limited** | C5: 2020-09-07 | D5: Rights Issue | E5: Equity | F5: 19982667 | G5: 10 | H5: 50 | I5: 60 | J5: 60
A6: 4 | B6: Minda Industries Limited | C6: 2020-09-18 | D6: Rights Issue | E6: Equity | F6: 9711739 | G6: 2 | H6: 248 | I6: 250 | J6: 250
A7: 5 | B7: Advait Infratech Limited | C7: 2020-09-28 | D7: BSE SME IPO | E7: Equity | F7: 1350000 | G7: 10 | H7: 41 | I7: 51 | J7: 51
A9: Note: All the issues are compiled from the Prospectus of Issuer Companies filed with SEBI.
A10: From April, 2020 onwards the data is being prepared based on the listing date of the issues as against earlier practice of preparing it based on the closing date.
A11: Source: SEBI.

Sheet 3
A1: Table 3: Open Offers Closed under SAST Regulations (during the month)
A2: Sl.No | B2: Target Company | C2: Acquirer | D2: Offer Opening Date | E2: Offer Closing Date | F2: Offer Size | H2: Offer Price (`) per share | I2: Offer Size (` crore)
F3: No. of Shares | G3: as per cent of Equity Capital
A4: 1 | B4: BERYL SECURITIES LIMITED | C4: MRS. SANGITA SETHI, MR. SANJAY B SETHI, MR. SUDHIR B SETHI, MR. BABULAL SETHI, MRS. SONIYA SETHI, MR. SOHIL SETHI, MRS. TARA SETHI | D4: 2020-08-21 | E4: 2020-09-03 | F4: 1260922 | G4: 26 | H4: 18.73/10.94 | I4: 2.36
A5: 2 | B5: SEQUENT SCIENTIFIC LIMITED | C5: CA HARBOR INVESTMENTS | D5: 2020-08-25 | E5: 2020-09-07 | F5: 64576459 | G5: 26 | H5: 86 | I5: 555.35
A6: 3 | B6: ABB POWER PRODUCTS AND SYSTEMS INDIA LIMITED | C6: ABB Switzerland Ltd and Hitachi, Ltd | D6: 2020-09-09 | E6: 2020-09-22 | F6: 10595419 | G6: 25 | H6: 872.68 | I6: 924.64
A7: 4 | B7: IM+ CAPITALS LIMITED | C7: Mr. Rakesh Kumar Singhal , Mr. Vishal Singhal and Tirupati Containers Private Limited | D7: 2020-09-09 | E7: 2020-09-22 | F7: 910415 | G7: 26 | H7: 25 | I7: 2.27
A8: 5 | B8: JB CHEMICALS & PHARMACEUTICALS LTD. | C8: TAU INVESTMENT HOLDINGS PTE. LTD | D8: 2020-09-11 | E8: 2020-09-24 | F8: 20093346 | G8: 26 | H8: 745.61 | I8: 1498.18
A9: 6 | B9: Punjab Alkalies and Chemicals Limited. | C9: Flowertech Industrial Projects Private Limited , Flowertech Chemicals Private Limited Sukhbir Singh Dahiya , Jagbir Singh Ahlawat , Jatin Dahiya, Parerna Ahlawa | D9: 2020-09-17 | E9: 2020-09-30 | F9: 7056607 | G9: 26.03 | H9: 39.1 | I9: 27.59
A11: Source: SEBI.

Sheet 4
A1: Table 4: Substantial Acquisition of Shares and Takeovers
A2: Year / Month | B2: Offers
B3: Objectives | H3: Total
B4: Change in Control of Management | D4: Consolidation of Holdings | F4: Substantial Acquisition | H4: No. of Offers | I4: Amount (` crore)
B5: No. of Offers | C5: Amount (` crore) | D5: No. of Offers | E5: Amount (` crore) | F5: No. of Offers | G5: Amount (` crore)
A6: 2019-20 | B6: 49 | C6: 16401.64 | D6: 4 | E6: 3641.83 | F6: 3 | G6: 478.38 | H6: 56 | I6: 20521.85
A7: 2020-21$ | B7: =SUM(B8:B13) -> 20 | C7: =SUM(C8:C13) -> 8478.1 | D7: 2 | E7: 9.87 | F7: 2 | G7: 4.08 | H7: 24 | I7: 8492.05
A8: Apr-20 | B8: 2 | C8: 1.36 | D8: 1 | E8: 2.36 | F8: 0 | G8: 0 | H8: 3 | I8: 3.72
A9: May-20 | B9: 0 | C9: 0 | D9: 0 | E9: 0 | F9: 0 | G9: 0 | H9: 0 | I9: 0
A10: Jun-20 | B10: 4 | C10: 1088.11 | D10: 0 | E10: 0 | F10: 0 | G10: 0 | H10: 4 | I10: 1088.11
A11: Jul-20 | B11: 2 | C11: 528.16 | D11: 0 | E11: 0 | F11: 0 | G11: 0 | H11: 2 | I11: 528.16
A12: Aug-20 | B12: 7 | C12: 3852.44 | D12: 1 | E12: 7.51 | F12: 1 | G12: 1.72 | H12: 9 | I12: 3861.67
A13: 2020-09-01 | B13: 5 | C13: 3008.03 | D13: 0 | E13: 0 | F13: 1 | G13: 2.36 | H13: =B13+D13+F13 -> 6 | I13: =C13+E13+G13 -> 3010.39
A14: Note - $ indicates as on September 30, 2020
A15: Source: SEBI.

Sheet 5
A1: Table 5: Capital Raised from the Primary Market through Public and Rights Issues
A2: Year / Month | B2: Total (Equity + Debt) | D2: Equity Issue | P2: Debt Issue
D3: Category-wise | H3: Issue-Type | L3: Instrument-wise | P3: No. of issue | Q3: Amount (₹crore)
D4: Public | F4: Rights | H4: Listed | J4: IPOs | L4: At Par | N4: At Premium
B5: No. of issues | C5: Amount (₹ crore) | D5: No. of issues | E5: Amount (₹ crore) | F5: No. of issues | G5: Amount (₹ crore) | H5: No. of issues | I5: Amount (₹ crore) | J5: No. of issues | K5: Amount (₹ crore) | L5: No. of issues | M5: Amount (₹ crore) | N5: No. of issues | O5: Amount (₹ crore)
A6: 2019-20 | B6: =D6+F6+P6 -> 110 | C6: 91948.93544 | D6: 60 | E6: 21322.87377 | F6: 16 | G6: 55642.04166 | H6: 19 | I6: 55679.27166 | J6: 57 | K6: 21285.65 | L6: 2 | M6: 8.74 | N6: 74 | O6: 76956.18166 | P6: 34 | Q6: 14984.02
A7: 2020-21$ | B7: =D7+F7+P7 -> 30 | C7: 77862.01445 | D7: =SUM(D8:D13) -> 13 | E7: =SUM(E8:E13) -> 16847.51498 | F7: =SUM(F8:F13) -> 11 | G7: 59982.97948 | H7: 12 | I7: 74982.97948 | J7: 12 | K7: 1847.514975 | L7: 0 | M7: 0 | N7: 24 | O7: 76830.49445 | P7: 6 | Q7: 1031.52
A8: 2020-04-01 | B8: 4 | C8: 116.31 | D8: 3 | E8: 13.92 | F8: 0 | G8: 0 | H8: 0 | I8: 0 | J8: 3 | K8: 13.92 | L8: 0 | M8: 0 | N8: 3 | O8: 13.92 | P8: 1 | Q8: 102.39
A9: 2020-05-01 | B9: 1 | C9: 297.25 | D9: 0 | E9: 0 | F9: 0 | G9: 0 | H9: 0 | I9: 0 | J9: 0 | K9: 0 | L9: 0 | M9: 0 | N9: 0 | O9: 0 | P9: 1 | Q9: 297.25
A10: 2020-06-01 | B10: =D10+F10+P10 -> 4 | C10: =E10+G10+Q10 -> 53448.84 | D10: 1 | E10: 2.46 | F10: 1 | G10: 53124.2 | H10: 1 | I10: 53124.2 | J10: 1 | K10: 2.46 | L10: 0 | M10: 0 | N10: 2 | O10: =E10+G10 -> 53126.66 | P10: 2 | Q10: 322.18
A11: 2020-07-01 | B11: 6 | C11: 16070.56998 | D11: 4 | E11: 15510.77998 | F11: 1 | G11: 399.79 | H11: 2 | I11: 15399.79 | J11: 3 | K11: 510.779975 | L11: 0 | M11: 0 | N11: 5 | O11: 15910.56998 | P11: 1 | Q11: 160
A12: 2020-08-01 | B12: =D12+F12+P12 -> 9 | C12: =E12+G12+Q12 -> 6107.75 | D12: 2 | E12: 11.45 | F12: 7 | G12: 6096.3 | H12: 7 | I12: 6096.3 | J12: 2 | K12: 11.45 | L12: 0 | M12: 0 | N12: 9 | O12: 6107.75 | P12: 0 | Q12: 0
A13: 2020-09-01 | B13: =D13+F13+P13 -> 6 | C13: =E13+G13+Q13 -> 1821.294477 | D13: 3 | E13: 1308.905 | F13: 2 | G13: 362.689477 | H13: 2 | I13: 362.689477 | J13: 3 | K13: 1308.905 | L13: 0 | M13: 0 | N13: 5 | O13: 1671.594477 | P13: 1 | Q13: 149.7
A14: Notes:
A15: 1. Equity public issues also includes issues listed on SME platform.
A16: 2. From April, 2020 onwards the data of equity is being prepared based on the listing date of the issues as against earlier practice of preparing it based on the closing date.
A17: 3. The data of Debt is being prepared based on closing date.
A18: $ indicates as on July 31, 2020
A19: Source: SEBI.
F21: =E13+G13 -> 1671.594477

Sheet 6
A1: Table 6: Issues Listed on SME Platform
A2: Year/Month | B2: No. of issue | C2: Amount (₹crore)
A3: 2019-20 | B3: 46 | C3: 495.3828
A4: 2020-21$ | B4: =SUM(B5:B10) -> 9 | C4: =SUM(C5:C10) -> 49.245
A5: 2020-04-01 | B5: 3 | C5: 13.92
A6: 2020-05-01 | B6: 0 | C6: 0
A7: 2020-06-01 | B7: 1 | C7: 2.46
A8: 2020-07-01 | B8: 2 | C8: 14.53
A9: 2020-08-01 | B9: 2 | C9: 11.45
A10: 2020-09-01 | B10: 1 | C10: 6.885
A11: Notes -
A12: From April, 2020 onwards the data of equity is being prepared based on the listing date of the issues as against earlier practice of preparing it based on the closing date.
A13: $ indicates as on September 30, 2020
A14: Source: SEBI

Sheet 7
A1: Table 7: Industry-wise Classification of Capital Raised through Public and Rights Issues (Equity)
A2: Industry | B2: 2019-20 | D2: 2020-21$ | F2: 2020-09-01
B3: No. of issues | C3: Amount (₹crore) | D3: No. of issues | E3: Amount (₹crore) | F3: No. of issues | G3: Amount (₹ crore)
A4: Airlines | B4: 0 | C4: 0 | D4: 0 | E4: 0 | F4: 0 | G4: 0
A5: Automobiles | B5: 0 | C5: 0 | D5: 0 | E5: 0 | F5: 0 | G5: 0
A6: Banks/FIs | B6: 0 | C6: 0 | D6: 1 | E6: 15000 | F6: 1 | G6: 119.896002
A7: Cement/ Constructions | B7: 0 | C7: 0 | D7: 1 | E7: 6.9 | F7: 0 | G7: 0
A8: Chemical | B8: 3 | C8: 141.135882 | D8: 1 | E8: 496.25 | F8: 0 | G8: 0
A9: Consumer Services | B9: 2 | C9: 81.78 | D9: 3 | E9: 482.56 | F9: 0 | G9: 0
A10: Electronic Equipments/ Products | B10: 2 | C10: 1347.19 | D10: 0 | E10: 0 | F10: 1 | G10: 6.885
A11: Engineering | B11: 2 | C11: 489.32 | D11: 1 | E11: 10.51 | F11: 0 | G11: 0
A12: Entertainment | B12: 1 | C12: 2.27 | D12: 1 | E12: 299.79 | F12: 0 | G12: 0
A13: Finance | B13: 0 | C13: 0 | D13: 0 | E13: 0 | F13: 0 | G13: 0
A14: Food processing | B14: 0 | C14: 0 | D14: 0 | E14: 0 | F14: 0 | G14: 0
A15: Healthcare | B15: 3 | C15: 1267.02 | D15: 0 | E15: 0 | F15: 0 | G15: 0
A16: Hotels | B16: 1 | C16: 3.6 | D16: 0 | E16: 0 | F16: 0 | G16: 0
A17: Info Tech | B17: 0 | C17: 0 | D17: 1 | E17: 4.02 | F17: 2 | G17: 1302.02
A18: Misc | B18: 4 | C18: 87.06 | D18: 4 | E18: 4705.27 | F18: 1 | G18: 242.793475
A19: Roads & Highways | B19: 0 | C19: 0 | D19: 1 | E19: 4.55 | F19: 0 | G19: 0
A20: Telecom | B20: 2 | C20: 49938.79 | D20: 0 | E20: 0 | F20: 0 | G20: 0
A21: Textile | B21: 0 | C21: 0 | D21: 1 | E21: 995.12 | F21: 0 | G21: 0
A22: Plastic | B22: 0 | C22: 0 | D22: 1 | E22: 2.46 | F22: 0 | G22: 0
A23: Power | B23: 0 | C23: 0 | D23: 0 | E23: 0 | F23: 0 | G23: 0
A24: Printing | B24: 1 | C24: 6.58 | D24: 1 | E24: 2.4 | F24: 0 | G24: 0
A25: Oil & Natural Gas | B25: 0 | C25: 0 | D25: 2 | E25: 53149.07 | F25: 0 | G25: 0
A26: Insurance | B26: 0 | C26: 0 | D26: 0 | E26: 0 | F26: 0 | G26: 0
A27: Total | B27: =SUM(B4:B26) -> 21 | C27: 53364.74588 | D27: 19 | E27: 75158.9 | F27: 9 | G27: 1671.594477
A28: Notes - From April, 2020 onwards the data of equity is being prepared based on the listing date of the issues as against earlier practice of preparing it based on the closing date.
A29: $ indicates as on July 31, 2020
A30: Source: SEBI.

Sheet 8
A1: Table 8: Sector-wise and Region-wise Distribution of Capital Mobilised through Public and Rights Issues (Equity)
A2: Year / Month | B2: Total | D2: Sector-wise | H2: Region-wise
D3: Private | F3: Public | H3: Northern | J3: Eastern | L3: Western | N3: Southern | P3: Central
B4: No. of Issue | C4: Amount (₹crore) | D4: No. of Issue | E4: Amount (₹ crore) | F4: No. of Issue | G4: Amount (₹ crore) | H4: No. of Issue | I4: Amount (₹ crore) | J4: No. of Issue | K4: Amount (₹ crore) | L4: No. of Issue | M4: Amount (₹ crore) | N4: No. of Issue | O4: Amount (₹ crore) | P4: No. of Issue | Q4: Amount (₹ crore)
A5: 2019-20 | B5: =D5+F5 -> 76 | C5: =E5+G5 -> 76964.92166 | D5: 74 | E5: 75849.85166 | F5: 2 | G5: 1115.07 | H5: 17 | I5: 39089.74361 | J5: 0 | K5: 0 | L5: 51 | M5: 34666.08 | N5: 8 | O5: 3209.099586 | P5: 0 | Q5: 0
A6: 2020-21$ | B6: =SUM(B7:B12) -> 24 | C6: =SUM(C7:C12) -> 76830.49445 | D6: 24 | E6: 76830.49445 | F6: 0 | G6: 0 | H6: 5 | I6: 677.009477 | J6: 1 | K6: 79.53 | L6: 15 | M6: 73854.87497 | N6: 3 | O6: 2219.08 | P6: 0 | Q6: 0
A7: 2020-04-01 | B7: 3 | C7: 13.92 | D7: 3 | E7: 13.92 | F7: 0 | G7: 0 | H7: 0 | I7: 0 | J7: 0 | K7: 0 | L7: 3 | M7: 13.92 | N7: 0 | O7: 0 | P7: 0 | Q7: 0
A8: 2020-05-01 | B8: 0 | C8: 0 | D8: 0 | E8: 0 | F8: 0 | G8: 0 | H8: 0 | I8: 0 | J8: 0 | K8: 0 | L8: 0 | M8: 0 | N8: 0 | O8: 0 | P8: 0 | Q8: 0
A9: 2020-06-01 | B9: 2 | C9: 53126.66 | D9: 2 | E9: 53126.66 | F9: 0 | G9: 0 | H9: 0 | I9: 0 | J9: 0 | K9: 0 | L9: 2 | M9: 53126.66 | N9: 0 | O9: 0 | P9: 0 | Q9: 0
A10: 2020-07-01 | B10: 5 | C10: 15910.56998 | D10: 5 | E10: 15910.56998 | F10: 0 | G10: 0 | H10: 2 | I10: 14.53 | J10: 0 | K10: 0 | L10: 3 | M10: 15896.03998 | N10: 0 | O10: 0 | P10: 0 | Q10: 0
A11: 2020-08-01 | B11: 9 | C11: 6107.75 | D11: 9 | E11: 6107.75 | F11: 0 | G11: 0 | H11: 1 | I11: 299.79 | J11: 1 | K11: 79.53 | L11: 5 | M11: 4211.37 | N11: 2 | O11: 1517.06 | P11: 0 | Q11: 0
A12: 2020-09-01 | B12: 5 | C12: 1671.594477 | D12: 5 | E12: 1671.594477 | F12: 0 | G12: 0 | H12: 2 | I12: 362.689477 | J12: 0 | K12: 0 | L12: 2 | M12: 606.885 | N12: 1 | O12: 702.02 | P12: 0 | Q12: 0
A13: Notes - From April, 2020 onwards the data of equity is being prepared based on the listing date of the issues as against earlier practice of preparing it based on the closing date.
A14: $ indicates as on September 30, 2020
A15: Source: SEBI.

Sheet 9
A1: Table 9: Size-wise Classification of Capital Raised through Public and Rights Issues (Equity)
A2: Year / Month | B2: Total | D2: < 5 crore | F2: ≥ 5crore - < 10crore | H2: ≥ 10 crore - < 50 crore | J2: ≥ 50 crore - < 100 crore | L2: ≥ 100 crore - < 500 crore | N2: >=500 crore
B3: No. of issue | C3: Amount (₹ crore) | D3: No. of issue | E3: Amount (₹ crore) | F3: No. of issue | G3: Amount (₹ crore) | H3: No. of issue | I3: Amount (₹ crore) | J3: No. of issue | K3: Amount (₹ crore) | L3: No. of issue | M3: Amount (₹ crore) | N3: No. of issue | O3: Amount (₹ crore)
A4: 2019-20 | B4: 76 | C4: 76964.91166 | D4: 19 | E4: 59.28 | F4: 12 | G4: 89.88 | H4: 24 | I4: 481.426867 | J4: 1 | K4: 60 | L4: 8 | M4: 2606.62369 | N4: 12 | O4: 73667.70111
A5: 2020-21$ | B5: =SUM(B6:B11) -> 24 | C5: =SUM(C6:C11) -> 76830.49497 | D5: 5 | E5: 16.67 | F5: 3 | G5: 22.065 | H5: 2 | I5: 35.38 | J5: 1 | K5: 79.53 | L5: 6 | M5: 1674.499975 | N5: 7 | O5: 75002.35
A6: 2020-04-01 | B6: =D6+F6 -> 3 | C6: =E6+G6 -> 13.92 | D6: 2 | E6: 5.64 | F6: 1 | G6: 8.28 | H6: 0 | I6: 0 | J6: 0 | K6: 0 | L6: 0 | M6: 0 | N6: 0 | O6: 0
A7: 2020-05-01 | B7: 0 | C7: 0 | D7: 0 | E7: 0 | F7: 0 | G7: 0 | H7: 0 | I7: 0 | J7: 0 | K7: 0 | L7: 0 | M7: 0 | N7: 0 | O7: 0
A8: 2020-06-01 | B8: 2 | C8: =E8+O8 -> 53126.66 | D8: 1 | E8: 2.46 | F8: 0 | G8: 0 | H8: 0 | I8: 0 | J8: 0 | K8: 0 | L8: 0 | M8: 0 | N8: 1 | O8: 53124.2
A9: 2020-07-01 | B9: 5 | C9: =E9+I9+M9+O9 -> 15910.56998 | D9: 1 | E9: 4.02 | F9: 0 | G9: 0 | H9: 1 | I9: 10.51 | J9: 0 | K9: 0 | L9: 2 | M9: 896.039975 | N9: 1 | O9: 15000
A10: 2020-08-01 | B10: 9 | C10: 6107.75 | D10: 1 | E10: 4.55 | F10: 1 | G10: 6.9 | H10: 1 | I10: 24.87 | J10: 1 | K10: 79.53 | L10: 2 | M10: 415.77 | N10: 3 | O10: 5576.13
A11: 2020-09-01 | B11: 5 | C11: 1671.595 | D11: 0 | E11: 0 | F11: 1 | G11: 6.885 | H11: 0 | I11: 0 | J11: 0 | K11: 0 | L11: 2 | M11: 362.69 | N11: 2 | O11: 1302.02
A12: Notes - From April, 2020 onwards the data of equity is being prepared based on the listing date of the issues as against earlier practice of preparing it based on the closing date.
A13: $ indicates as on September 30, 2020
A14: Source: SEBI.

Sheet 10
A1: Table 10: Capital Raised by Listed Companies from the Primary Market through QIPs
A2: Year / Month | B2: Only BSE | D2: Only NSE | F2: Only MSEI | H2: Both NSE and BSE | J2: Total
B3: No. of issues | C3: Amount (` crore) | D3: No. of issues | E3: Amount (` crore) | F3: No. of issues | G3: Amount (` crore) | H3: No. of issues | I3: Amount (` crore) | J3: No. of issues | K3: Amount (` crore)
A4: 2019-20 | B4: 0 | C4: 0 | D4: 0 | E4: 0 | F4: 0 | G4: 0 | H4: 14 | I4: 54388.92492 | J4: 14 | K4: 54388.92492
A5: 2020-21$ | B5: =SUM(B6:B11) -> 0 | C5: 0 | D5: 0 | E5: 0 | F5: 0 | G5: 0 | H5: =SUM(H6:H11) -> 13 | I5: =SUM(I6:I11) -> 54275.31 | J5: 13 | K5: 54275.31
A6: Apr-20 | B6: 0 | C6: 0 | D6: 0 | E6: 0 | F6: 0 | G6: 0 | H6: 0 | I6: 0 | J6: 0 | K6: 0
A7: May-20 | B7: 0 | C7: 0 | D7: 0 | E7: 0 | F7: 0 | G7: 0 | H7: 0 | I7: 0 | J7: 0 | K7: 0
A8: Jun-20 | B8: 0 | C8: 0 | D8: 0 | E8: 0 | F8: 0 | G8: 0 | H8: 2 | I8: 8212.5 | J8: 2 | K8: 8212.5
A9: Jul-20 | B9: 0 | C9: 0 | D9: 0 | E9: 0 | F9: 0 | G9: 0 | H9: 1 | I9: 2000 | J9: 1 | K9: 2000
A10: Aug-20 * | B10: 0 | C10: 0 | D10: 0 | E10: 0 | F10: 0 | G10: 0 | H10: 7 | I10: 42724.94 | J10: 7 | K10: 42724.94
A11: 2020-09-01 | B11: 0 | C11: 0 | D11: 0 | E11: 0 | F11: 0 | G11: 0 | H11: 3 | I11: 1337.87 | J11: 3 | K11: 1337.87
A12: Notes -
A13: $ indicates as on September 30, 2020
A14: * In the month of August 2020, the common amount on BSE and NSE includes warrants of HDFC Ltd of Rs. 3999.99 crs
A15: Source: BSE, NSE and MSEI.

Sheet 11
A1: Table 11: Preferential Allotments Listed at Stock Exchanges
A2: Year/Month | B2: Only BSE | D2: Only NSE | F2: Only MSEI | H2: Both NSE and BSE | J2: Total
B3: No. of issues | C3: Amount (` crore) | D3: No. of issues | E3: Amount (` crore) | F3: No. of issues | G3: Amount (`crore) | H3: No. of issues | I3: Amount ` crore) | J3: No. of issues | K3: Amount (`crore)
A4: 2019-20 | B4: 130 | C4: 1853.24 | D4: 14 | E4: 76.11 | F4: 6 | G4: 24.77 | H4: 142 | I4: 172970.61 | J4: 282 | K4: 174875.19
A5: 2020-21$ | B5: =SUM(B6:B11) -> 57 | C5: 441.64 | D5: 4 | E5: 19.46 | F5: 3 | G5: 20 | H5: 46 | I5: 16279.09 | J5: =SUM(J6:J11) -> 110 | K5: =SUM(K6:K11) -> 16760.19
A6: Apr-20 | B6: 15 | C6: 119.45 | D6: 0 | E6: 0 | F6: 1 | G6: 2 | H6: 7 | I6: 986.95 | J6: =B6+D6+F6+H6 -> 23 | K6: =C6+E6+G6+I6 -> 1108.4
A7: May-20 | B7: 4 | C7: 11.14 | D7: 0 | E7: 0 | F7: 0 | G7: 0 | H7: 7 | I7: 295.88 | J7: 11 | K7: 307.02
A8: Jun-20 | B8: 10 | C8: 64.96 | D8: 0 | E8: 0 | F8: 0 | G8: 0 | H8: 8 | I8: 3967.7 | J8: 18 | K8: 4032.66
A9: Jul-20 | B9: 9 | C9: 83.64 | D9: 0 | E9: 0 | F9: 0 | G9: 0 | H9: 9 | I9: 798.85 | J9: 18 | K9: 882.49
A10: Aug-20 | B10: 11 | C10: 110.04 | D10: 2 | E10: 9 | F10: 1 | G10: 9 | H10: 5 | I10: 2617.62 | J10: =B10+D10+F10+H10 -> 19 | K10: =C10+E10+G10+I10 -> 2745.66
A11: 2020-09-01 | B11: 8 | C11: 52.41 | D11: 2 | E11: 10.46 | F11: 1 | G11: 9 | H11: 10 | I11: 7612.09 | J11: =B11+D11+F11+H11 -> 21 | K11: =C11+E11+G11+I11 -> 7683.96
A12: Notes -
A13: $ indicates as on September 30, 2020
A14: Source: BSE, NSE and MSEI.

Sheet 12
A1: Table 12: Private Placement of Corporate Debt Reported to Stock Exchanges
A2: Year/Month | B2: Listed only on NSE | D2: Listed only on BSE | F2: Listed both Both NSE and BSE | H2: TOTAL
B3: No. of Issues | C3: Amount (`crore) | D3: No. of Issues | E3: Amount (` crore) | F3: No. of Issues | G3: Amount (` crore) | H3: No. of Issues | I3: Amount (` crore)
A4: 2019-20 | B4: 362 | C4: 202997.4072 | D4: 1272 | E4: 254915.2323 | F4: 152 | G4: 216657.154 | H4: 1786 | I4: 674670.6135
A5: 2020-21$ | B5: =SUM(B6:B11) -> 195 | C5: =SUM(C6:C11) -> 87499.25 | D5: 723 | E5: 128664.08 | F5: 92 | G5: 164032.8 | H5: 1010 | I5: 380195.25
A6: Apr-20 | B6: 19 | C6: 11880 | D6: 40 | E6: 15200 | F6: 11 | G6: 27559.1 | H6: 70 | I6: 54638.72
A7: May-20 | B7: 33 | C7: 21706 | D7: 48 | E7: 14911.19 | F7: 26 | G7: 47956.3 | H7: 107 | I7: 84573.49
A8: Jun-20 | B8: 43 | C8: 18704 | D8: 136 | E8: 28221 | F8: 9 | G8: 23289 | H8: 188 | I8: 70213.5
A9: Jul-20 | B9: 40 | C9: 17454.84 | D9: 191 | E9: 20187.64 | F9: 12 | G9: 10319.2 | H9: 243 | I9: 47961.68
A10: 2020-08-01 | B10: 26 | C10: 5592.7 | D10: 163 | E10: 21144.71 | F10: 24 | G10: 31681.8 | H10: =SUM(B10,D10,F10) -> 213 | I10: =SUM(C10,E10,G10) -> 58419.21
A11: 2020-09-01 | B11: 34 | C11: 12161.71 | D11: 145 | E11: 28999.54 | F11: 10 | G11: 23227.4 | H11: 189 | I11: 64388.65
A12: Notes -
A13: $ indicates as on September 30, 2020
A14: Source: BSE and NSE

Sheet 13
A1: Table 13: Trading in the Corporate Debt Market
A2: Year / Month | B2: BSE | D2: NSE | F2: MSEI | H2: Total
B3: No. of Trades | C3: Traded Value (` crore) | D3: No. of Trades | E3: Traded Value (` crore) | F3: No. of Trades | G3: Traded Value (` crore) | H3: No. of Trades | I3: Traded Value (` crore)
A4: 2019-20 | B4: 57669 | C4: 764268.62 | D4: 80558 | E4: 1463552.27 | F4: 0 | G4: 0 | H4: 138227 | I4: 2227820.96
A5: 2020-21$ | B5: =SUM(B6:B11) -> 33115 | C5: =SUM(C6:C11) -> 391920.958 | D5: 36598 | E5: 712977.202 | F5: 0 | G5: 0 | H5: =SUM(H6:H11) -> 69713 | I5: =SUM(I6:I11) -> 1104898.16
A6: Apr-20 | B6: 3753 | C6: 65285.07 | D6: 5173 | E6: 149229.69 | F6: 0 | G6: 0 | H6: =B6+D6 -> 8926 | I6: =E6+C6 -> 214514.76
A7: May-20 | B7: 4677 | C7: 64964.768 | D7: 6004 | E7: 131841.632 | F7: 0 | G7: 0 | H7: =B7+D7 -> 10681 | I7: =E7+C7 -> 196806.4
A8: Jun-20 | B8: 7231 | C8: 76987.05 | D8: 7647 | E8: 130256.79 | F8: 0 | G8: 0 | H8: 14878 | I8: 207243.84
A9: Jul-20 | B9: 6813 | C9: 80074.63 | D9: 6710 | E9: 121730.01 | F9: 0 | G9: 0 | H9: =B9+D9 -> 13523 | I9: 201804.64
A10: 2020-08-01 | B10: 4946 | C10: 53915.52 | D10: 5200 | E10: 89136.44 | F10: 0 | G10: 0 | H10: =SUM(B10,D10,F10) -> 10146 | I10: =SUM(C10,E10,G10) -> 143051.96
A11: 2020-09-01 | B11: 5695 | C11: 50693.92 | D11: 5864 | E11: 90782.64 | F11: 0 | G11: 0 | H11: 11559 | I11: 141476.56
A12: Notes -
A13: $ indicates as on September 30, 2020
A14: Source: BSE and NSE

Sheet 14
A1: Table 14: Ratings Assigned for Long-term Corporate Debt Securities (Maturity ≥ 1 year)
A2: Grade | B2: Investment Grade | J2: Non-Investment Grade | L2: Total
B3: Highest Safety (AAA) | D3: High Safety (AA) | F3: Adequate Safety (A) | H3: Moderate Safety (BBB)
A4: Period | B4: No. of issue | C4: Amount (`crore) | D4: No. of issue | E4: Amount (` crore) | F4: No. of issue | G4: Amount (` crore) | H4: No. of issue | I4: Amount (` crore) | J4: No. of issue | K4: Amount (` crore) | L4: No. of issue | M4: Amount (` crore)
A5: 2019-20 | B5: 315 | C5: 1895046.59 | D5: 308 | E5: 194418.72 | F5: 278 | G5: 40357.38 | H5: 200 | I5: 31405.885 | J5: 44 | K5: 10059.96 | L5: 1145 | M5: 2171738.535
A6: 2020-21$ | B6: =SUM(B7:B12) -> 147 | C6: =SUM(C7:C12) -> 1288166.72 | D6: 237 | E6: 205591.9 | F6: 156 | G6: 29947.21 | H6: 95 | I6: 28412.28 | J6: 20 | K6: 3698.05 | L6: 655 | M6: 1555816.24
A7: Apr-20 | B7: 25 | C7: 540951.9 | D7: 28 | E7: 52120.9 | F7: 11 | G7: 5075 | H7: 5 | I7: 1630.19 | J7: 2 | K7: 535 | L7: 71 | M7: 600312.99
A8: May-20 | B8: 17 | C8: 76524.42 | D8: 38 | E8: 19249.33 | F8: 21 | G8: 5426.38 | H8: 7 | I8: 620 | J8: 1 | K8: 100 | L8: 84 | M8: 101920.13
A9: Jun-20 | B9: 30 | C9: 49056.53 | D9: 43 | E9: 33536.16 | F9: 36 | G9: 4757.08 | H9: 27 | I9: 19665.78 | J9: 0 | K9: 0 | L9: 136 | M9: 107015.55
A10: Jul-20 | B10: 23 | C10: 115681.76 | D10: 41 | E10: 16437.48 | F10: 22 | G10: 2665.11 | H10: 22 | I10: 866.59 | J10: 7 | K10: 352 | L10: 115 | M10: 136003.02
A11: Aug-20 | B11: 18 | C11: 148303.47 | D11: 24 | E11: 25639.17 | F11: 32 | G11: 6989.12 | H11: 17 | I11: 3401.9 | J11: 3 | K11: 167 | L11: 94 | M11: 184500.66
A12: 2020-09-01 | B12: 34 | C12: 357648.64 | D12: 63 | E12: 58608.86 | F12: 34 | G12: 5034.52 | H12: 17 | I12: 2227.82 | J12: 7 | K12: 2544.05 | L12: 155 | M12: 426063.89
A13: Notes -
A14: $ indicates as on September 30, 2020
A15: Source: Credit Rating Agencies.

Sheet 15
A1: Table 15: Review of Accepted Ratings of Corporate Debt Securities (Maturity ≥ 1 year)
A2: Grade | B2: Upgraded | D2: Downgraded | F2: Reaffirmed | H2: Rating Watch | J2: Withdrawn/ Suspended | L2: Total
A3: Period | B3: No. of issue | C3: Amount (`crore) | D3: No. of issue | E3: Amount (`crore) | F3: No. of issue | G3: Amount (`crore) | H3: No. of issue | I3: Amount (`crore) | J3: No. of issue | K3: Amount (`crore) | L3: No. of issue | M3: Amount (`crore)
A4: 2019-20 | B4: 252 | C4: 75088.09 | D4: 1689 | E4: 1854100.55 | F4: 4425 | G4: 9132486.1 | H4: 768 | I4: 739873.1 | J4: 1193 | K4: 580065.57 | L4: 8184 | M4: 12225936.51
A5: 2020-21$ | B5: =SUM(B6:B11) -> 82 | C5: =SUM(C6:C11) -> 61759 | D5: 496 | E5: 216284.22 | F5: 3539 | G5: 8744536.366 | H5: 142 | I5: 105819.78 | J5: 782 | K5: 904668.67 | L5: 4948 | M5: 9899376.871
A6: Apr-20 | B6: 4 | C6: 598.4 | D6: 78 | E6: 18083.34 | F6: 335 | G6: 1772609.63 | H6: 46 | I6: 24584.43 | J6: 181 | K6: 514291.99 | L6: 644 | M6: 2330167.795
A7: May-20 | B7: 4 | C7: 37.63 | D7: 85 | E7: 57246.42 | F7: 493 | G7: 1201121.33 | H7: 29 | I7: 40188.47 | J7: 82 | K7: 42963.5 | L7: 689 | M7: 1340951.46
A8: Jun-15 | B8: 9 | C8: 2751.45 | D8: 78 | E8: 47594.14 | F8: 700 | G8: 1263013.22 | H8: 16 | I8: 13712.15 | J8: 104 | K8: 55701.22 | L8: 889 | M8: 1361302.26
A9: Jul-20 | B9: 6 | C9: 138.13 | D9: 61 | E9: 11188 | F9: 567 | G9: 1234071.65 | H9: 9 | I9: 3821.4 | J9: 111 | K9: 76813.8 | L9: 737 | M9: 1310780.67
A10: Aug-20 | B10: 21 | C10: 7118.39 | D10: 67 | E10: 24674.93 | F10: 612 | G10: 1496279.868 | H10: 15 | I10: 5088.58 | J10: 115 | K10: 117215.56 | L10: 803 | M10: 1589777.448
A11: 2020-09-01 | B11: 38 | C11: 51115 | D11: 127 | E11: 57497.39 | F11: 832 | G11: 1777440.668 | H11: 27 | I11: 18424.75 | J11: 189 | K11: 97682.6 | L11: 1186 | M11: 1966397.238
A12: Notes -
A13: $ indicates as on September 30, 2020
A14: Source: Credit Rating Agencies.

Sheet 16
A1: Table 16: Distribution of Turnover on Cash Segments of Stock Exchanges (`crore)
A2: Stock Exchanges | B2: Aug-20 | C2: 2019-20 | D2: 2020-21$
A3: BSE | B3: 93079.96 | C3: 660896.02 | D3: 462886
A4: MSEI | B4: 1.153661 | C4: 27.98824717 | D4: 3.91179725
A5: NSE | B5: 1282556.535 | C5: 8998811.071 | D5: 7111345.677
A6: Notes -
A7: $ indicates as on September 30, 2020
A8: Source: BSE, NSE and MSEI.

Sheet 17
A1: Table 17: Trends in Cash Segment of BSE
A2: Year / Month | B2: No. of Companies Listed | C2: No. of Companies Permitted | D2: No. of companies traded | E2: No. of Trading Days | F2: No. of Trades (Lakh) | G2: Traded Quantity (Lakh) | H2: Turnover (` crore) | I2: Average Daily Turnover (` crore) | J2: Average Trade Size (`) | K2: Demat Securities Traded (Lakh) | L2: Demat Turnover (` crore) | M2: Market Capitalisation (` crore) | N2: S&P BSE Sensex
N3: High | O3: Low | P3: Close
A4: 2019-20 | B4: 5377 | C4: 36 | D4: 4089 | E4: 247 | F4: 3247.6 | G4: 573547.84 | H4: 660896.02 | I4: 2675.692389 | J4: 20350.29006 | K4: 573547.84 | L4: 660895.9 | M4: 11348756.59 | N4: 42273.87 | O4: 25638.9 | P4: 29468.49
A5: 2020-21$ | B5: =B11 -> 5428 | C5: 28 | D5: 3812 | E5: =SUM(E6:E11) -> 125 | F5: 2619.82 | G5: 474962.93 | H5: =SUM(H6:H11) -> 462886 | I5: =H5/E5 -> 3703.088 | J5: =H5/F5*100 -> 17668.61845 | K5: =SUM(K6:K11) -> 474962.93 | L5: =SUM(L6:L11) -> 462885.97 | M5: =M11 -> 15524267.37 | N5: =MAX(N6:N11) -> 40010.17 | O5: =MIN(O6:O11) -> 27500.79 | P5: =P11 -> 38067.93
A6: Apr-20 | B6: 5380 | C6: 36 | D6: 3352 | E6: 18 | F6: 349.14 | G6: 38886.06 | H6: 44476.34 | I6: 2470.907778 | J6: 12738.82683 | K6: 38886.06 | L6: 44476.34 | M6: 12941620.82 | N6: 33887.25 | O6: 27500.79 | P6: 33717.62
A7: May-20 | B7: 5369 | C7: 36 | D7: 3303 | E7: 19 | F7: 314.3 | G7: 50830.89 | H7: 65018.99 | I7: 3422.052105 | J7: 20686.92014 | K7: 50830.89 | L7: 65018.97 | M7: 12706528.94 | N7: 32845.48 | O7: 29968.45 | P7: 32424.1
A8: Jun-20 | B8: 5377 | C8: 28 | D8: 3481 | E8: 22 | F8: 555.78 | G8: 108236.37 | H8: 110192.7 | I8: 5008.759091 | J8: 19826.67602 | K8: 108236.37 | L8: 110192.67 | M8: 13915689.83 | N8: 35706.55 | O8: 32348.1 | P8: 34915.8
A9: Jul-20 | B9: 5399 | C9: 27 | D9: 3624 | E9: 23 | F9: 513.7 | G9: 98513.1 | H9: 80092.74 | I9: 3482.293043 | J9: 15591.34514 | K9: 98513.1 | L9: 80092.73 | M9: 14739115.83 | N9: 38617.03 | O9: 34927.2 | P9: 37606.89 | Q9: 0
A10: Aug-20 | B10: 5413 | C10: 27 | D10: 3605 | E10: 21 | F10: 484.21 | G10: 99670 | H10: 93079.96 | I10: 4432.379048 | J10: 19223.05611 | K10: 99670 | L10: 93079.99 | M10: 15376302.71 | N10: 40010.17 | O10: 36911.23 | P10: 38628.29
A11: 2020-09-01 | B11: 5428 | C11: 28 | D11: 3587 | E11: 22 | F11: 402.69 | G11: 78826.51 | H11: 70025.27 | I11: 3182.966818 | J11: 17389.37396 | K11: 78826.51 | L11: 70025.27 | M11: 15524267.37 | N11: 39359.51 | O11: 36495.98 | P11: 38067.93
A12: Notes -
A13: $ indicates as on September 30, 2020
A14: Source: BSE .

Sheet 18
A1: Table 18: Trends in Cash Segment of NSE
A2: Year / Month | B2: No. of Companies Listed | C2: No. of Companies Permitted | D2: No. of companies traded | E2: No. of Trading Days | F2: No. of Trades (Lakh) | G2: Traded Quantity (Lakh) | H2: Turnover (` crore) | I2: Average Daily Turnover (` crore) | J2: Average Trade Size (`) | K2: Demat Securities Traded (Lakh) | L2: Demat Turnover (` crore) | M2: Market Capitalisation (` crore) | N2: Nifty 50 Index
N3: High | O3: Low | P3: Close
A4: 2019-20 | B4: 1949 | C4: 18 | D4: 1989 | E4: 247 | F4: 31459.71247 | G4: 4674056.682 | H4: 8998811.071 | I4: 36432.43348 | J4: 28604.23813 | K4: 4674056.682 | L4: 8998811.071 | M4: 11243111.77 | N4: 12430.5 | O4: 7511.1 | P4: 8597.75
A5: 2020-21$ | B5: =B11 -> 1946 | C5: 18 | D5: 1953 | E5: =SUM(E6:E11) -> 125 | F5: 22658.78917 | G5: 3668421.757 | H5: =SUM(H6:H11) -> 7111345.678 | I5: =H5/E5 -> 56890.76542 | J5: =H5/F5*100 -> 31384.49113 | K5: =SUM(K6:K11) -> 3668421.757 | L5: =SUM(L6:L11) -> 7111345.678 | M5: =M11 -> 15304722.35 | N5: =MAX(N6:N11) -> 11794.25 | O5: =MIN(O6:O11) -> 8055.8 | P5: =P11 -> 11247.55
A6: Apr-20 | B6: 1949 | C6: 18 | D6: 1855 | E6: 18 | F6: 3606.19038 | G6: 427307.91 | H6: 905802.22 | I6: 50322.34556 | J6: 25117.98115 | K6: 427307.91 | L6: 905802.22 | M6: 12738625.88 | N6: 9889.05 | O6: 8055.8 | P6: 9859.9
A7: May-20 | B7: 1947 | C7: 18 | D7: 1854 | E7: 19 | F7: 3417.96702 | G7: 493359.2655 | H7: 1000456.48 | I7: 52655.60421 | J7: 29270.51297 | K7: 493359.2655 | L7: 1000456.48 | M7: 12516959.59 | N7: 9598.85 | O7: 8806.75 | P7: 9580.3
A8: Jun-20 | B8: 1944 | C8: 18 | D8: 1872 | E8: 22 | F8: 4304.02717 | G8: 845760.3684 | H8: 1350680.724 | I8: 61394.57836 | J8: 31381.78897 | K8: 845760.3684 | L8: 1350680.724 | M8: 13804601.48 | N8: 10553.15 | O8: 9544.35 | P8: 10302.1
A9: Jul-20 | B9: 1941 | C9: 18 | D9: 1886 | E9: 23 | F9: 3950.46271 | G9: 667758.1397 | H9: 1348520.985 | I9: 58631.34716 | J9: 34135.77304 | K9: 667758.1397 | L9: 1348520.985 | M9: 14629658.61 | N9: 11341.4 | O9: 10299.6 | P9: 11073.45
A10: Aug-20 | B10: 1943 | C10: 18 | D10: 1886 | E10: 21 | F10: 3783.65128 | G10: 659450.225 | H10: 1282556.535 | I10: 61074.1207 | J10: 33897.32403 | K10: 659450.225 | L10: 1282556.535 | M10: 15234206.7 | N10: 11794.25 | O10: 10882.25 | P10: 11387.5
A11: Sep-20 | B11: 1946 | C11: 18 | D11: 1892 | E11: 22 | F11: 3596.49061 | G11: 574785.8484 | H11: 1223328.734 | I11: 55605.85152 | J11: 34014.5121 | K11: 574785.8484 | L11: 1223328.734 | M11: 15304722.35 | N11: 11618.1 | O11: 10790.2 | P11: 11247.55
A12: Notes -
A13: Turnover Data compiled for all markets except auction market
A14: $ indicates as on September 30, 2020
A15: Source: NSE

Sheet 19
A1: Table 19: Trends in Cash Segment of MSEI
A2: Year/Month | B2: No. of Companies Listed | C2: No. of Companies Permitted | D2: No. of Companies Traded | E2: No. of Trading Days | F2: No. of Trades (Lakh) | G2: Traded Quantity (Lakh) | H2: Turnover (₹ crore) | I2: Average Daily Turnover (₹ crore) | J2: Average Trade Size (`) | K2: Demat Securities Traded (Lakh) | L2: Demat Turnover (₹ crore) | M2: Market Capitalisation (₹ crore) * | N2: SX 50 Index
N3: High | O3: Low | P3: Close
A4: 2019-20 | B4: 295 | C4: 1256 | D4: 15 | E4: 247 | F4: 0.0075 | G4: 12.98218 | H4: 27.98824717 | I4: 0.113312742 | J4: 373176.6289 | K4: 15.34975823 | L4: 20.30463782 | M4: 11034810.51 | N4: 24440.1 | O4: 15102.84 | P4: 17120.96
A5: 2020-21$ | B5: =B11 -> 297 | C5: 1260 | D5: 5 | E5: =SUM(E6:E11) -> 125 | F5: 0.00178 | G5: 1.09503 | H5: =SUM(H6:H11) -> 3.91179725 | I5: =H5/E5 -> 0.031294378 | J5: =H5/F5*100 -> 219763.8904 | K5: =SUM(K6:K11) -> 0 | L5: =SUM(L6:L11) -> 0 | M5: =M11 -> 14948126.76 | N5: =MAX(N6:N11) -> 23093.36 | O5: =MIN(O6:O11) -> 16065.53 | P5: =P11 -> 22386.29
A6: Apr-20 | B6: 296 | C6: 1257 | D6: 3 | E6: 18 | F6: 0.00013 | G6: 0.19211 | H6: 0.692056 | I6: 0.038447556 | J6: 532350.7692 | K6: 0 | L6: 0 | M6: 12577219.92 | N6: 19582.8 | O6: 16065.53 | P6: 19582.82
A7: May-20 | B7: 295 | C7: 1257 | D7: 0 | E7: 19 | F7: 0 | G7: 0 | H7: 0 | I7: 0 | J7: 0 | K7: 0 | L7: 0 | M7: 12348176.5 | N7: 18975.6 | O7: 17527.78 | P7: 18975.6
A8: Jun-20 | B8: 295 | C8: 1256 | D8: 3 | E8: 22 | F8: 0.00018 | G8: 0.19714 | H8: 0.7096088 | I8: 0.032254945 | J8: 394227.1111 | K8: 0 | L8: 0 | M8: 13487770.94 | N8: 20692.27 | O8: 19439.25 | P8: 20394.99
A9: Jul-20 | B9: 296 | C9: 1257 | D9: 1 | E9: 23 | F9: 7e-05 | G9: 0.0591 | H9: 0.21276 | I9: 0.009250435 | J9: 303942.8571 | K9: 0 | L9: 0 | M9: 14394821.94 | N9: 22504.43 | O9: 20643.12 | P9: 22015.44
A10: Aug-20 | B10: 297 | C10: 1258 | D10: 2 | E10: 21 | F10: 0.00029 | G10: 0.32501 | H10: 1.153661 | I10: 0.054936238 | J10: 397814.1379 | K10: 0 | L10: 0 | M10: 14933471.63 | N10: 23093.36 | O10: 21661.75 | P10: 22609.56
A11: 2020-09-01 | B11: 297 | C11: 1260 | D11: 4 | E11: 22 | F11: 0.00111 | G11: 0.32167 | H11: 1.14371145 | I11: 0.051986884 | J11: 103037.0676 | K11: 0 | L11: 0 | M11: 14948126.76 | N11: 23068.57 | O11: 21505 | P11: 22386.29
A12: Notes -
A13: * The data of the Market Capitalization provided in the Bulletin includes listed as well as permitted to trade companies
A14: $ indicates as on September 30, 2020
A15: Source: MSEI

Sheet 20
A1: Table 20: City-wise Distribution of Turnover on Cash Segments
A2: (Percentage share in Turnover)
A3: S.No | B3: City | C3: BSE | E3: NSE | G3: MSEI
C4: 2019-20 | D4: 2020-09-01 | E4: 2019-20 | F4: 2020-09-01 | G4: 2019-20 | H4: 2020-09-01
A5: 1 | B5: Ahmedabad | C5: 2.205511324 | D5: 11.42745854 | E5: 1.65 | F5: 6.2 | G5: 1.04 | H5: 15.98
A6: 2 | B6: Bengaluru | C6: 1.1804078 | D6: 0.619576082 | E6: 3.22 | F6: 2.23 | G6: 0 | H6: 0
A7: 3 | B7: Vadodra | C7: 0.730764059 | D7: 0.463379721 | E7: 0.24 | F7: 0.19 | G7: 0 | H7: 0
A8: 4 | B8: Bhubneshwar | C8: 0.016662055 | D8: 0.010830515 | E8: 0 | F8: 0 | G8: 0 | H8: 0
A9: 5 | B9: Chennai | C9: 0.733786792 | D9: 0.371937921 | E9: 0.87 | F9: 0.61 | G9: 0 | H9: 0
A10: 6 | B10: Cochin/Ernakulum | C10: 0.080620224 | D10: 0.060474792 | E10: 0.7 | F10: 0.6 | G10: 0 | H10: 0
A11: 7 | B11: Coimbatore | C11: 0.025038392 | D11: 0.02032277 | E11: 0.05 | F11: 0.05 | G11: 0 | H11: 0
A12: 8 | B12: New Delhi | C12: 1.080805639 | D12: 1.721296572 | E12: 5.92 | F12: 5.35 | G12: 48.72 | H12: 29.31
A13: 9 | B13: Guwahati | C13: 0.027876812 | D13: 0.026058701 | E13: 0 | F13: 0 | G13: 0 | H13: 0
A14: 10 | B14: Hyderabad | C14: 0.280567373 | D14: 0.102134266 | E14: 3.13 | F14: 3.8 | G14: 0 | H14: 0
A15: 11 | B15: Indore | C15: 0.246330406 | D15: 0.323524511 | E15: 0.3 | F15: 0.35 | G15: 0 | H15: 0
A16: 12 | B16: Jaipur | C16: 0.4909551 | D16: 0.377714197 | E16: 0.3 | F16: 0.37 | G16: 0 | H16: 8.34
A17: 13 | B17: Kanpur | C17: 0.252796584 | D17: 0.229353503 | E17: 0.08 | F17: 0.13 | G17: 1.93 | H17: 4.14
A18: 14 | B18: Kolkata | C18: 3.411444209 | D18: 4.23080175 | E18: 5.24 | F18: 4.18 | G18: 0 | H18: 0
A19: 15 | B19: Ludhiana | C19: 0.073506303 | D19: 0.09013177 | E19: 0.11 | F19: 0.07 | G19: 0 | H19: 0
A20: 16 | B20: Mangalore | C20: 0.013216734 | D20: 0.007235466 | E20: 0 | F20: 0 | G20: 0 | H20: 0
A21: 17 | B21: Mumbai | C21: 51.07366618 | D21: 36.00397184 | E21: 64.04 | F21: 67.09 | G21: 21.1 | H21: 0
A22: 18 | B22: Patna | C22: 0.033395599 | D22: 0.013282184 | E22: 0 | F22: 0 | G22: 0 | H22: 0
A23: 19 | B23: Pune | C23: 0.263635306 | D23: 0.166936456 | E23: 0.08 | F23: 0.06 | G23: 0 | H23: 0
A24: 20 | B24: Rajkot | C24: 1.609832749 | D24: 1.557008984 | E24: 1.07 | F24: 0.83 | G24: 0 | H24: 0
A25: 21 | B25: Others | C25: 36.16918036 | D25: 42.17656946 | E25: 13 | F25: 7.9 | G25: 27.21 | H25: 42.23
B26: Total | C26: 100 | D26: 100 | E26: 100 | F26: 100 | G26: 100 | H26: 100
A27: Notes -
A28: The city-wise distribution of turnover is based on the cities uploaded in the UCC database of the Exchange for clientele trades and members registered office city for proprietary trades.
A30: Source: BSE, NSE and MSEI.

Sheet 21
A1: Table 21: Category-wise Share of Turnover in Cash Segment of BSE
A2: Year / Month | B2: Percentage Share in Turnover
B3: Proprietary | C3: FPIs | D3: Mutual Funds | E3: Banks | F3: Others
A4: 2019-20 | B4: 27.74 | C4: 9.16 | D4: 7.38 | E4: 0.12 | F4: 55.6
A5: 2020-21$ | B5: 32.435 | C5: 12.64833333 | D5: 3.02 | E5: 0.031666667 | F5: 51.86
A6: Apr-20 | B6: 38.65 | C6: 9.98 | D6: 2.74 | E6: 0.01 | F6: 48.61
A7: May-20 | B7: 28.1 | C7: 22 | D7: 5.33 | E7: 0.02 | F7: 44.54
A8: Jun-20 | B8: 27.04 | C8: 24 | D8: 2.89 | E8: 0.01 | F8: 46.06
A9: Jul-20 | B9: 36.62 | C9: 3.13 | D9: 2.26 | E9: 0.01 | F9: 57.98
A10: Aug-20 | B10: 30.41 | C10: 8.97 | D10: 1.91 | E10: 0.1 | F10: 58.61
A11: 2020-09-01 | B11: 33.79 | C11: 7.81 | D11: 2.99 | E11: 0.05 | F11: 55.36
A12: Notes -
A13: $ indicates as on September 30, 2020
A14: Source: BSE.

Sheet 22
A1: Table 22: Category-wise Share of Turnover in Cash Segment of NSE
A2: Year /Month | B2: Percentage Share in Turnover
B3: Proprietary | C3: FPIs | D3: Mutual Funds | E3: Banks | F3: Others
A4: 2019-20 | B4: 22.46 | C4: 10.68 | D4: 5.27 | E4: 0.1 | F4: 61.48
A5: 2020-21$ | B5: 23.15 | C5: 10.63 | D5: 5.2 | E5: 0.1 | F5: 60.92
A6: Apr-20 | B6: 22.68 | C6: 13.45 | D6: 6.19 | E6: 0.06 | F6: 57.62
A7: May-20 | B7: 21.62 | C7: 13.44 | D7: 6.17 | E7: 0.05 | F7: 58.72
A8: Jun-20 | B8: 23.22 | C8: 9.32 | D8: 5 | E8: 0.17 | F8: 62.29
A9: Jul-20 | B9: 21.67 | C9: 8.16 | D9: 4.69 | E9: 0.08 | F9: 65.4
A10: Aug-20 | B10: 23.12 | C10: 9.05 | D10: 4.31 | E10: 0.12 | F10: 63.39
A11: 2020-09-01 | B11: 26.6 | C11: 10.38 | D11: 4.84 | E11: 0.09 | F11: 58.1
A12: Notes -
A13: $ indicates as on September 30, 2020
A14: Source: NSE.

Sheet 23
A1: Table 23: Category-wise Share of Turnover in Cash Segment of MSEI
A2: Year / Month | B2: Percentage Share in Turnover
B3: Proprietary | C3: FPIs | D3: Mutual Funds | E3: Banks | F3: Others
A4: 2019-20 | B4: 0 | C4: 0 | D4: 0 | E4: 0 | F4: 100
A5: 2020-21$ | B5: 0 | C5: 0 | D5: 0 | E5: 0 | F5: 100
A6: Apr-20 | B6: 0 | C6: 0 | D6: 0 | E6: 0 | F6: 100
A7: May-20 | B7: 0 | C7: 0 | D7: 0 | E7: 0 | F7: 0
A8: Jun-20 | B8: 0 | C8: 0 | D8: 0 | E8: 0 | F8: 100
A9: Jul-20 | B9: 0 | C9: 0 | D9: 0 | E9: 0 | F9: 100
A10: Aug-20 | B10: 0 | C10: 0 | D10: 0 | E10: 0 | F10: 100
A11: 2020-09-01 | B11: 0 | C11: 0 | D11: 0 | E11: 0 | F11: 100
A12: Notes -
A13: $ indicates as on September 30, 2020
A14: Source: MSEI.

Sheet 24
A1: Table 24: Component Stocks: S&P BSE Sensex during Sep-20
A2: Sl.No | B2: Name of Security | C2: Issued Capital (` crore) | D2: Free Float Market Capitalisation (` crore) | E2: Weightage (per cent) | F2: Beta | G2: R2 | H2: Daily Volatility (per cent) | I2: Monthly Return (per cent) | J2: Impact Cost (per cent)
A3: 1 | B3: RELIANCE | C3: 6762.04 | D3: 721470.6811 | E3: 17.37703595 | F3: 1.09 | G3: 0.594142 | H3: 2.87 | I3: 7.466743 | J3: 0.17
A4: 2 | B4: HDFC BANK | C4: 550.37 | D4: 439172.7475 | E4: 10.57772799 | F4: 1.05 | G4: 0.720242 | H4: 2.51 | I4: -3.22812 | J4: 0.23
A5: 3 | B5: INFOSYS LTD | C5: 2129.71 | D5: 372328.6009 | E5: 8.967748312 | F5: 0.87 | G5: 0.410234 | H5: 2.74 | I5: 8.562197 | J5: 0.28
A6: 4 | B6: HDFC | C6: 359.16 | D6: 311582.2024 | E6: 7.504636396 | F6: 1.21 | G6: 0.707461 | H6: 2.92 | I6: -5.093716 | J6: 0.23
A7: 5 | B7: TCS LTD. | C7: 375.24 | D7: 261773.8824 | E7: 6.304974386 | F7: 0.72 | G7: 0.426894 | H7: 2.24 | I7: 10.421698 | J7: 0.2
A8: 6 | B8: ICICI BANK | C8: 1379.23 | D8: 244718.1364 | E8: 5.894176943 | F8: 1.39 | G8: 0.722991 | H8: 3.31 | I8: -10.151898 | J8: 0.3
A9: 7 | B9: HIND UNI LT | C9: 234.96 | D9: 184646.5148 | E9: 4.447317416 | F9: 0.6 | G9: 0.331113 | H9: 2.12 | I9: -2.27729 | J9: 0.13
A10: 8 | B10: KOTAK MAH.BK | C10: 989.6 | D10: 165621.7393 | E10: 3.989094766 | F10: 1.06 | G10: 0.603777 | H10: 2.77 | I10: -9.556752 | J10: 0.12
A11: 9 | B11: ITC LTD. | C11: 1230.5 | D11: 150046.9538 | E11: 3.613967107 | F11: 0.65 | G11: 0.294613 | H11: 2.43 | I11: -10.196078 | J11: 0.23
A12: 10 | B12: AXIS BANK | C12: 612.03 | D12: 111713.8295 | E12: 2.690691779 | F12: 1.58 | G12: 0.6356 | H12: 4.02 | I12: -14.578931 | J12: 0.21
A13: 11 | B13: LARSEN & TOU | C13: 280.81 | D13: 108697.3554 | E13: 2.618038269 | F13: 0.94 | G13: 0.587165 | H13: 2.49 | I13: -4.532952 | J13: 0.15
A14: 12 | B14: BHARTI ARTL | C14: 2727.78 | D14: 101034.7334 | E14: 2.433479614 | F14: 0.77 | G14: 0.291674 | H14: 2.89 | I14: -18.104874 | J14: 0.46
A15: 13 | B15: MARUTISUZUK | C15: 151.04 | D15: 89622.72563 | E15: 2.158614849 | F15: 1.12 | G15: 0.578493 | H15: 2.98 | I15: -1.390046 | J15: 0.25
A16: 14 | B16: ASIAN PAINTS | C16: 95.92 | D16: 89603.33729 | E16: 2.158147869 | F16: 0.7 | G16: 0.426942 | H16: 2.17 | I16: 4.421036 | J16: 0.23
A17: 15 | B17: HCL TECHNO | C17: 542.73 | D17: 88060.48291 | E17: 2.120987335 | F17: 0.75 | G17: 0.091518 | H17: 5.03 | I17: 17.06332 | J17: 0.25
A18: 16 | B18: BAJFINANCE | C18: 120.52 | D18: 86762.95211 | E18: 2.08973556 | F18: 1.49 | G18: 0.592504 | H18: 3.91 | I18: -6.081187 | J18: 0.4
A19: 17 | B19: STATE BANK | C19: 892.46 | D19: 71148.60045 | E19: 1.713654928 | F19: 1.12 | G19: 0.558993 | H19: 3.04 | I19: -12.609003 | J19: 0.19
A20: 18 | B20: MAH & MAH | C20: 621.6 | D20: 58120.60928 | E20: 1.399868274 | F20: 0.98 | G20: 0.425771 | H20: 3.04 | I20: 0.189612 | J20: 0.12
A21: 19 | B21: NESTLE (I) | C21: 96.42 | D21: 56809.64738 | E21: 1.368293003 | F21: 0.57 | G21: 0.319495 | H21: 2.03 | I21: -0.134202 | J21: 0.13
A22: 20 | B22: SUN PHARMA. | C22: 239.93 | D22: 54037.01804 | E22: 1.301512632 | F22: 0.6 | G22: 0.263612 | H22: 2.38 | I22: -3.471552 | J22: 0.27
A23: 21 | B23: TITAN | C23: 88.78 | D23: 50091.99337 | E23: 1.206494446 | F23: 0.86 | G23: 0.437822 | H23: 2.64 | I23: 9.215793 | J23: 0.26
A24: 22 | B24: TECH MAH | C24: 483.2 | D24: 48828.9652 | E24: 1.176073687 | F24: 0.82 | G24: 0.420664 | H24: 2.56 | I24: 6.813275 | J24: 0.33
A25: 23 | B25: ULTRATECH CM | C25: 288.63 | D25: 46720.83432 | E25: 1.125298143 | F25: 0.91 | G25: 0.548525 | H25: 2.47 | I25: 3.607178 | J25: 0.11
A26: 24 | B26: POWER GRID | C26: 5231.59 | D26: 41682.17017 | E26: 1.003939021 | F26: 0.58 | G26: 0.305439 | H26: 2.13 | I26: -9.111235 | J26: 0.28
A27: 25 | B27: NTPC LTD | C27: 9894.56 | D27: 41307.80074 | E27: 0.994922118 | F27: 0.67 | G27: 0.351435 | H27: 2.27 | I27: -11.709844 | J27: 0.33
A28: 26 | B28: BAJAJ AUTO | C28: 289.37 | D28: 37495.58202 | E28: 0.90310264 | F28: 0.79 | G28: 0.478835 | H28: 2.32 | I28: -3.091187 | J28: 0.13
A29: 27 | B29: BAJAJ FINSE | C29: 79.57 | D29: 35380.86828 | E29: 0.852168544 | F29: 1.37 | G29: 0.631659 | H29: 3.48 | I29: -5.434563 | J29: 0.31
A30: 28 | B30: INDUSIND BNK | C30: 756.31 | D30: 31754.84721 | E30: 0.764833743 | F30: 1.68 | G30: 0.397429 | H30: 5.37 | I30: -16.395524 | J30: 0.56
A31: 29 | B31: TATA STEEL | C31: 1145.9 | D31: 26344.3432 | E31: 0.634518645 | F31: 1.07 | G31: 0.489035 | H31: 3.08 | I31: -12.935624 | J31: 0.33
A32: 30 | B32: ONGC CORPN | C32: 6290.14 | D32: 25282.58671 | E32: 0.60894563 | F32: 1.01 | G32: 0.389313 | H32: 3.29 | I32: -15.539305 | J32: 0.37
A33: Notes: 1. Beta & R2 are calculated for the trailing 12 months. Beta measures the degree to which any portfolio of stocks is affected as compared to the effect on the market as a whole.
A34: 2. The coefficient of determination (R2) measures the strength of relationship between two variables the return on a security versus that of the market.
A35: 3. Volatility is the standard deviation of the daily returns for the trailing 12 months.
A36: 4. Impact cost is calculated as the difference between actual buy price and ideal buy price, divided by ideal buy price, multiplied by 100. Hence ideal price is calculated as (best buy + best sell)/2.
A37: 5. The above is calculated for a month for the portfolio size of ` 5 lakh. It is calculated for the current month.
A38: Source: BSE.

Sheet 25
A1: Table 25: Component Stocks: Nifty 50 Index during Sep-20
A2: Sl. No | B2: Name of Security | C2: Issued Capital (`crore) | D2: Free Float Market Capitalisation (` crore) | E2: Weightage (per cent) | F2: Beta | G2: R2 | H2: Daily Volatility (per cent) | I2: Monthly Return (per cent) | J2: Impact Cost (per cent)
A3: 1 | B3: Reliance Industries Ltd. | C3: 6339.41 | D3: 722387.58 | E3: 14.9 | F3: 1.13 | G3: 0.58 | H3: 1.94 | I3: 7.38 | J3: 0.02
A4: 2 | B4: HDFC Bank Ltd. | C4: 550.31 | D4: 468918.15 | E4: 9.67 | F4: 1.06 | G4: 0.69 | H4: 1.25 | I4: -3.34 | J4: 0.02
A5: 3 | B5: Infosys Ltd. | C5: 2129.7 | D5: 369330.03 | E5: 7.62 | F5: 0.88 | G5: 0.4 | H5: 1.7 | I5: 8.58 | J5: 0.02
A6: 4 | B6: Housing Development Finance Corporation Ltd. | C6: 358.26 | D6: 311696.08 | E6: 6.43 | F6: 1.24 | G6: 0.69 | H6: 1.3 | I6: -5.05 | J6: 0.02
A7: 5 | B7: Tata Consultancy Services Ltd. | C7: 375.24 | D7: 261857.92 | E7: 5.4 | F7: 0.73 | G7: 0.41 | H7: 2.09 | I7: 10.41 | J7: 0.03
A8: 6 | B8: ICICI Bank Ltd. | C8: 1379.2 | D8: 244635.44 | E8: 5.05 | F8: 1.41 | G8: 0.71 | H8: 2.24 | I8: -10.1 | J8: 0.03
A9: 7 | B9: Kotak Mahindra Bank Ltd. | C9: 989.6 | D9: 185742.32 | E9: 3.83 | F9: 1.07 | G9: 0.58 | H9: 1.33 | I9: -9.5 | J9: 0.02
A10: 8 | B10: Hindustan Unilever Ltd. | C10: 234.96 | D10: 184659.85 | E10: 3.81 | F10: 0.64 | G10: 0.34 | H10: 1.25 | I10: -2.32 | J10: 0.02
A11: 9 | B11: ITC Ltd. | C11: 1230.47 | D11: 150003.27 | E11: 3.09 | F11: 0.66 | G11: 0.28 | H11: 1.43 | I11: -10.15 | J11: 0.03
A12: 10 | B12: Larsen & Toubro Ltd. | C12: 280.81 | D12: 110131.37 | E12: 2.27 | F12: 0.95 | G12: 0.58 | H12: 1.61 | I12: -4.59 | J12: 0.02
A13: 11 | B13: Axis Bank Ltd. | C13: 612.02 | D13: 105256.69 | E13: 2.17 | F13: 1.58 | G13: 0.62 | H13: 2.66 | I13: -14.51 | J13: 0.03
A14: 12 | B14: Bharti Airtel Ltd. | C14: 2727.78 | D14: 101046.74 | E14: 2.08 | F14: 0.78 | G14: 0.28 | H14: 3.23 | I14: -17.96 | J14: 0.03
A15: 13 | B15: Asian Paints Ltd. | C15: 95.92 | D15: 89551.47 | E15: 1.85 | F15: 0.71 | G15: 0.42 | H15: 1.69 | I15: 4.6 | J15: 0.02
A16: 14 | B16: Maruti Suzuki India Ltd. | C16: 151.04 | D16: 89630.72 | E16: 1.85 | F16: 1.16 | G16: 0.58 | H16: 1.87 | I16: -1.41 | J16: 0.02
A17: 15 | B17: HCL Technologies Ltd. | C17: 542.73 | D17: 88096.42 | E17: 1.82 | F17: 0.77 | G17: 0.39 | H17: 2.69 | I17: 16.88 | J17: 0.03
A18: 16 | B18: Bajaj Finance Ltd. | C18: 120.52 | D18: 86928.29 | E18: 1.79 | F18: 1.47 | G18: 0.57 | H18: 2.81 | I18: -6 | J18: 0.02
A19: 17 | B19: State Bank of India | C19: 892.46 | D19: 71148.79 | E19: 1.47 | F19: 1.16 | G19: 0.55 | H19: 2.19 | I19: -12.55 | J19: 0.03
A20: 18 | B20: Dr. Reddy's Laboratories Ltd. | C20: 83.13 | D20: 62962.33 | E20: 1.3 | F20: 0.48 | G20: 0.18 | H20: 2.88 | I20: 21.65 | J20: 0.03
A21: 19 | B21: Mahindra & Mahindra Ltd. | C21: 621.6 | D21: 58191.73 | E21: 1.2 | F21: 1.04 | G21: 0.43 | H21: 2.72 | I21: 0.16 | J21: 0.02
A22: 20 | B22: Nestle India Ltd. | C22: 96.42 | D22: 56787.9 | E22: 1.17 | F22: 0.61 | G22: 0.34 | H22: 1.58 | I22: -0.19 | J22: 0.03
A23: 21 | B23: Sun Pharmaceutical Industries Ltd. | C23: 239.93 | D23: 54033.62 | E23: 1.11 | F23: 0.64 | G23: 0.27 | H23: 1.96 | I23: -3.81 | J23: 0.03
A24: 22 | B24: Titan Company Ltd. | C24: 88.78 | D24: 50127.47 | E24: 1.03 | F24: 0.88 | G24: 0.43 | H24: 2.03 | I24: 9.16 | J24: 0.02
A25: 23 | B25: Tech Mahindra Ltd. | C25: 483.2 | D25: 48969.56 | E25: 1.01 | F25: 0.86 | G25: 0.43 | H25: 2.04 | I25: 6.85 | J25: 0.03
A26: 24 | B26: UltraTech Cement Ltd. | C26: 288.63 | D26: 46752.23 | E26: 0.96 | F26: 0.94 | G26: 0.56 | H26: 1.45 | I26: 3.73 | J26: 0.03
A27: 25 | B27: Wipro Ltd. | C27: 1142.9 | D27: 46586.24 | E27: 0.96 | F27: 0.67 | G27: 0.31 | H27: 1.8 | I27: 15.57 | J27: 0.03
A28: 26 | B28: Britannia Industries Ltd. | C28: 24.07 | D28: 44801.29 | E28: 0.92 | F28: 0.78 | G28: 0.43 | H28: 1.51 | I28: 1.94 | J28: 0.02
A29: 27 | B29: HDFC Life Insurance Company Ltd. | C29: 2019.34 | D29: 44055.06 | E29: 0.91 | F29: 1.08 | G29: 0.53 | H29: 1.27 | I29: -2.68 | J29: 0.02
A30: 28 | B30: Power Grid Corporation of India Ltd. | C30: 5231.59 | D30: 41643.72 | E30: 0.86 | F30: 0.6 | G30: 0.31 | H30: 1.8 | I30: -9.22 | J30: 0.04
A31: 29 | B31: NTPC Ltd. | C31: 9894.56 | D31: 41259.31 | E31: 0.85 | F31: 0.67 | G31: 0.34 | H31: 1.96 | I31: -11.72 | J31: 0.04
A32: 30 | B32: Hero MotoCorp Ltd. | C32: 39.95 | D32: 40863.66 | E32: 0.84 | F32: 0.87 | G32: 0.4 | H32: 1.56 | I32: 4.7 | J32: 0.02
A33: 31 | B33: Cipla Ltd. | C33: 161.27 | D33: 39353.99 | E33: 0.81 | F33: 0.48 | G33: 0.14 | H33: 2.7 | I33: 8.57 | J33: 0.03
A34: 32 | B34: Divi's Laboratories Ltd. | C34: 53.09 | D34: 38838.48 | E34: 0.8 | F34: 0.55 | G34: 0.23 | H34: 2.38 | I34: -2.4 | J34: 0.03
A35: 33 | B35: Bajaj Auto Ltd. | C35: 289.37 | D35: 37516.29 | E35: 0.77 | F35: 0.81 | G35: 0.46 | H35: 1.31 | I35: -2.9 | J35: 0.03
A36: 34 | B36: Bajaj Finserv Ltd. | C36: 79.57 | D36: 35390.43 | E36: 0.73 | F36: 1.35 | G36: 0.62 | H36: 2.32 | I36: -5.46 | J36: 0.04
A37: 35 | B37: SBI Life Insurance Company Ltd. | C37: 1000.05 | D37: 31648.02 | E37: 0.65 | F37: 0.92 | G37: 0.46 | H37: 1.4 | I37: -1.97 | J37: 0.04
A38: 36 | B38: Eicher Motors Ltd. | C38: 27.32 | D38: 30694.31 | E38: 0.63 | F38: 0.88 | G38: 0.39 | H38: 1.71 | I38: 5.3 | J38: 0.02
A39: 37 | B39: IndusInd Bank Ltd. | C39: 756.31 | D39: 29915.97 | E39: 0.62 | F39: 1.66 | G39: 0.35 | H39: 3.54 | I39: -16.31 | J39: 0.04
A40: 38 | B40: Grasim Industries Ltd. | C40: 131.59 | D40: 29377.81 | E40: 0.61 | F40: 1.17 | G40: 0.55 | H40: 2.92 | I40: 10.28 | J40: 0.03
A41: 39 | B41: Bharat Petroleum Corporation Ltd. | C41: 2169.25 | D41: 28336.62 | E41: 0.58 | F41: 1.07 | G41: 0.39 | H41: 2.69 | I41: -13.43 | J41: 0.03
A42: 40 | B42: JSW Steel Ltd. | C42: 241.72 | D42: 27526.7 | E42: 0.57 | F42: 1.32 | G42: 0.63 | H42: 2.64 | I42: 2.95 | J42: 0.03
A43: 41 | B43: UPL Ltd. | C43: 152.81 | D43: 27665.17 | E43: 0.57 | F43: 1.11 | G43: 0.46 | H43: 2.18 | I43: -0.6 | J43: 0.03
A44: 42 | B44: Shree Cement Ltd. | C44: 36.08 | D44: 27042.78 | E44: 0.56 | F44: 0.84 | G44: 0.49 | H44: 1.88 | I44: -0.13 | J44: 0.03
A45: 43 | B45: Tata Steel Ltd. | C45: 1126.49 | D45: 27152.06 | E45: 0.56 | F45: 1.13 | G45: 0.51 | H45: 2.64 | I45: -12.89 | J45: 0.03
A46: 44 | B46: Hindalco Industries Ltd. | C46: 224.63 | D46: 25587.99 | E46: 0.53 | F46: 1.41 | G46: 0.6 | H46: 3.12 | I46: -5.4 | J46: 0.03
A47: 45 | B47: Adani Ports and Special Economic Zone Ltd. | C47: 406.35 | D47: 24996.64 | E47: 0.52 | F47: 0.91 | G47: 0.44 | H47: 2.46 | I47: -3.94 | J47: 0.04
A48: 46 | B48: Oil & Natural Gas Corporation Ltd. | C48: 6290.14 | D48: 25264.35 | E48: 0.52 | F48: 1.03 | G48: 0.36 | H48: 2.15 | I48: -15.5 | J48: 0.04
A49: 47 | B49: Coal India Ltd. | C49: 6162.73 | D49: 24305.8 | E49: 0.5 | F49: 0.66 | G49: 0.26 | H49: 1.54 | I49: -13.66 | J49: 0.04
A50: 48 | B50: Tata Motors Ltd. | C50: 617.79 | D50: 23882.09 | E50: 0.49 | F50: 1.31 | G50: 0.38 | H50: 3.14 | I50: -6.91 | J50: 0.03
A51: 49 | B51: Indian Oil Corporation Ltd. | C51: 9414.16 | D51: 18784.07 | E51: 0.39 | F51: 0.72 | G51: 0.4 | H51: 1.93 | I51: -13.87 | J51: 0.04
A52: 50 | B52: GAIL (India) Ltd. | C52: 4510.14 | D52: 16050.69 | E52: 0.33 | F52: 0.8 | G52: 0.28 | H52: 2.11 | I52: -9.25 | J52: 0.04
A53: Notes: 1. Beta & R2 are calculated for the the trailing 12 months. Beta measures the degree to which any portfolio of stocks is affected as compared to the effect on the market as a whole.
A54: 2. The coefficient of determination (R2) measures the strength of relationship between two variables the return on a security versus that of the market.
A55: 3. Volatility is the standard deviation of the daily returns for the the trailing 12 months.
A56: 4. Impact cost is calculated as the difference between actual buy price and ideal buy price, divided by ideal buy price, multiplied by 100. Hence ideal price is calculated as (best buy + best sell)/2.
A57: 5. Impact Cost for Nifty 50 is for a portfolio of Rs. 50 lakhs and is weightage average impact cost.
A58: Source: NSE.

Sheet 26
A1: Table 26: Component Stocks: SX40 Index
A2: S.No. | B2: Name of Security | C2: Issued Capital (₹ crore) | D2: Free Float Market Capitalisation (₹ crore) | E2: Weightage (per cent) | F2: Beta | G2: R2 | H2: Daily Volatility (per cent) | I2: Monthly Return (per cent) | J2: Impact Cost (per cent) *
A3: 1 | B3: RELIANCE | C3: 6339.41072 | D3: 746258.0266 | E3: 16.36 | F3: 1.14 | G3: 0.59 | H3: 0 | I3: 0 | J3: Na
A4: 2 | B4: HDFCBANK | C4: 550.2592291 | D4: 447587.3591 | E4: 9.81 | F4: 1.06 | G4: 0.69 | H4: 0 | I4: 0 | J4: Na
A5: 3 | B5: INFY | C5: 2183.184432 | D5: 393581.2789 | E5: 8.63 | F5: 0.9 | G5: 0.41 | H5: 0 | I5: 0 | J5: Na
A6: 4 | B6: HDFC | C6: 347.780708 | D6: 289070.0217 | E6: 6.34 | F6: 1.24 | G6: 0.69 | H6: 0 | I6: 0 | J6: Na
A7: 5 | B7: TCS | C7: 375.2384706 | D7: 269355.9944 | E7: 5.9 | F7: 0.74 | G7: 0.42 | H7: 0 | I7: 0 | J7: Na
A8: 6 | B8: ICICIBANK | C8: 1379.211126 | D8: 234242.7297 | E8: 5.13 | F8: 1.41 | G8: 0.71 | H8: 0 | I8: 0 | J8: Na
A9: 7 | B9: HINDUNILVR | C9: 234.9556255 | D9: 190400.3386 | E9: 4.17 | F9: 0.64 | G9: 0.34 | H9: 0 | I9: 0 | J9: Na
A10: 8 | B10: KOTAKBANK | C10: 989.6039045 | D10: 173702.4614 | E10: 3.81 | F10: 1.08 | G10: 0.58 | H10: 0 | I10: 0 | J10: Na
A11: 9 | B11: ITC | C11: 1230.299819 | D11: 153624.308 | E11: 3.37 | F11: 0.66 | G11: 0.28 | H11: 0 | I11: 0 | J11: Na
A12: 10 | B12: LT | C12: 280.7542044 | D12: 112975.04 | E12: 2.48 | F12: 0.95 | G12: 0.57 | H12: 0 | I12: 0 | J12: Na
A13: 11 | B13: AXISBANK | C13: 611.9369268 | D13: 106411.2292 | E13: 2.33 | F13: 1.57 | G13: 0.62 | H13: 0 | I13: 0 | J13: Na
A14: 12 | B14: BHARTIARTL | C14: 2727.778677 | D14: 103485.6619 | E14: 2.27 | F14: 0.78 | G14: 0.28 | H14: 0 | I14: 0 | J14: Na
A15: 13 | B15: ASIANPAINT | C15: 95.919779 | D15: 92683.34285 | E15: 2.03 | F15: 0.71 | G15: 0.41 | H15: 0 | I15: 0 | J15: Na
A16: 14 | B16: MARUTI | C16: 151.04003 | D16: 91777.7078 | E16: 2.01 | F16: 1.16 | G16: 0.58 | H16: 0 | I16: 0 | J16: Na
A17: 15 | B17: HCLTECH | C17: 542.7330192 | D17: 90024.74093 | E17: 1.97 | F17: 0.78 | G17: 0.39 | H17: 0 | I17: 0 | J17: Na
A18: 16 | B18: BAJFINANCE | C18: 120.5099678 | D18: 82579.34571 | E18: 1.81 | F18: 1.45 | G18: 0.56 | H18: 0 | I18: 0 | J18: Na
A19: 17 | B19: SBIN | C19: 892.4611534 | D19: 67949.19201 | E19: 1.49 | F19: 1.15 | G19: 0.55 | H19: 0 | I19: 0 | J19: Na
A20: 18 | B20: DRREDDY | C20: 85.6614295 | D20: 67607.03867 | E20: 1.48 | F20: 0.48 | G20: 0.18 | H20: 0 | I20: 0 | J20: Na
A21: 19 | B21: M&M | C21: 621.596272 | D21: 59969.33567 | E21: 1.31 | F21: 1.03 | G21: 0.43 | H21: 0 | I21: 0 | J21: Na
A22: 20 | B22: NESTLEIND | C22: 96.415716 | D22: 58887.66774 | E22: 1.29 | F22: 0.61 | G22: 0.34 | H22: 0 | I22: 0 | J22: Na
A23: 21 | B23: SUNPHARMA | C23: 239.927533 | D23: 56061.20807 | E23: 1.23 | F23: 0.63 | G23: 0.27 | H23: 0 | I23: 0 | J23: Na
A24: 22 | B24: TECHM | C24: 493.4938675 | D24: 52261.80471 | E24: 1.15 | F24: 0.86 | G24: 0.43 | H24: 0 | I24: 0 | J24: Na
A25: 23 | B25: TITAN | C25: 88.778616 | D25: 51754.64274 | E25: 1.13 | F25: 0.88 | G25: 0.43 | H25: 0 | I25: 0 | J25: Na
A26: 24 | B26: ULTRACEMCO | C26: 288.626076 | D26: 48034.64523 | E26: 1.05 | F26: 0.94 | G26: 0.55 | H26: 0 | I26: 0 | J26: Na
A27: 25 | B27: WIPRO | C27: 1142.990178 | D27: 47241.40156 | E27: 1.04 | F27: 0.67 | G27: 0.31 | H27: 0 | I27: 0 | J27: Na
A28: 26 | B28: BRITANNIA | C28: 24.072563 | D28: 46562.41911 | E28: 1.02 | F28: 0.77 | G28: 0.42 | H28: 0 | I28: 0 | J28: Na
A29: 27 | B29: HEROMOTOCO | C29: 39.9499046 | D29: 42256.6497 | E29: 0.93 | F29: 0.87 | G29: 0.39 | H29: 0 | I29: 0 | J29: Na
A30: 28 | B30: NTPC | C30: 9894.55728 | D30: 42498.16103 | E30: 0.93 | F30: 0.67 | G30: 0.34 | H30: 0 | I30: 0 | J30: Na
A31: 29 | B31: POWERGRID | C31: 5231.589648 | D31: 42613.36645 | E31: 0.93 | F31: 0.6 | G31: 0.3 | H31: 0 | I31: 0 | J31: Na
A32: 30 | B32: BAJAJ-AUTO | C32: 289.36702 | D32: 35818.21406 | E32: 0.79 | F32: 0.8 | G32: 0.46 | H32: 0 | I32: 0 | J32: Na
A33: 31 | B33: INDUSINDBK | C33: 756.313283 | D33: 30364.33304 | E33: 0.67 | F33: 1.65 | G33: 0.34 | H33: 0 | I33: 0 | J33: Na
A34: 32 | B34: GRASIM | C34: 131.5856436 | D34: 30029.61897 | E34: 0.66 | F34: 1.16 | G34: 0.54 | H34: 0 | I34: 0 | J34: Na
A35: 33 | B35: BPCL | C35: 2169.214044 | D35: 29066.60216 | E35: 0.64 | F35: 1.07 | G35: 0.4 | H35: 0 | I35: 0 | J35: Na
A36: 34 | B36: TATASTEEL | C36: 1126.492374 | D36: 27842.04088 | E36: 0.61 | F36: 1.12 | G36: 0.5 | H36: 0 | I36: 0 | J36: Na
A37: 35 | B37: ONGC | C37: 6290.139603 | D37: 26297.74378 | E37: 0.58 | F37: 1.03 | G37: 0.36 | H37: 0 | I37: 0 | J37: Na
A38: 36 | B38: HINDALCO | C38: 224.6352581 | D38: 26402.13227 | E38: 0.58 | F38: 1.4 | G38: 0.59 | H38: 0 | I38: 0 | J38: Na
A39: 37 | B39: ADANIPORTS | C39: 406.3503522 | D39: 26064.72673 | E39: 0.57 | F39: 0.91 | G39: 0.44 | H39: 0 | I39: 0 | J39: Na
A40: 38 | B40: COALINDIA | C40: 6162.728327 | D40: 24893.48777 | E40: 0.55 | F40: 0.65 | G40: 0.25 | H40: 0 | I40: 0 | J40: Na
A41: 39 | B41: TATAMOTORS | C41: 617.7947788 | D41: 24441.35365 | E41: 0.54 | F41: 1.31 | G41: 0.38 | H41: 0 | I41: 0 | J41: Na
A42: 40 | B42: IOC | C42: 9414.158922 | D42: 19031.76471 | E42: 0.42 | F42: 0.72 | G42: 0.4 | H42: 0 | I42: 0 | J42: Na
A43: Notes:
A44: 1. Market Cap, Beta & R2 as on the last day of the month
A45: 2. Beta & R2 are calculated for the trailing 12 months
A46: 3. Volatility for the current month
A47: 4. *Since there is no trading in the SX40 constituents, the Impact Cost for the given stocks is NiL.
A48: Source: MSEI.

Sheet 27
A1: Table 27: Advances/Declines in Cash Segment
A2: Year/ Month | B2: BSE | E2: NSE | H2: MSEI
B3: Advances | C3: Declines | D3: Advance/Decline Ratio | E3: Advances | F3: Declines | G3: Advance/Decline Ratio | H3: Advances | I3: Declines | J3: Advance/Decline Ratio
A4: 2019-20 | B4: 793 | C4: 3134 | D4: 0.25303127 | E4: 440 | F4: 1530 | G4: 0.29 | H4: 6 | I4: 3 | J4: 2
A5: 2020-21$ | B5: 1093 | C5: 2644 | D5: 0.413388805 | E5: 511 | F5: 1406 | G5: 0.36 | H5: 0 | I5: 0 | J5: 0
A6: Apr-20 | B6: 1291 | C6: 1932 | D6: 0.668219462 | E6: 825 | F6: 1094 | G6: 0.75 | H6: 0 | I6: 0 | J6: 0
A7: May-20 | B7: 1410 | C7: 1780 | D7: 0.792134831 | E7: 914 | F7: 977 | G7: 0.94 | H7: 0 | I7: 0 | J7: 0
A8: Jun-20 | B8: 2699 | C8: 585 | D8: 4.613675214 | E8: 1753 | F8: 147 | G8: 11.93 | H8: 0 | I8: 0 | J8: 0
A9: Jul-20 | B9: 2243 | C9: 1240 | D9: 1.808870968 | E9: 1387 | F9: 530 | G9: 2.62 | H9: 0 | I9: 0 | J9: 0
A10: Aug-20 | B10: 2322 | C10: 1232 | D10: 1.88474026 | E10: 1457 | F10: 496 | G10: 2.94 | H10: 0 | I10: 0 | J10: 0
A11: 2020-09-01 | B11: 1727 | C11: 1821 | D11: 0.948380011 | E11: 899 | F11: 1056 | G11: 0.85 | H11: 0 | I11: 0 | J11: 0
A12: Notes: Advance/Decline is calculated based on the average price methodology.
A13: $ indicates as on September 30, 2020
A14: Source: BSE, NSE and MSEI.

Sheet 28
A1: Table 28: Trading Frequency in Cash Segment of Exchanges
A2: Month | B2: BSE | E2: NSE | H2: MSEI
B3: No. of Companies Listed | C3: No. of Companies Traded | D3: Traded to Listed (per cent) | E3: No. of Companies Listed | F3: No. of Companies Traded | G3: Traded to Listed (per cent) | H3: No. of Companies Listed | I3: No. of Companies Traded | J3: Traded to Listed (per cent)
A4: 2019-20 | B4: 5377 | C4: 4089 | D4: 76.04612237 | E4: 1949 | F4: 1989 | G4: 102.0523345 | H4: 295 | I4: 15 | J4: 5.084745763
A5: 2020-21$ | B5: 5428 | C5: 3812 | D5: 70.2284451 | E5: 1946 | F5: 1953 | G5: 100.3597122 | H5: 297 | I5: 5 | J5: 1.683501684
A6: Apr-20 | B6: 5380 | C6: 3352 | D6: 62.30483271 | E6: 1949 | F6: 1855 | G6: 95.17701385 | H6: 296 | I6: 3 | J6: 1.013513514
A7: May-20 | B7: 5369 | C7: 3303 | D7: 61.5198361 | E7: 1947 | F7: 1854 | G7: 95.22342065 | H7: 295 | I7: 0 | J7: 0
A8: Jun-20 | B8: 5377 | C8: 3481 | D8: 64.73870188 | E8: 1944 | F8: 1872 | G8: 96.2962963 | H8: 295 | I8: 3 | J8: 1.016949153
A9: Jul-20 | B9: 5399 | C9: 3624 | D9: 33.5617707 | E9: 1941 | F9: 1886 | G9: 97.16640907 | H9: 296 | I9: 1 | J9: 0.3378378378
A10: Aug-20 | B10: 5413 | C10: 3605 | D10: 66.59892851 | E10: 1943 | F10: 1886 | G10: 97.06639218 | H10: 297 | I10: 2 | J10: 0.6734006734
A11: 2020-09-01 | B11: 5428 | C11: 3587 | D11: 66.08327192 | E11: 1946 | F11: 1892 | G11: 97.22507708 | H11: 297 | I11: 4 | J11: 1.346801347
A12: Notes -
A13: $ indicates as on September 30, 2020
A14: Source: BSE, NSE and MSEI.

Sheet 29
A1: Table 29: Daily Volatility of Major Indices
H2: (per cent)
A3: Year / Month | B3: BSE Sensex | C3: BSE 100 | D3: BSE 500 | E3: Nifty 50 | F3: Nifty Next 50 | G3: Nifty 500 | H3: SX40
A4: 2019-20 | B4: 1.77 | C4: 1.74 | D4: 1.7 | E4: 1.745669786 | F4: 1.619683409 | G4: 1.684795809 | H4: 1.71
A5: 2020-21$ | B5: 1.685933023 | C5: 1.590856967 | D5: 1.510739973 | E5: 1.639269484 | F5: 1.342017424 | G5: 1.500227411 | H5: 1.65
A6: Apr-20 | B6: 3.03 | C6: 2.81 | D6: 2.6 | E6: 2.843773037 | F6: 1.971064465 | G6: 2.508181996 | H6: 3.01
A7: May-20 | B7: 2.15 | C7: 2.04 | D7: 1.91 | E7: 2.048551588 | F7: 1.647650314 | G7: 1.852370831 | H7: 2.05
A8: Jun-20 | B8: 1.25 | C8: 1.18 | D8: 1.15 | E8: 1.217189201 | F8: 0.945600102 | G8: 1.131000379 | H8: 1.21
A9: Jul-20 | B9: 0.97 | C9: 0.88 | D9: 0.82 | E9: 0.925963895 | F9: 0.672553594 | G9: 0.805308517 | H9: 0.93
A10: Aug-20 | B10: 0.99 | C10: 0.94 | D10: 0.93 | E10: 0.925694462 | F10: 1.101700468 | G10: 0.919586861 | H10: 0.93
A11: 2020-09-01 | B11: 1.196369723 | C11: 1.229509802 | D11: 1.254328354 | E11: 1.169640237 | F11: 1.353955553 | G11: 1.223016451 | H11: 1.19
A12: Notes: Volatility is calculated as the standard deviation of the natural log of daily returns in indices for the respective period.
A13: $ indicates as on September 30, 2020
A14: Source: BSE, MSEI and NSE.

Sheet 30
A1: Table 30: Percentage Share of Top ‘N’ Securities/Members in Turnover of Cash Segment of Exchanges (per cent)
A2: Year/ Month | B2: BSE | G2: NSE | L2: MSEI
A3: Top | B3: 5 | C3: 10 | D3: 25 | E3: 50 | F3: 100 | G3: 5 | H3: 10 | I3: 25 | J3: 50 | K3: 100 | L3: 5 | M3: 10 | N3: 25 | O3: 50 | P3: 100
A4: Securities
A5: 2019-20 | B5: 15.9616 | C5: 24.4329 | D5: 39.5174 | E5: 52.5185 | F5: 68.0829 | G5: 15.55 | H5: 26.32 | I5: 45.68 | J5: 60.58 | K5: 77.92 | L5: 97.15 | M5: 99.99 | N5: 100 | O5: 100 | P5: 100
A6: 2020-21$ | B6: 20.0213 | C6: 30.203 | D6: 45.5645 | E6: 57.6114 | F6: 71.7874 | G6: 19.76 | H6: 30.05 | I6: 47.55 | J6: 63.42 | K6: 79.62 | L6: 100 | M6: 100 | N6: 100 | O6: 100 | P6: 100
A7: Apr-20 | B7: 18.8057 | C7: 29.1358 | D7: 45.2231 | E7: 60.2047 | F7: 76.2812 | G7: 21.74 | H7: 34.01 | I7: 53.29 | J7: 68.6 | K7: 84.6 | L7: 100 | M7: 100 | N7: 100 | O7: 100 | P7: 100
A8: May-20 | B8: 41.5822 | C8: 51.1386 | D8: 63.9668 | E8: 74.1095 | F8: 84.8373 | G8: 24.02 | H8: 36.8 | I8: 53.22 | J8: 69.14 | K8: 85.35 | L8: 0 | M8: 0 | N8: 0 | O8: 0 | P8: 0
A9: Jun-20 | B9: 33.7851 | C9: 44.3575 | D9: 58.0009 | E9: 68.318 | F9: 79.6923 | G9: 20.48 | H9: 31.24 | I9: 49.55 | J9: 64.86 | K9: 81.07 | L9: 100 | M9: 100 | N9: 100 | O9: 100 | P9: 100
A10: Jul-20 | B10: 18.9403 | C10: 27.9867 | D10: 43.0643 | E10: 56.3726 | F10: 70.9021 | G10: 24.22 | H10: 34.54 | I10: 50.06 | J10: 65.4 | K10: 80.58 | L10: 100 | M10: 100 | N10: 100 | O10: 100 | P10: 100
A11: Aug-20 | B11: 23.1592 | C11: 30.7546 | D11: 42.8767 | E11: 54.6288 | F11: 68.4645 | G11: 16.95 | H11: 26.42 | I11: 42.83 | J11: 58.74 | K11: 75.29 | L11: 100 | M11: 100 | N11: 100 | O11: 100 | P11: 100
A12: 2020-09-01 | B12: 15.7741 | C12: 23.5068 | D12: 38.4159 | E12: 52.5471 | F12: 69.1548 | G12: 18.53 | H12: 27.89 | I12: 46.55 | J12: 62.92 | K12: 78.82 | L12: 100 | M12: 100 | N12: 100 | O12: 100 | P12: 100
A13: Members
A14: 2019-20 | B14: 26.49 | C14: 40.16 | D14: 64.55 | E14: 76.04 | F14: 85.83 | G14: 25.48 | H14: 39.02 | I14: 59.55 | J14: 75.87 | K14: 87.66 | L14: 80.36 | M14: 100 | N14: 100 | O14: 100 | P14: 100
A15: 2020-21$ | B15: 34.33 | C15: 50.01 | D15: 70.15 | E15: 81.4 | F15: 89.5 | G15: 31.04 | H15: 44.51 | I15: 63.64 | J15: 78.57 | K15: 89.41 | L15: 100 | M15: 100 | N15: 100 | O15: 100 | P15: 0
A16: Apr-20 | B16: 32.94 | C16: 49.91 | D16: 71.44 | E16: 82.7 | F16: 91.2 | G16: 30.67 | H16: 44.88 | I16: 65.51 | J16: 80.71 | K16: 90.92 | L16: 100 | M16: 100 | N16: 100 | O16: 100 | P16: 0
A17: May-20 | B17: 42.92 | C17: 56.43 | D17: 76.25 | E17: 85.01 | F17: 91.92 | G17: 30.67 | H17: 44.2 | I17: 64.59 | J17: 80.21 | K17: 90.67 | L17: 0 | M17: 0 | N17: 0 | O17: 0 | P17: 0
A18: Jun-20 | B18: 45.78 | C18: 60.7 | D18: 77.42 | E18: 85.46 | F18: 92.1 | G18: 30.73 | H18: 45.25 | I18: 64.84 | J18: 78.89 | K18: 89.48 | L18: 100 | M18: 100 | N18: 100 | O18: 100 | P18: 0
A19: Jul-20 | B19: 40.35 | C19: 55.93 | D19: 71.57 | E19: 80.84 | F19: 88.93 | G19: 32.21 | H19: 45.3 | I19: 64.28 | J19: 77.55 | K19: 88.45 | L19: 100 | M19: 100 | N19: 100 | O19: 100 | P19: 0
A20: Aug-20 | B20: 32.85 | C20: 46.38 | D20: 68.19 | E20: 79.76 | F20: 88.9 | G20: 31.57 | H20: 44.29 | I20: 63.23 | J20: 77.44 | K20: 88.4 | L20: 100 | M20: 100 | N20: 100 | O20: 100 | P20: 0
A21: 2020-09-01 | B21: 35.65 | C21: 50.01 | D21: 70.85 | E21: 81.85 | F21: 90.23 | G21: 31.67 | H21: 45.84 | I21: 65.91 | J21: 79.74 | K21: 89.92 | L21: 100 | M21: 100 | N21: 100 | O21: 100 | P21: 0
A22: Notes: 1. Data for Top N scrips has been compiled for all markets except auction market & retail debt market and includes series EQ, BE,BT, BL and IL.
A23: $ indicates as on September 30, 2020
A24: Source: BSE, NSE and MSEI.

Sheet 31
A1: Table 31: Settlement Statistics for Cash Segment of ICCL
A2: Year / Month | B2: No. of Trades(lakh) | C2: Traded Quantity (lakh) | D2: Delivered Quantity (lakh) | E2: Delivered Quantity to Traded Quantity (per cent) | F2: Turnover (` crore) | G2: Delivered Value (` crore) | H2: Delivered Value to Total Turnover (per cent) | I2: Delivered Quantity in Demat Mode (lakh) | J2: Demat Delivered Quantity to Total Delivered Quantity (per cent) | K2: Delivered Value in Demat Mode (` crore) | L2: Demat Delivered Value to Total Delivered Value (per cent) | M2: Short Delivery (Auctioned quantity) (lakh) | N2: Short Delivery to Delivery Quantity (per cent) | O2: Funds Pay-in (` crore) | P2: Securities Pay-in (` crore) | Q2: Settlement Guarantee Fund (`crore)
A3: 2019-20 | B3: 3210.16076 | C3: 555304 | D3: 204312.5084 | E3: 35.86105788 | F3: 672464.22 | G3: 193663.123 | H3: 29.29230059 | I3: 171221.4999 | J3: 94.46302882 | K3: 193243.4334 | L3: 99.81952679 | M3: 369.1519 | N3: 0.218031755 | O3: 61952.69806 | P3: 193935.1729 | Q3: 223.1
A4: 2020-21$ | B4: =SUM(B5:B10) -> 2616 | C4: =SUM(C5:C10) -> 376309.6 | D4: 134359.7914 | E4: =D4/C4*100 -> 35.70458776 | F4: 461644 | G4: 121327.3144 | H4: =G4/F4*100 -> 26.28157507 | I4: 134359.8114 | J4: =I4/D4*100 -> 100.0000149 | K4: 121327.3144 | L4: =K4/G4*100 -> 100 | M4: 331.67033 | N4: =M4/D4*100 -> 0.2468523705 | O4: 27563 | P4: 121483 | Q4: =Q10 -> 231.16
A5: Apr-20 | B5: 339 | C5: 37309 | D5: 11926.5 | E5: 31.97 | F5: 44040 | G5: 13145 | H5: 29.85 | I5: 11926.5 | J5: 100 | K5: 13145 | L5: 100 | M5: 30.3 | N5: 0.25 | O5: 3609 | P5: 13162 | Q5: 224.38
A6: May-20 | B6: 316.2 | C6: 46869 | D6: 14976.3 | E6: 31.95353005 | F6: 63127 | G6: 14218 | H6: 22.52285076 | I6: 14976.3 | J6: 100 | K6: 14218 | L6: 100 | M6: 30.3 | N6: 0.202319665 | O6: 4598 | P6: 14230 | Q6: 225.71
A7: Jun-20 | B7: 543.2 | C7: 10807.6 | D7: 28084.9 | E7: 259.86 | F7: 109738 | G7: 22839 | H7: 20.81 | I7: 28084.9 | J7: 100 | K7: 22839 | L7: 100 | M7: 59.4 | N7: 0.21 | O7: 5227 | P7: 22864 | Q7: 115.15
A8: Jul-20 | B8: 518.3 | C8: 100445 | D8: 30648.58 | E8: 30.51 | F8: 80053 | G8: 23567 | H8: 29.44 | I8: 30648.6 | J8: 100 | K8: 23567 | L8: 100 | M8: 134.4 | N8: 0.44 | O8: 4656 | P8: 23596 | Q8: 228.38
A9: Aug-20 | B9: 471.9 | C9: 93649 | D9: 27994.7 | E9: 29.89 | F9: 90938 | G9: 25780 | H9: 28.35 | I9: 27994.7 | J9: 100 | K9: 25780 | L9: 100 | M9: 45.8 | N9: 0.16 | O9: 4505 | P9: 25812 | Q9: 229.69
A10: 2020-09-01 | B10: 427.4 | C10: 87230 | D10: 20728.81138 | E10: 23.7633972 | F10: 73748 | G10: 21778.31442 | H10: 29.53071869 | I10: 20728.81138 | J10: 100 | K10: 21778.31442 | L10: 100 | M10: 31.47033 | N10: 0.151819269 | O10: 4968 | P10: 21819 | Q10: 231.16
A11: Notes -
A12: $ indicates as on September 30, 2020
A13: Source: ICCL

Sheet 32
A1: Table 32: Settlement Statistics for Cash Segment of NSCCL
A2: Year / Month | B2: No. of Trades(lakh) | C2: Traded Quantity (lakh) | D2: Delivered Quantity (lakh) | E2: Delivered Quantity to Traded Quantity (per cent) | F2: Turnover (` crore) | G2: Delivered Value (` crore) | H2: Delivered Value to Total Turnover (per cent) | I2: Delivered Quantity in Demat Mode (lakh) | J2: Demat Delivered Quantity to Total Delivered Quantity (per cent) | K2: Delivered Value in Demat Mode (` crore) | L2: Demat Delivered Value to Total Delivered Value (per cent) | M2: Short Delivery (Auctioned quantity) (lakh) | N2: Short Delivery to Delivery Quantity (per cent) | O2: Funds Pay-in (` crore) | P2: Securities Pay-in (` crore) | Q2: Settlement Guarantee Fund (`crore)
A3: 2019-20 | B3: 35768.93571 | C3: 5361647.539 | D3: 1067585.125 | E3: 19.91151259 | F3: 9643316.767 | G3: 2077333.032 | H3: 21.54168615 | I3: 1065619.011 | J3: 100 | K3: 2075912.925 | L3: 100 | M3: 1966.104961 | N3: 0.184503555 | O3: 600587.1226 | P3: 2077333.032 | Q3: 302.11
A4: 2020-21$ | B4: =SUM(B5:B10) -> 27263.87188 | C4: =SUM(C5:C10) -> 4361634.628 | D4: 726620.6182 | E4: =D4/C4*100 -> 16.65936467 | F4: 7635954.056 | G4: 1316196.675 | H4: =G4/F4*100 -> 17.23683335 | I4: 724979.6265 | J4: =I4/D4*100 -> 99.77416115 | K4: 1315316.301 | L4: =K4/G4*100 -> 99.93311225 | M4: 1640.99177 | N4: =M4/D4*100 -> 0.2258388668 | O4: 385815.75 | P4: 1316196.675 | Q4: =Q10 -> 326.93
A5: Apr-20 | B5: 4150.23343 | C5: 468098.4582 | D5: 86142.43144 | E5: 18.40263088 | F5: 926064.656 | G5: 169258.2064 | H5: 18.27714785 | I5: 85960.24117 | J5: 100 | K5: 169154.0744 | L5: 100 | M5: 182.19027 | N5: 0.211947137 | O5: 53768.75 | P5: 169258.2064 | Q5: 305.51
A6: May-20 | B6: 3967.31019 | C6: 519841.9523 | D6: 90797.83962 | E6: 17.46643171 | F6: 1049727.142 | G6: 201623.1638 | H6: 19.20719736 | I6: 90650.95584 | J6: 100 | K6: 201524.1333 | L6: 100 | M6: 146.88378 | N6: 0.161770126 | O6: 80224.74 | P6: 201623.1638 | Q6: 311.04
A7: Jun-20 | B7: 5341.76629 | C7: 1030660.011 | D7: 155158.8969 | E7: 15.05432395 | F7: 1520003.977 | G7: 249841.2941 | H7: 16.43688423 | I7: 154762.5999 | J7: 100 | K7: 249657.1294 | L7: 100 | M7: 396.29711 | N7: 0.256067752 | O7: 75290.96 | P7: 249841.2941 | Q7: 314.78
A8: Jul-20 | B8: 4814.26847 | C8: 805230.8079 | D8: 131916.6938 | E8: 16.38246978 | F8: 1414639.284 | G8: 229927.2805 | H8: 16.25342114 | I8: 131411.9875 | J8: 100 | K8: 229766.3759 | L8: 100 | M8: 504.70628 | N8: 0.382594739 | O8: 56586.18 | P8: 229927.2805 | Q8: 316.97
A9: Aug-20 | B9: 4483.88429 | C9: 756614.8117 | D9: 138718.4995 | E9: 18.3340978 | F9: 1339265.102 | G9: 229893.0102 | H9: 17.16560895 | I9: 138575.8913 | J9: 100 | K9: 229745.5386 | L9: 100 | M9: 142.60824 | N9: 0.102804053 | O9: 55195.16 | P9: 229893.0102 | Q9: 320.88
A10: Sep-20 | B10: 4506.40921 | C10: 781188.5871 | D10: 123886.2569 | E10: 15.85868751 | F10: 1386253.895 | G10: 235653.7203 | H10: 16.99931889 | I10: 123617.9508 | J10: 100 | K10: 235469.0494 | L10: 100 | M10: 268.30609 | N10: 0.217044603 | O10: 64749.96 | P10: 235653.7203 | Q10: 326.93
A11: Notes - Settlement Statistics for settlement type N, excluding CM Series IL & BL
A12: $ indicates as on September 30, 2020
A13: Source: NSCCL

Sheet 33
A1: Table 33: Settlement Statistics for Cash Segment of MCCIL
A2: Month Sorting | B2: No. of Trades(Lakh) | C2: Traded Quantity (Lakh) | D2: Delivered Quantity (Lakh) | E2: Delivered Quantity to Traded Quantity (per cent) | F2: Turnover (₹ crore) | G2: Delivered Value (₹ crore) | H2: Delivered Value to Total Turnover (per cent) | I2: Delivered Quantity in Demat Mode (Lakh) | J2: Demat Delivered Quantity to Total Delivered Quantity (per cent) | K2: Delivered Value in Demat Mode (₹ crore) | L2: Demat Delivered Value to Total Delivered Value (per cent) | M2: Funds Pay-in (₹ crore) | N2: Securities Pay-in (₹ crore) | O2: Settlement Guarantee Fund(₹ crore)
A3: 2019-20 | B3: 0.00564 | C3: 10.29321 | D3: 10.29117 | E3: 99.98 | F3: 20.30278834 | G3: 20.30197045 | H3: 100 | I3: 10.29117 | J3: 100 | K3: 20.30197045 | L3: 100 | M3: 20.30197045 | N3: 20.30197045 | O3: 0.35
A4: 2020-21$ | B4: 0 | C4: 0 | D4: 0 | E4: 0 | F4: 0 | G4: 0 | H4: 0 | I4: 0 | J4: 0 | K4: 0 | L4: 0 | M4: 0 | N4: 0 | O4: 0
A5: Apr-20 | B5: 0 | C5: 0 | D5: 0 | E5: 0 | F5: 0 | G5: 0 | H5: 0 | I5: 0 | J5: 0 | K5: 0 | L5: 0 | M5: 0 | N5: 0 | O5: 0
A6: May-20 | B6: 0 | C6: 0 | D6: 0 | E6: 0 | F6: 0 | G6: 0 | H6: 0 | I6: 0 | J6: 0 | K6: 0 | L6: 0 | M6: 0 | N6: 0 | O6: 0
A7: Jun-20 | B7: 0 | C7: 0 | D7: 0 | E7: 0 | F7: 0 | G7: 0 | H7: 0 | I7: 0 | J7: 0 | K7: 0 | L7: 0 | M7: 0 | N7: 0 | O7: 0
A8: Jul-20 | B8: 0 | C8: 0 | D8: 0 | E8: 0 | F8: 0 | G8: 0 | H8: 0 | I8: 0 | J8: 0 | K8: 0 | L8: 0 | M8: 0 | N8: 0 | O8: 0
A9: Aug-20 | B9: 0 | C9: 0 | D9: 0 | E9: 0 | F9: 0 | G9: 0 | H9: 0 | I9: 0 | J9: 0 | K9: 0 | L9: 0 | M9: 0 | N9: 0 | O9: 0
A10: Sep-20 | B10: 0 | C10: 0 | D10: 0 | E10: 0 | F10: 0 | G10: 0 | H10: 0 | I10: 0 | J10: 0 | K10: 0 | L10: 0 | M10: 0 | N10: 0 | O10: 0
A11: Notes -
A12: $ indicates as on September 30, 2020
A13: Source: MCCIL

Sheet 34
A1: Table 34: Trends in Equity Derivatives Segment at BSE (Turnover in Notional Value)
A2: Year/ Month | B2: No. of Trading Days | C2: Index Futures | E2: Stock Futures | G2: Index Options | K2: Stock Options | O2: Total | Q2: Open Interest at the end of Month
G3: Call | I3: Put | K3: Call | M3: Put
C4: No. of Contracts | D4: Turnover (` crore) | E4: No. of Contracts | F4: Turnover (` crore) | G4: No. of Contracts | H4: Turnover (` crore) | I4: No. of Contracts | J4: Turnover (` crore) | K4: No. of Contracts | L4: Turnover (` crore) | M4: No. of Contracts | N4: Turnover (` crore) | O4: No. of Contracts | P4: Turnover (` crore) | Q4: No. of contracts | R4: Turnover (` crore)
A5: 2019-20 | B5: 247 | C5: 150212 | D5: 14933.63793 | E5: 2983 | F5: 162.9625575 | G5: 2032161 | H5: 200440.0551 | I5: 480178 | J5: 45522.52057 | K5: 8473 | L5: 626.1080054 | M5: 7876 | N5: 583.2430748 | O5: 2681883 | P5: 262268.5172 | Q5: 515 | R5: 37.94
A6: 2020-21$ | B6: =SUM(B7:B12) -> 125 | C6: =SUM(C7:C12) -> 29445 | D6: 2537.02435 | E6: 0 | F6: 0 | G6: 37315898 | H6: 3533468.839 | I6: 23682223 | J6: 1868244.736 | K6: 0 | L6: 0 | M6: 0 | N6: 0 | O6: 61027566 | P6: 5404250.589 | Q6: =Q12 -> 3589 | R6: =R12 -> 318.1858456
A7: Apr-20 | B7: 18 | C7: 962 | D7: 77.77 | E7: 0 | F7: 0 | G7: 995903 | H7: 87578.38 | I7: 309028 | J7: 21493.72 | K7: 0 | L7: 0 | M7: 0 | N7: 0 | O7: 1305893 | P7: 109149.87 | Q7: 2407 | R7: 202.9
A8: May-20 | B8: 19 | C8: 4144 | D8: 326.38 | E8: 0 | F8: 0 | G8: 1218595 | H8: 107799.6 | I8: 142492 | J8: 9623.57 | K8: 0 | L8: 0 | M8: 0 | N8: 0 | O8: 1365231 | P8: 117749.55 | Q8: 971 | R8: 78.71
A9: Jun-20 | B9: 22 | C9: 1747 | D9: 145.84 | E9: 0 | F9: 0 | G9: 106 | H9: 8.98 | I9: 0 | J9: 0 | K9: 0 | L9: 0 | M9: 0 | N9: 0 | O9: 1853 | P9: 154.82 | Q9: 81 | R9: 6.54
A10: Jul-20 | B10: 23 | C10: 7735 | D10: 663.89 | E10: 0 | F10: 0 | G10: 3256827 | H10: 297616.75 | I10: 3893948 | J10: 304232.15 | K10: 0 | L10: 0 | M10: 0 | N10: 0 | O10: 7158510 | P10: 602512.78 | Q10: 4045 | R10: 352.49
A11: Aug-20 | B11: 21 | C11: 6025 | D11: 536.5 | E11: 0 | F11: 0 | G11: 11023986 | H11: 1047508 | I11: 10361093 | J11: 800072.42 | K11: 0 | L11: 0 | M11: 0 | N11: 0 | O11: 21391104 | P11: 1848116.92 | Q11: 8217 | R11: 735.07
A12: 2020-09-01 | B12: 22 | C12: 8832 | D12: 786.6443497 | E12: 0 | F12: 0 | G12: 20820481 | H12: 1992957.129 | I12: 8975662 | J12: 732822.8756 | K12: 0 | L12: 0 | M12: 0 | N12: 0 | O12: 29804975 | P12: 2726566.649 | Q12: 3589 | R12: 318.1858456
A13: Notes: 1. Notional Turnover = (Strike Price + Premium) * Quantity.
A14: $ indicates as on September 30, 2020
A15: Source: BSE.

Sheet 35
A1: Table 35: Trends in Equity Derivatives Segment at NSE (Turnover in Notional Value)
A2: Year/ Month | B2: No. of Trading Days | C2: Index Futures | E2: Stock Futures | G2: Index Options | K2: Stock Options | O2: Total | Q2: Open Interest at the end of Month
G3: Call | I3: Put | K3: Call | M3: Put
C4: No. of Contracts | D4: Turnover (` crore) | E4: No. of Contracts | F4: Turnover (` crore) | G4: No. of Contracts | H4: Turnover (` crore) | I4: No. of Contracts | J4: Turnover (` crore) | K4: No. of Contracts | L4: Turnover (` crore) | M4: No. of Contracts | N4: Turnover (` crore) | O4: No. of Contracts | P4: Turnover (` crore) | Q4: No. of Contracts | R4: Turnover (` crore)
A5: 2019-20 | B5: 247 | C5: 94472538 | D5: 6677312.049 | E5: 256643910 | F5: 14874729.23 | G5: 2480471005 | H5: 169696653.7 | I5: 2095899292 | J5: 140995315.6 | K5: 125587962 | L5: 8003236.696 | M5: 72247170 | N5: 4285644.518 | O5: 5125321877 | P5: 344532891.8 | Q5: 3162958 | R5: 163121.89
A6: 2020-21$ | B6: =SUM(B7:B12) -> 125 | C6: =SUM(C7:C12) -> 71806645 | D6: 4234124.543 | E6: 132241289 | F6: 8116919.254 | G6: 1719181020 | H6: 102849229.3 | I6: 1518429707 | J6: 88467304.57 | K6: 90138991 | L6: 6478979.346 | M6: 45167485 | N6: 2898129.135 | O6: 3576965137 | P6: 213044686.2 | Q6: =Q12 -> 5135777 | R6: =R12 -> 370433.46
A7: Apr-20 | B7: 18 | C7: 11339332 | D7: 594715.5188 | E7: 19476580 | F7: 954968.9956 | G7: 194547845 | H7: 10077297.86 | I7: 170934639 | J7: 8385702.654 | K7: 8039630 | L7: 446624.8999 | M7: 4593986 | N7: 224068.5075 | O7: 408932012 | P7: 20683378.43 | Q7: 2874264 | R7: 170257.67
A8: May-20 | B8: 19 | C8: 12843909 | D8: 640625.0185 | E8: 22573353 | F8: 1118023.583 | G8: 247931778 | H8: 12205317.18 | I8: 211059297 | J8: 9947263.235 | K8: 10850597 | L8: 613231.5285 | M8: 6115405 | N8: 307470.4877 | O8: 511374339 | P8: 24831931.03 | Q8: 3707494 | R8: 207782.64
A9: Jun-20 | B9: 22 | C9: 15478384 | D9: 859740.7973 | E9: 26276560 | F9: 1455365.732 | G9: 315751153 | H9: 17914117.94 | I9: 274665301 | J9: 14986695.93 | K9: 16288049 | L9: 1004821.518 | M9: 8934064 | N9: 489038.4222 | O9: 657393511 | P9: 36709780.34 | Q9: 4366903 | R9: 287861.11
A10: Jul-20 | B10: 23 | C10: 11772248 | D10: 777191.3336 | E10: 22710216 | F10: 1574937.356 | G10: 352353120 | H10: 21236714.83 | I10: 306566670 | J10: 18239374.29 | K10: 18843923 | L10: 1466518.213 | M10: 8956614 | N10: 640972.4566 | O10: 721202791 | P10: 43935708.49 | Q10: 4086465 | R10: 295273.53
A11: Aug-20 | B11: 21 | C11: 9211071 | D11: 621182.5908 | E11: 20582172 | F11: 1478175.953 | G11: 272955256 | H11: 18650461.92 | I11: 248776124 | J11: 16724302.85 | K11: 17535138 | L11: 1370741.004 | M11: 8110037 | N11: 584505.1762 | O11: 577169798 | P11: 39429369.49 | Q11: 4589201 | R11: 340564.43
A12: Sep-20 | B12: 22 | C12: 11161701 | D12: 740669.2842 | E12: 20622408 | F12: 1535447.634 | G12: 335641868 | H12: 22765319.58 | I12: 306427676 | J12: 20183965.61 | K12: 18581654 | L12: 1577042.183 | M12: 8457379 | N12: 652074.085 | O12: 700892686 | P12: 47454518.38 | Q12: 5135777 | R12: 370433.46
A13: Notes: 1. Notional Turnover = (Strike Price + Premium) * Quantity.
A14: $ indicates as on September 30, 2020
A15: Source: NSE.

Sheet 36
A1: Table 36: Settlement Statistics in Equity Derivatives Segment
M2: (` crore)
A3: Year/ Month | B3: BSE | H3: NSE
B4: Index/Stock Futures | D4: Index/Stock Options | F4: Total | G4: Settlement Gurantee Fund | H4: Index/Stock Futures | J4: Index/Stock Options | L4: Total | M4: Settlement Gurantee Fund
B5: MTM Settlement | C5: Final Settlement | D5: Premium Settlement | E5: Exercise Settlement | H5: MTM Settlement | I5: Final Settlement | J5: Premium Settlement | K5: Exercise Settlement
A6: 2019-20 | B6: 1778.49 | C6: 95.27 | D6: 1165.6 | E6: 10.91 | F6: 3180.55 | G6: 21.81 | H6: 13384.32667 | I6: 188.74 | J6: 2131.820833 | K6: 532.0716667 | L6: 16237.0425 | M6: 2211.84
A7: 2020-21$ | B7: =SUM(B8:B13) -> 2106.86 | C7: =SUM(C8:C13) -> 61.53 | D7: 9319.09 | E7: 19.71 | F7: 11821.05 | G7: =G13 -> 23.05 | H7: =SUM(H8:H13) -> 73593.79 | I7: =SUM(I8:I13) -> 1190.14 | J7: =SUM(J8:J13) -> 13187.5 | K7: =SUM(K8:K13) -> 2405.77 | L7: =SUM(L8:L13) -> 90377.2 | M7: =M13 -> 2341.41
A8: Apr-20 | B8: 135.52 | C8: 5.79 | D8: 173.72 | E8: 1.8 | F8: 316.83 | G8: 21.93 | H8: 15832.02 | I8: 370.66 | J8: 1809.08 | K8: 431.1 | L8: 18442.86 | M8: 2231.74
A9: May-20 | B9: 123.84 | C9: 4.07 | D9: 197.23 | E9: 0.84 | F9: 366.55 | G9: 22.07 | H9: 12028.16 | I9: 187.57 | J9: 1889.56 | K9: 261.09 | L9: 14366.38 | M9: 2244.09
A10: Jun-20 | B10: 179.15 | C10: 2.75 | D10: 299.07 | E10: 2.62 | F10: 598.74 | G10: 22.3 | H10: 12911.59 | I10: 74.19 | J10: 2510.98 | K10: 494.02 | L10: 15990.78 | M10: 2268.39
A11: Jul-20 | B11: 399.43 | C11: 13.89 | D11: 2411.55 | E11: 7.16 | F11: 2911.07 | G11: 22.56 | H11: 12046.91 | I11: 117.66 | J11: 2450.49 | K11: 478.65 | L11: 15093.71 | M11: 2283.26
A12: Aug-20 | B12: 538.19 | C12: 9.34 | D12: 2814.84 | E12: 3.41 | F12: 3444.88 | G12: 22.84 | H12: 8945.99 | I12: 71.53 | J12: 2028.28 | K12: 367.69 | L12: 11413.49 | M12: 2309.02
A13: Sep-20 | B13: 730.73 | C13: 25.69 | D13: 3422.68 | E13: 3.88 | F13: 4182.98 | G13: 23.05 | H13: 11829.12 | I13: 368.53 | J13: 2499.11 | K13: 373.22 | L13: 15069.98 | M13: 2341.41
A14: Notes -
A15: $ indicates as on September 30, 2020
A16: Source: ICCL and NSCCL

Sheet 37
A1: Table 37: Category-wise Share of Turnover & Open Interest in Equity Derivative Segment of BSE
A2: Year/Month | B2: Percentage Share in Turnover | G2: Percentage Share in Open Interest
B3: Pro | C3: FPI | D3: Mutual Funds | E3: Banks | F3: Others | G3: Pro | H3: FPI | I3: Mutual Funds | J3: Banks | K3: Others
A4: 2019-20 | B4: 59.88 | C4: 0.02 | D4: 0 | E4: 0 | F4: 40.1 | G4: 52.91 | H4: 0 | I4: 0 | J4: 0 | K4: 47.09
A5: 2020-21$ | B5: 90.04666667 | C5: 0.016666667 | D5: 0 | E5: 0 | F5: 9.936666667 | G5: 97.54806353 | H5: 0 | I5: 0 | J5: 0 | K5: 2.451936473
A6: Apr-20 | B6: 99.98 | C6: 0 | D6: 0 | E6: 0 | F6: 0.02 | G6: 49.89 | H6: 0 | I6: 0 | J6: 0 | K6: 50.11
A7: May-20 | B7: 99.92 | C7: 0 | D7: 0 | E7: 0 | F7: 0.08 | G7: 74.46 | H7: 0 | I7: 0 | J7: 0 | K7: 25.54
A8: Jun-20 | B8: 68.21 | C8: 0.1 | D8: 0 | E8: 0 | F8: 31.69 | G8: 50 | H8: 0 | I8: 0 | J8: 0 | K8: 50
A9: Jul-20 | B9: 93.09 | C9: 0 | D9: 0 | E9: 0 | F9: 6.91 | G9: 84.4 | H9: 0 | I9: 0 | J9: 0 | K9: 15.6
A10: Aug-20 | B10: 92.33 | C10: 0 | D10: 0 | E10: 0 | F10: 7.67 | G10: 72.78 | H10: 0.01 | I10: 0 | J10: 0 | K10: 27.21
A11: Sep-20 | B11: 86.75 | C11: 0 | D11: 0 | E11: 0 | F11: 13.25 | G11: 97.54806353 | H11: 0 | I11: 0 | J11: 0 | K11: 2.451936473
A12: Notes -
A13: $ indicates as on September 30, 2020
A14: Source: BSE.

Sheet 38
A1: Table 38: Category-wise Share of Turnover & Open Interest in Equity Derivative Segment of NSE
A2: Year/Month | B2: Percentage Share in Turnover | G2: Percentage Share in Open Interest
B3: Pro | C3: FPIs | D3: Mutual Funds | E3: Banks | F3: Others | G3: Pro | H3: FPIs | I3: Mutual Funds | J3: Banks | K3: Others
A4: 2019-20 | B4: 33.13 | C4: 19.33 | D4: 0.3 | E4: 0 | F4: 47.25 | G4: 13.25 | H4: 27.08 | I4: 14.5 | J4: 0 | K4: 45.17
A5: 2020-21$ | B5: 35.75 | C5: 16.4 | D5: 0.23 | E5: 0 | F5: 47.62 | G5: 15.76 | H5: 27.16 | I5: 12.4 | J5: 0 | K5: 44.69
A6: Apr-20 | B6: 32.37 | C6: 17.2 | D6: 0.29 | E6: 0 | F6: 50.14 | G6: 11.99 | H6: 33.98 | I6: 15.95 | J6: 0 | K6: 38.08
A7: May-20 | B7: 34.69 | C7: 17.84 | D7: 0.29 | E7: 0 | F7: 47.18 | G7: 14.18 | H7: 29.9 | I7: 15.22 | J7: 0 | K7: 40.7
A8: Jun-20 | B8: 35.22 | C8: 18.45 | D8: 0.22 | E8: 0 | F8: 46.11 | G8: 17.14 | H8: 24.27 | I8: 10.68 | J8: 0 | K8: 47.91
A9: Jul-20 | B9: 36.39 | C9: 15.77 | D9: 0.17 | E9: 0 | F9: 47.67 | G9: 16.76 | H9: 24.26 | I9: 10.94 | J9: 0 | K9: 48.04
A10: Aug-20 | B10: 40.1 | C10: 12.72 | D10: 0.18 | E10: 0 | F10: 46.99 | G10: 18.71 | H10: 23.37 | I10: 9.22 | J10: 0 | K10: 48.7
A11: Sep-20 | B11: 41.45 | C11: 12.18 | D11: 0.15 | E11: 0 | F11: 46.22 | G11: 17.78 | H11: 20.68 | I11: 8.31 | J11: 0 | K11: 53.23
A12: Notes -
A13: $ indicates as on September 30, 2020
A14: Source: NSE.

Sheet 39
A1: Table 39: Instrument-wise Turnover in Index Derivatives at BSE
A2: (per cent)
A3: Year/Month | B3: BSE 30 SENSEX | C3: BSE SENSEX 50 | D3: BSE BANKEX
A4: 2019-20 | B4: 100 | C4: 0 | D4: 0
A5: 2020-21$ | B5: 36.14 | C5: 63.86 | D5: 0
A6: Apr-20 | B6: 100 | C6: 0 | D6: 0
A7: May-20 | B7: 100 | C7: 0 | D7: 0
A8: Jun-20 | B8: 16.84 | C8: 83.16 | D8: 0
A9: Jul-20 | B9: 0 | C9: 100 | D9: 0
A10: Aug-20 | B10: 0 | C10: 100 | D10: 0
A11: 2020-09-01 | B11: 0 | C11: 100 | D11: 0
A12: Notes -
A13: $ indicates as on September 30, 2020
A14: Source: BSE.

Sheet 40
A1: Table 40: Instrument-wise Turnover in Index Derivatives at NSE
A2: (per cent)
A3: Year/Month | B3: NIFTY | C3: NIFTYIT | D3: BANKNIFTY
A4: 2019-20 | B4: 39.00682103 | C4: 0.000950863 | D4: 60.99222811
A5: 2020-21$ | B5: 49.73211803 | C5: 7e-05 | D5: 50.26780372
A6: Apr-20 | B6: 49.58862541 | C6: 0.000317859 | D6: 50.41105673
A7: May-20 | B7: 46.98981117 | C7: 0.000217366 | D7: 53.00997146
A8: Jun-20 | B8: 54.36552644 | C8: 0.000127041 | D8: 45.63434652
A9: Jul-20 | B9: 49.9388868 | C9: 0 | D9: 50.0611132
A10: Aug-20 | B10: 49.84197013 | C10: 0 | D10: 50.15802987
A11: Sep-20 | B11: 47.36399509 | C11: 0 | D11: 52.63600491
A12: Notes -
A13: $ indicates as on September 30, 2020
A14: Source: NSE.

Sheet 41
A1: Table 41: Trends in Currency Derivatives Segment at BSE
A2: Year/ Month | B2: No. of Trading Days | C2: Currency Futures | E2: Currency Options | I2: Total | K2: Open Interest at the end of the Month
E3: Call | G3: Put
C4: No. of Contracts | D4: Turnover (₹ crore) | E4: No. of Contracts | F4: Turnover (₹ crore) | G4: No. of Contracts | H4: Turnover (₹ crore) | I4: No. of Contracts | J4: Turnover (₹ crore) | K4: No. of Contracts | L4: Value (₹ crore)
A5: 2019-20 | B5: 243 | C5: 400927037 | D5: 2852910.86 | E5: 214693422 | F5: 1538428.304 | G5: 328897100 | H5: 2291934.592 | I5: 944517559 | J5: 6683273.756 | K5: 2288248 | L5: 17251.47
A6: 2020-21$ | B6: =SUM(B7:B12) -> 123 | C6: =SUM(C7:C12) -> 132966442 | D6: 999878.8215 | E6: 74604065 | F6: 571242.7663 | G6: 107281973 | H6: 791846.8731 | I6: 314852480 | J6: 2362968.471 | K6: =K12 -> 1051011 | L6: =L12 -> 7777.820635
A7: Apr-20 | B7: 17 | C7: 18156395 | D7: 138820.29 | E7: 6476787 | F7: 50460.69 | G7: 10892155 | H7: 81863.4 | I7: 35525337 | J7: 271144.38 | K7: 1273915 | L7: 9570.37
A8: May-20 | B8: 18 | C8: 17436081 | D8: 132222.55 | E8: 9017175 | F8: 69915.06 | G8: 14011006 | H8: 104007.3 | I8: 40464262 | J8: 306144.9 | K8: 678398 | L8: 5151.87
A9: Jun-20 | B9: 22 | C9: 23756034 | D9: 180393.67 | E9: 15910793 | F9: 123085.45 | G9: 21994582 | H9: 163766.07 | I9: 61661409 | J9: 467245.2 | K9: 712652 | L9: 5394.75
A10: Jul-20 | B10: 23 | C10: 25338836 | D10: 190382.76 | E10: 10697892 | F10: 81976.56 | G10: 22387440 | H10: 164807.01 | I10: 58424168 | J10: 437166.34 | K10: 639219 | L10: 4839.72
A11: Aug-20 | B11: 21 | C11: 22489598 | D11: 168111.03 | E11: 17886515 | F11: 136249.15 | G11: 20029214 | H11: 147430.08 | I11: 60405327 | J11: 451790.26 | K11: 806498 | L11: 5966.81
A12: Sep-20 | B12: 22 | C12: 25789498 | D12: 189948.5215 | E12: 14614903 | F12: 109555.8563 | G12: 17967576 | H12: 129973.0131 | I12: 58371977 | J12: 429477.3909 | K12: 1051011 | L12: 7777.820635
A13: Notes -
A14: $ indicates as on September 30, 2020
A15: Source: BSE

Sheet 42
A1: Table 42: Trends in Currency Derivatives Segment at NSE
A2: Year/ Month | B2: No. of Trading Days | C2: Currency Futures | E2: Currency Options | I2: Total | K2: Open Interest at the end of Month
C3: No. of Contracts | D3: Turnover (₹ crore) | E3: Call | G3: Put | I3: No. of Contracts | J3: Turnover (₹ crore) | K3: No. of Contracts | L3: Value (₹ crore)
E4: No. of Contracts | F4: Turnover (₹ crore) | G4: No. of Contracts | H4: Turnover (₹ crore)
A5: 2019-20 | B5: 243 | C5: 660128849 | D5: 4806639.44 | E5: 352374185 | F5: 2520679.83 | G5: 327759150 | H5: 2327074.499 | I5: 1340262184 | J5: 9654393.768 | K5: 6826565 | L5: 51810.07977
A6: 2020-21$ | B6: =SUM(B7:B12) -> 123 | C6: =SUM(C7:C12) -> 336409593 | D6: 2615918.805 | E6: 195632854 | F6: 1476589.737 | G6: 176676098 | H6: 1322804.811 | I6: 708718545 | J6: 5415313.354 | K6: =K12 -> 5393259 | L6: =L12 -> 40182.18915
A7: Apr-20 | B7: 17 | C7: 48012637 | D7: 372205.4691 | E7: 22067309 | F7: 169628.2971 | G7: 20327816 | H7: 154448.6911 | I7: 90407762 | J7: 696282.4572 | K7: 4263641 | L7: 32203.75428
A8: May-20 | B8: 18 | C8: 47443900 | D8: 367808.5477 | E8: 26027374 | F8: 198497.3371 | G8: 21602048 | H8: 163221.3511 | I8: 95073322 | J8: 729527.2358 | K8: 3650637 | L8: 27865.66065
A9: Jun-20 | B9: 22 | C9: 58286091 | D9: 456224.9641 | E9: 34559311 | F9: 263411.8262 | G9: 30334567 | H9: 229533.2793 | I9: 123179969 | J9: 949170.0696 | K9: 4593310 | L9: 35033.71025
A10: Jul-20 | B10: 23 | C10: 55160793 | D10: 429355.0447 | E10: 35967687 | F10: 271284.1032 | G10: 32389301 | H10: 242756.524 | I10: 123517781 | J10: 943395.6719 | K10: 4149989 | L10: 31789.24291
A11: Aug-20 | B11: 21 | C11: 57090417 | D11: 447196.3822 | E11: 36908748 | F11: 276899.2195 | G11: 33912469 | H11: 252768.7278 | I11: 127911634 | J11: 976864.3295 | K11: 5261518 | L11: 39274.37002
A12: Sep-20 | B12: 22 | C12: 70415755 | D12: 543128.3976 | E12: 40102425 | F12: 296868.9543 | G12: 38109897 | H12: 280076.2378 | I12: 148628077 | J12: 1120073.59 | K12: 5393259 | L12: 40182.18915
A13: Notes: 1. Trading Value :- For Futures, Value of contract = Traded Qty*Traded Price. 2. For Options, Value of contract = Traded Qty*(Strike Price+Traded Premium)
A14: $ indicates as on September 30, 2020
A15: Source: NSE.

Sheet 43
A1: Table 43: Trends in Currency Derivatives Segment at MSEI
A2: Year/ Month | B2: No. of Trading Days | C2: Currency Futures | E2: Currency Options | I2: Total | K2: Open Interest at the end of Month
C3: No. of Contracts | D3: Turnover (₹ crore) | E3: Call | G3: Put | I3: No. of Contracts | J3: Turnover (₹ crore) | K3: No. of Contracts | L3: Value (₹ crore)
E4: No. of Contracts | F4: Turnover (₹ crore) | G4: No. of Contracts | H4: Turnover (₹ crore)
A5: 2019-20 | B5: 243 | C5: 5783785 | D5: 41521.07034 | E5: 234838 | F5: 1757.805652 | G5: 273575 | H5: 2045.642963 | I5: 6292198 | J5: 45324.51895 | K5: 6073 | L5: 45.977366
A6: 2020-21$ | B6: =SUM(B7:B12) -> 123 | C6: =SUM(C7:C12) -> 3013717 | D6: 22560.48135 | E6: 1065 | F6: 7.91084125 | G6: 2500 | H6: 18.001125 | I6: 3017282 | J6: 22586.39332 | K6: =K12 -> 18028 | L6: =L12 -> 134.462391
A7: Apr-20 | B7: 17 | C7: 233754 | D7: 1785.281421 | E7: 0 | F7: 0 | G7: 0 | H7: 0 | I7: 233754 | J7: 1785.281421 | K7: 22075 | L7: 166.2475233
A8: May-20 | B8: 18 | C8: 224568 | D8: 1702.423434 | E8: 0 | F8: 0 | G8: 0 | H8: 0 | I8: 224568 | J8: 1702.423434 | K8: 9679 | L8: 73.87971375
A9: Jun-20 | B9: 22 | C9: 375979 | D9: 2854.251227 | E9: 0 | F9: 0 | G9: 0 | H9: 0 | I9: 375979 | J9: 2854.251227 | K9: 15683 | L9: 119.1682203
A10: Jul-20 | B10: 23 | C10: 537915 | D10: 4042.220182 | E10: 565 | F10: 4.20091625 | G10: 2500 | H10: 18.001125 | I10: 540980 | J10: 4064.422224 | K10: 13180 | L10: 99.83725175
A11: Aug-20 | B11: 21 | C11: 706873 | D11: 5291.398713 | E11: 0 | F11: 0 | G11: 0 | H11: 0 | I11: 706873 | J11: 5291.398713 | K11: 14445 | L11: 106.699082
A12: Sep-20 | B12: 22 | C12: 934628 | D12: 6884.906372 | E12: 500 | F12: 3.709925 | G12: 0 | H12: 0 | I12: 935128 | J12: 6888.616297 | K12: 18028 | L12: 134.462391
A13: Notes -
A14: $ indicates as on September 30, 2020
A15: Source: MSEI

Sheet 44
A1: Table 44: Settlement Statistics of Currency Derivatives Segment
P2: (₹ crore)
A3: Year/ Month | B3: BSE | F3: Total | G3: NSE | K3: Total | L3: MSEI | P3: Total
B4: Currency Futures | D4: Currency Options | G4: Currency Futures | I4: Currency Options | L4: Currency Futures | N4: Currency Options
B5: MTM Settlement | C5: Final Settlement | D5: Premium Settlement | E5: Exercise Settlement | G5: MTM Settlement | H5: Final Settlement | I5: Premium Settlement | J5: Exercise Settlement | L5: MTM Settlement | M5: Final Settlement | N5: Premium Settlement | O5: Exercise Settlement
A6: 2019-20 | B6: 7222.5 | C6: 246.08 | D6: 5002.79 | E6: 76.14 | F6: 12547.51 | G6: 9038.768458 | H6: 266.0063539 | I6: 1351.724861 | J6: 553.3603328 | K6: 11209.86001 | L6: 28.27095825 | M6: 1.03627519 | N6: 0.0438135 | O6: 0.0011549 | P6: 29.35220184
A7: 2020-21$ | B7: =SUM(B8:B13) -> 3110.17 | C7: =SUM(C8:C13) -> 38.92 | D7: 2292.83 | E7: 45.05 | F7: 5486.97 | G7: 3928.678362 | H7: 52.13806958 | I7: 599.5137756 | J7: 184.1740324 | K7: 4764.504239 | L7: 0 | M7: 0 | N7: 0 | O7: 0 | P7: 0
A8: Apr-20 | B8: 1122.19 | C8: 12.14 | D8: 322.03 | E8: 8.34 | F8: 1464.7 | G8: 1732.109531 | H8: 17.21189787 | I8: 118.462208 | J8: 30.03236269 | K8: 1897.816 | L8: 0 | M8: 0 | N8: 0 | O8: 0 | P8: 0
A9: May-20 | B9: 457.51 | C9: 4 | D9: 312.09 | E9: 3.94 | F9: 777.54 | G9: 555.4863765 | H9: 4.48651009 | I9: 79.32699225 | J9: 16.69789311 | K9: 655.9977719 | L9: 0 | M9: 0 | N9: 0 | O9: 0 | P9: 0
A10: Jun-20 | B10: 288.4 | C10: 4.17 | D10: 334.02 | E10: 4.12 | F10: 630.71 | G10: 360.420067 | H10: 6.89482765 | I10: 89.0823845 | J10: 23.39430685 | K10: 479.791586 | L10: 0 | M10: 0 | N10: 0 | O10: 0 | P10: 0
A11: Jul-20 | B11: 371.52 | C11: 5.94 | D11: 417.16 | E11: 12.75 | F11: 807.37 | G11: 459.9738062 | H11: 9.04366264 | I11: 95.1821375 | J11: 52.27005394 | K11: 616.4696603 | L11: 0 | M11: 0 | N11: 0 | O11: 0 | P11: 0
A12: Aug-20 | B12: 475.56 | C12: 6.14 | D12: 387.25 | E12: 6.53 | F12: 875.48 | G12: 461.1963631 | H12: 6.28521737 | I12: 97.78292362 | J12: 27.03628371 | K12: 592.3007878 | L12: 0 | M12: 0 | N12: 0 | O12: 0 | P12: 0
A13: Sep-20 | B13: 394.99 | C13: 6.53 | D13: 520.28 | E13: 9.37 | F13: 931.17 | G13: 359.4922178 | H13: 8.21595396 | I13: 119.6771298 | J13: 34.74313207 | K13: 522.1284336 | L13: 0 | M13: 0 | N13: 0 | O13: 0 | P13: 0
A14: Notes -
A15: $ indicates as on September 30, 2020
A16: Source: ICCL, NSCCL and MCCIL.

Sheet 45
A1: Table 45: Instrument-wise Turnover in Currency Derivatives Segment of BSE
A2: Year/Month | B2: Turnover (₹ crore) | I2: Open Interest as on last day of the month (in lots)
B3: USDINR | C3: EURINR | D3: GBPINR | E3: JPYINR | F3: EURUSD | G3: GBPUSD | H3: USDJPY | I3: USDINR | J3: EURINR | K3: GBPINR | L3: JPYINR | M3: EURUSD | N3: GBPUSD | O3: USDJPY
A4: 2019-20 | B4: 5129221.288 | C4: 1792.549354 | D4: 2170.685364 | E4: 1823.753149 | F4: 0.093858821 | G4: 0.037072341 | H4: 0.1636208 | I4: 2270484 | J4: 7992 | K4: 338 | L4: 9434 | M4: 0 | N4: 0 | O4: 0
A5: 2020-21$ | B5: =SUM(B6:B11) -> 996104.3763 | C5: =SUM(C6:C11) -> 2263.644555 | D5: 1999.402662 | E5: 393.090702 | F5: 0 | G5: 0 | H5: 0 | I5: =I11 -> 1034804 | J5: =J11 -> 14144 | K5: 1744 | L5: 319 | M5: 0 | N5: 0 | O5: 0
A6: Apr-20 | B6: 138649.7 | C6: 96.07 | D6: 126.95 | E6: 75.66 | F6: 0 | G6: 0 | H6: 0 | I6: 1271120 | J6: 1045 | K6: 646 | L6: 1104 | M6: 0 | N6: 0 | O6: 0
A7: May-20 | B7: 131726.06 | C7: 318.1 | D7: 229.2 | E7: 89.68 | F7: 0 | G7: 0 | H7: 0 | I7: 652421 | J7: 20386 | K7: 2921 | L7: 2670 | M7: 0 | N7: 0 | O7: 0
A8: Jun-20 | B8: 179519.04 | C8: 434.82 | D8: 512.07 | E8: 96.81 | F8: 0 | G8: 0 | H8: 0 | I8: 700596 | J8: 9437 | K8: 2256 | L8: 363 | M8: 0 | N8: 0 | O8: 0
A9: Jul-20 | B9: 189568.32 | C9: 642.51 | D9: 266.22 | E9: 33.79 | F9: 0 | G9: 0 | H9: 0 | I9: 598516 | J9: 34047 | K9: 5358 | L9: 1298 | M9: 0 | N9: 0 | O9: 0
A10: Aug-20 | B10: 167199.77 | C10: 614.19 | D10: 384.93 | E10: 45.08 | F10: 0 | G10: 0 | H10: 0 | I10: 785958 | J10: 16288 | K10: 3611 | L10: 641 | M10: 0 | N10: 0 | O10: 0
A11: Sep-20 | B11: 189441.4863 | C11: 157.9545552 | D11: 480.0326615 | E11: 52.070702 | F11: 0 | G11: 0 | H11: 0 | I11: 1034804 | J11: 14144 | K11: 1744 | L11: 319 | M11: 0 | N11: 0 | O11: 0
A12: Notes -
A13: $ indicates as on September 30, 2020
A14: Source: BSE

Sheet 46
A1: Table 46: Instrument-wise Turnover in Currency Derivatives Segment of NSE
A2: Year/Month | B2: Turnover (₹ crore) | I2: Open Interest as on last day of the month ( in lots)
B3: USDINR | C3: EURINR | D3: GBPINR | E3: JPYINR | F3: EURUSD | G3: GBPUSD | H3: USDJPY | I3: USDINR | J3: EURINR | K3: GBPINR | L3: JPYINR | M3: EURUSD | N3: GBPUSD | O3: USDJPY
A4: 2019-20 | B4: 9200220.899 | C4: 168295.0745 | D4: 365744.8062 | E4: 76795.43757 | F4: 11624.22788 | G4: 12483.34919 | H4: 225.5318616 | I4: 6680611 | J4: 81513 | K4: 32141 | L4: 30965 | M4: 650 | N4: 643 | O4: 24
A5: 2020-21$ | B5: =SUM(B6:B11) -> 4857182.376 | C5: =SUM(C6:C11) -> 197331.3337 | D5: 300803.0446 | E5: 53182.07008 | F5: 3065.061026 | G5: 3709.097686 | H5: 40.37025834 | I5: =I11 -> 5125997 | J5: =J11 -> 155352 | K5: 59034 | L5: 28800 | M5: 3348 | N5: 1655 | O5: 23
A6: Apr-20 | B6: 655054.7567 | C6: 11949.74469 | D6: 23656.50869 | E6: 5267.949637 | F6: 129.5959632 | G6: 221.4217347 | H6: 2.479853718 | I6: 4875455 | J6: 67920 | K6: 42712 | L6: 36164 | M6: 1128 | N6: 1805 | O6: 47
A7: May-20 | B7: 663982.926 | C7: 20144.29029 | D7: 37101.38659 | E7: 7695.096937 | F7: 230.8586977 | G7: 367.3858751 | H7: 5.291468558 | I7: 4204478 | J7: 165613 | K7: 42731 | L7: 32939 | M7: 3028 | N7: 2283 | O7: 18
A8: Jun-20 | B8: 853857.839 | C8: 28614.87936 | D8: 55969.38432 | E8: 9383.407927 | F8: 546.5940643 | G8: 790.4800815 | H8: 7.484807812 | I8: 4288347 | J8: 154408 | K8: 72300 | L8: 31324 | M8: 2564 | N8: 2375 | O8: 25
A9: Jul-20 | B9: 844302.7369 | C9: 41198.97358 | D9: 47785.2426 | E9: 8475.847945 | F9: 849.5651702 | G9: 779.0527744 | H9: 4.252958869 | I9: 4778747 | J9: 273940 | K9: 124436 | L9: 32991 | M9: 6381 | N9: 1897 | O9: 77
A10: Aug-20 | B10: 857995.1227 | C10: 50143.45804 | D10: 56740.37298 | E10: 10440.61926 | F10: 745.8270656 | G10: 789.4129775 | H10: 9.516474124 | I10: 4831227 | J10: 210451 | K10: 99422 | L10: 32832 | M10: 7162 | N10: 3024 | O10: 12
A11: Sep-20 | B11: 981988.9951 | C11: 45279.9877 | D11: 79550.14944 | E11: 11919.14837 | F11: 562.6200652 | G11: 761.3442432 | H11: 11.34469526 | I11: 5125997 | J11: 155352 | K11: 59034 | L11: 28800 | M11: 3348 | N11: 1655 | O11: 23
A12: Notes -
A13: 1. Cross Currency was introduced wef Feb 27, 2018
A14: 2. Options contracts on EURINR,GBPINR,JPYINR were introduced wef Feb 27, 2018
A15: $ indicates as on September 30, 2020
A16: Source: NSE.

Sheet 47
A1: Table 47: Instrument-wise Turnover in Currency Derivatives Segment of MSEI
A2: Year/Month | B2: Turnover (₹ crore) | F2: Open Interest as on last day of the month (in lots)
B3: USDINR | C3: EURINR | D3: GBPINR | E3: JPYINR | F3: USDINR | G3: EURINR | H3: GBPINR | I3: JPYINR
A4: 2019-20 | B4: 43153.86884 | C4: 941.3291125 | D4: 1223.809899 | E4: 5.51110175 | F4: 6062 | G4: 11 | H4: 0 | I4: 0
A5: 2020-21$ | B5: =SUM(B6:B11) -> 22480.59432 | C5: =SUM(C6:C11) -> 78.22011025 | D5: 27.3891615 | E5: 0.18971975 | F5: =F11 -> 17122 | G5: =G11 -> 818 | H5: 80 | I5: 8
A6: Apr-20 | B6: 1782.77349 | C6: 1.07487325 | D6: 1.43305725 | E6: 0 | F6: 21998 | G6: 52 | H6: 25 | I6: 0
A7: May-20 | B7: 1694.269398 | C7: 5.61881075 | D7: 2.53522525 | E7: 0 | F7: 9148 | G7: 506 | H7: 25 | I7: 0
A8: Jun-20 | B8: 2830.312813 | C8: 18.98632025 | D8: 4.952093 | E8: 0 | F8: 15405 | G8: 201 | H8: 77 | I8: 0
A9: Jul-20 | B9: 4050.153183 | C9: 11.57521225 | D9: 2.693828 | E9: 0 | F9: 12489 | G9: 691 | H9: 0 | I9: 0
A10: Aug-20 | B10: 5267.139139 | C10: 21.45385425 | D10: 2.7702545 | E10: 0.035465 | F10: 14061 | G10: 332 | H10: 52 | I10: 0
A11: Sep-20 | B11: 6855.9463 | C11: 19.5110395 | D11: 13.0047035 | E11: 0.15425475 | F11: 17122 | G11: 818 | H11: 80 | I11: 8
A12: Notes -
A13: Data includes Notional Value for Options
A14: Excludes data of Interest Rate Futures
A15: $ indicates as on September 30, 2020
A16: Source: MSEI

Sheet 48
A1: Table 48: Maturity-wise Turnover in Currency Derivatives Segment of BSE
I2: (₹ crore)
A3: Year/Month | B3: Currency Futures | F3: Currency Options
B4: 1 Month | C4: 2 Month | D4: 3 Month | E4: > 3 Months | F4: 1 Month | G4: 2 Month | H4: 3 Month | I4: > 3 Months
A5: 2019-20 | B5: 2414981.779 | C5: 345729.9688 | D5: 10549.5472 | E5: 531.9368 | F5: 3124335.8 | G5: 235545.0234 | H5: 127.5506 | I5: 0
A6: 2020-21$ | B6: =SUM(B7:B12) -> 735653.4031 | C6: =SUM(C7:C12) -> 188006.7813 | D6: 3556.3432 | E6: 57.3411 | F6: 844907.0643 | G6: 203205.9268 | H6: 22.75 | I6: 0
A7: Apr-20 | B7: 94355.03 | C7: 43315.96 | D7: 1144.9 | E7: 4.4 | F7: 97103.31 | G7: 35217.67 | H7: 3.11 | I7: 0
A8: May-20 | B8: 98146.42 | C8: 24875.23 | D8: 274.55 | E8: 8.24 | F8: 89806.55 | G8: 33912.23 | H8: 7.81 | I8: 0
A9: Jun-20 | B9: 129794.97 | C9: 36969.9 | D9: 331.2 | E9: 1.74 | F9: 199656.84 | G9: 37358.5 | H9: 6.09 | I9: 0
A10: Jul-20 | B10: 136887.07 | C10: 33567.66 | D10: 815.07 | E10: 6.06 | F10: 171323.64 | G10: 33216.53 | H10: 5.74 | I10: 0
A11: Aug-20 | B11: 124186.34 | C11: 29186.13 | D11: 706.36 | E11: 31.53 | F11: 183546.54 | G11: 23556.01 | H11: 0 | I11: 0
A12: Sep-20 | B12: 152283.5731 | C12: 20091.9013 | D12: 284.2632 | E12: 5.3711 | F12: 103470.1843 | G12: 39944.9868 | H12: 0 | I12: 0
A13: Notes -
A14: $ indicates as on September 30, 2020
A15: Source: BSE

Sheet 49
A1: Table 49: Maturity-wise Turnover in Currency Derivatives Segment of NSE
I2: (₹ crore)
A3: Year/Month | B3: Currency Futures | F3: Currency Options
B4: 1 Month | C4: 2 Month | D4: 3 Month | E4: > 3 Months | F4: 1 Month | G4: 2 Month | H4: 3 Month | I4: > 3 Months
A5: 2019-20 | B5: 3697571.657 | C5: 991649.2231 | D5: 77821.75161 | E5: 39596.80802 | F5: 2565212.378 | G5: 942140.9461 | H5: 440868.7208 | I5: 899532.2842
A6: 2020-21$ | B6: =SUM(B7:B12) -> 2089153.753 | C6: =SUM(C7:C12) -> 471716.7452 | D6: 38477.57683 | E6: 16570.72999 | F6: 1548710.529 | G6: 538606.7977 | H6: 213039.5752 | I6: 499037.646
A7: Apr-20 | B7: 282105.4049 | C7: 81657.16157 | D7: 6045.598669 | E7: 2397.303889 | F7: 153692.5281 | G7: 74087.09549 | H7: 31407.26503 | I7: 64890.09957
A8: May-20 | B8: 289073.9629 | C8: 71291.09703 | D8: 6200.175762 | E8: 1243.311936 | F8: 193516.6846 | G8: 76267.89823 | H8: 36481.87439 | I8: 55452.23094
A9: Jun-20 | B9: 368055.194 | C9: 79812.84486 | D9: 5741.681591 | E9: 2615.243633 | F9: 313585.3321 | G9: 79414.35162 | H9: 32072.21573 | I9: 67873.20606
A10: Jul-20 | B10: 343621.2274 | C10: 75715.7246 | D10: 6821.706721 | E10: 3196.385975 | F10: 280693.142 | G10: 101842.9618 | H10: 32794.20306 | I10: 98710.32021
A11: Aug-20 | B11: 353349.6855 | C11: 82858.69825 | D11: 7197.469908 | E11: 3790.528565 | F11: 294176.7153 | G11: 101638.2033 | H11: 34641.54079 | I11: 99211.48787
A12: Sep-20 | B12: 452948.2786 | C12: 80381.21888 | D12: 6470.944182 | E12: 3327.955996 | F12: 313046.1272 | G12: 105356.2873 | H12: 45642.47622 | I12: 112900.3013
A13: Notes -
A14: $ indicates as on September 30, 2020
A15: Source: NSE.

Sheet 50
A1: Table 50: Maturity-wise Turnover in Currency Derivatives Segment of MSEI
I2: (₹ crore)
A3: Year/Month | B3: Currency Futures | F3: Currency Options
B4: 1 Month | C4: 2 Month | D4: 3 Month | E4: > 3 Months | F4: 1 Month | G4: 2 Month | H4: 3 Month | I4: > 3 Months
A5: 2019-20 | B5: 39121.48617 | C5: 2373.368321 | D5: 25.85964625 | E5: 0.3562 | F5: 371.327628 | G5: 65.06337225 | H5: 0 | I5: 0
A6: 2020-21$ | B6: =SUM(B7:B12) -> 20798.16613 | C6: =SUM(C7:C12) -> 1753.664698 | D6: 8.39332725 | E6: 0 | F6: 25.16761625 | G6: 0.74435 | H6: 0 | I6: 0
A7: Apr-20 | B7: 1556.707123 | C7: 227.8068992 | D7: 0.76739875 | E7: 0 | F7: 0 | G7: 0 | H7: 0 | I7: 0
A8: May-20 | B8: 1483.997727 | C8: 211.9568248 | D8: 6.46888225 | E8: 0 | F8: 0 | G8: 0 | H8: 0 | I8: 0
A9: Jun-20 | B9: 2632.516294 | C9: 220.5927765 | D9: 1.14215625 | E9: 0 | F9: 0 | G9: 0 | H9: 0 | I9: 0
A10: Jul-20 | B10: 3514.566503 | C10: 527.6536798 | D10: 0 | E10: 0 | F10: 22.20204125 | G10: 0 | H10: 0 | I10: 0
A11: Aug-20 | B11: 5026.983084 | C11: 264.2871095 | D11: 0 | E11: 0 | F11: 0 | G11: 0 | H11: 0 | I11: 0
A12: Sep-20 | B12: 6583.395395 | C12: 301.367408 | D12: 0.01489 | E12: 0 | F12: 2.965575 | G12: 0.74435 | H12: 0 | I12: 0
A13: Notes -
A14: $ indicates as on September 30, 2020
A15: Source: MSEI

Sheet 51
A1: Table 51: Trading Statistics in Interest Rate Futures Segment
A2: Year/ Month | B2: No. of Trading Days | C2: BSE | G2: NSE | K2: MSEI
C3: Interest Rate Futures | E3: Open Interest at the end of | G3: Interest Rate Futures | I3: Open Interest at the end of | K3: Interest RateFutures | M3: Open Interest at the end of
C4: No. of Contracts | D4: Traded Value (₹ crore) | E4: No. of Contracts | F4: Value (₹ crore) | G4: No. of Contracts | H4: Traded Value (₹ crore) | I4: No. of Contracts | J4: Value (₹ crore) | K4: No. of Contracts | L4: Traded Value (₹ crore) | M4: No. of Contracts | N4: Value (₹ crore)
A5: 2019-20 | B5: 243 | C5: 4917740 | D5: 100045.4315 | E5: 32362 | F5: 682.81 | G5: 17661885 | H5: 360811.1391 | I5: 77036 | J5: 1592.848595 | K5: 0 | L5: 0 | M5: 0 | N5: 0
A6: 2020-21$ | B6: =SUM(B7:B12) -> 123 | C6: =SUM(C7:C12) -> 706326 | D6: 14641.7099 | E6: =E12 -> 1750 | F6: =F12 -> 37.548735 | G6: =SUM(G7:G12) -> 3263509 | H6: 67003.6378 | I6: =I12 -> 45801 | J6: 953.331487 | K6: =SUM(K7:K12) -> 0 | L6: 0 | M6: =M12 -> 0 | N6: 0
A7: Apr-20 | B7: 17 | C7: 117135 | D7: 2394.6294 | E7: 22389 | F7: 486.62 | G7: 478168 | H7: 9733.746749 | I7: 51482 | J7: 1075.917142 | K7: 0 | L7: 0 | M7: 0 | N7: 0
A8: May-20 | B8: 18 | C8: 92350 | D8: 1898.7685 | E8: 32071 | F8: 695.75 | G8: 593534 | H8: 12197.848 | I8: 66972 | J8: 1409.258315 | K8: 0 | L8: 0 | M8: 0 | N8: 0
A9: Jun-20 | B9: 22 | C9: 207052 | D9: 4307.7403 | E9: 25260 | F9: 525.02 | G9: 814095 | H9: 16790.0404 | I9: 102803 | J9: 2140.647929 | K9: 0 | L9: 0 | M9: 0 | N9: 0
A10: Jul-20 | B10: 23 | C10: 193802 | D10: 4082.3089 | E10: 19100 | F10: 399.24 | G10: 554357 | H10: 11477.77976 | I10: 59617 | J10: 1260.509381 | K10: 0 | L10: 0 | M10: 0 | N10: 0
A11: Aug-20 | B11: 21 | C11: 65635 | D11: 1339.4258 | E11: 5447 | F11: 112.12 | G11: 434187 | H11: 8836.022336 | I11: 65722 | J11: 1365.007214 | K11: 0 | L11: 0 | M11: 0 | N11: 0
A12: Sep-20 | B12: 22 | C12: 30352 | D12: 618.837 | E12: 1750 | F12: 37.548735 | G12: 389168 | H12: 7968.200555 | I12: 45801 | J12: 953.331487 | K12: 0 | L12: 0 | M12: 0 | N12: 0
A13: Notes -
A14: $ indicates as on September 30, 2020
A15: Source: BSE, NSE and MSEI

Sheet 52
A1: Table 52: Settlement Statistics in Interest Rate Futures Segment
G2: (₹ crore)
A3: Year/ Month | B3: BSE | D3: NSE | F3: MSEI
B4: MTM Settlement | C4: Physical Delivery Settlement | D4: MTM Settlement | E4: Physical Delivery Settlement | F4: MTM Settlement | G4: Physical Delivery Settlement
A5: 2019-20 | B5: 1417.022224 | C5: 23.05213 | D5: 1400.2491 | E5: 20.05797746 | F5: 0 | G5: 0
A6: 2020-21$ | B6: =SUM(B7:B12) -> 266.509612 | C6: =SUM(C7:C12) -> 2.314646 | D6: 291.5804805 | E6: 1.85526092 | F6: 0 | G6: 0
A7: Apr-20 | B7: 100.356579 | C7: 0.313188 | D7: 78.21515 | E7: 0.38330288 | F7: 0 | G7: 0
A8: May-20 | B8: 50.891994 | C8: 0.04784 | D8: 51.9933625 | E8: 0.2641428 | F8: 0 | G8: 0
A9: Jun-20 | B9: 40.929543 | C9: 0.736421 | D9: 48.6230535 | E9: 0.3382731 | F9: 0 | G9: 0
A10: Jul-20 | B10: 25.355761 | C10: 0.033484 | D10: 42.119494 | E10: 0.17433314 | F10: 0 | G10: 0
A11: Aug-20 | B11: 25.204655 | C11: 1.098963 | D11: 38.96488702 | E11: 0.5995524 | F11: 0 | G11: 0
A12: Sep-20 | B12: 23.77108 | C12: 0.08475 | D12: 31.6645335 | E12: 0.0956566 | F12: 0 | G12: 0
A13: Notes -
A14: $ indicates as on September 30, 2020
A15: Source: ICCL, NSCCL and MCCIL

Sheet 53
A1: Table 53: Trends in Foreign Portfolio Investment
A2: Year/Month | B2: Gross Purchase (₹ crore) | C2: Gross Sales (₹ crore) | D2: Net Investment (₹ crore) | E2: Net Investment (USD million) | F2: Cumulative Net Investment (USD million)
A3: 2019-20 | B3: 1905516.99 | C3: 1933046.16 | D3: -27529.17 | E3: -3041.55 | F3: 245112.63
A4: 2020-21$ | B4: =SUM(B5:B10) -> 995063.28 | C4: =SUM(C5:C10) -> 939284.23 | D4: 55779.05 | E4: 7463.48 | F4: 1482329.97
A5: Apr-20 | B5: 144753.65 | C5: 159612.19 | D5: -14858.54 | E5: -1961.18 | F5: 243151.45
A6: May-20 | B6: 150169.19 | C6: 157525.04 | D6: -7355.85 | E6: -972.51 | F6: 242178.94
A7: Jun-20 | B7: 202141.05 | C7: 176131.62 | D7: 26009.43 | E7: 3440.94 | F7: 245619.88
A8: Jul-20 | B8: 151569.69 | C8: 148268.25 | D8: 3301.44 | E8: 450.99 | F8: 246070.87
A9: Aug-20 | B9: 177960.26 | C9: 128081.31 | D9: 49878.95 | E9: 6661.85 | F9: 252732.72
A10: Sep-20 | B10: 168469.44 | C10: 169665.82 | D10: -1196.38 | E10: -156.61 | F10: 252576.11
A11: Notes -
A12: $ indicates as on September 30, 2020
A13: Source: NSDL, CDSL

Sheet 54
A1: Table 54: Notional Value of Offshore Derivative Instruments (ODIs) compared to Assets Under Custody (AUC) of FPIs/Deemed FPIs
A2: Year/ Month | B2: Notional value of ODIs on Equity, Debt & Derivatives (₹ crore) | C2: Notional value of ODIs on Equity & Debt excluding Derivatives (₹ crore) | D2: Assets Under Custody of FPIs/Deemed FPIs (₹ crore) | E2: Notional value of ODIs on Equity, Debt & Derivatives as % of Assets Under Custody of FPIs/Deemed FPIs | F2: Notional value of ODIs on Equity & Debt excluding Derivatives as % of Assets Under Custody of FPIs/Deemed FPIs
A3: 2019-20 | B3: 48006.39827 | C3: 47852 | D3: 2490223 | E3: =(B3/D3)*100 -> 1.927795152 | F3: =(C3/D3)*100 -> 1.921594974
A4: 2012-21$ | B4: =B10 -> 69820.57275 | C4: =C10 -> 69820.57275 | D4: =D10 -> 3322393 | E4: =(B4/D4)*100 -> 2.101514563 | F4: 2.101514563
A5: Apr-20 | B5: 57100 | C5: 56923 | D5: 2819841 | E5: 2.024936867 | F5: 2.018659917
A6: May-20 | B6: 60027 | C6: 59869 | D6: 2743734 | E6: 2.187784967 | F6: 2.182026392
A7: Jun-20 | B7: 62137.93179 | C7: 61974.28209 | D7: 2979826 | E7: 2.085287255 | F7: 2.079795333
A8: Jul-20 | B8: 63228 | C8: 63035 | D8: 3167785 | E8: 1.995968792 | F8: 1.989876207
A9: Aug-20 | B9: 74027.29705 | C9: 73826 | D9: 3317805 | E9: 2.231213017 | F9: 2.225145842
A10: Sep-20 | B10: 69820.57275 | C10: 69820.57275 | D10: 3322393 | E10: 2.101514563 | F10: 2.101514563
A11: Notes:
A12: 1. Figures are compiled based on reports submitted by FPIs/deemed FPIs issuing ODIs.
A13: 2. Column 4 Figures are compiled on the basis of reports submitted by custodians & does not includes positions taken by FPIs/deemed FPIs in derivatives.
A14: 3. The total value of ODIs excludes the unhedged positions & portfolio hedging positions taken by the FPIs/deemed FPIs issuing ODIs.
A15: 4. Column C is being provided which depicts the Total Value of ODI issued -with underlying as Equity ,Debt & Hybrid Securities but excluding derivatives
A16: $ indicates as on September 30, 2020
A17: Source: SEBI.

Sheet 55
A1: Table 55: Assets under the Custody of Custodians
A2: Type of Client | B2: FPIs | D2: Foreign Depositories | F2: FDI Investments | H2: Foreign Venture Capital Investments | J2: OCBs | L2: NRIs | N2: Mutual Funds | P2: Corporates | R2: Banks | T2: Insurance Companies | V2: Local Pension Funds | X2: Financial Institutions | Z2: Others | AB2: Total
B3: No. | C3: Amount (₹ crore) | D3: No. | E3: Amount (`crore) | F3: No. | G3: Amount (`crore) | H3: No. | I3: Amount (`crore) | J3: No. | K3: Amount (`crore) | L3: No. | M3: Amount (`crore) | N3: No. | O3: Amount (`crore) | P3: No. | Q3: Amount (`crore) | R3: No. | S3: Amount (`crore) | T3: No. | U3: Amount (`crore) | V3: No. | W3: Amount (`crore) | X3: No. | Y3: Amount (`crore) | Z3: No. | AA3: Amount (`crore) | AB3: No. | AC3: Amount (`crore)
A4: 2019-20 | B4: 9825 | C4: 2490223.13 | D4: 66 | E4: 227791.97 | F4: 2079 | G4: 832863.69 | H4: 208 | I4: 38124.84 | J4: 25 | K4: 1582.04 | L4: 693 | M4: 2098.92 | N4: 1624 | O4: 1891137.87 | P4: 598 | Q4: 88517.75 | R4: 121 | S4: 412044.02 | T4: 788 | U4: 1547943.43 | V4: 124 | W4: 477968.29 | X4: 25 | Y4: 40702.49 | Z4: 25595 | AA4: 967716.71 | AB4: 41771 | AC4: 9018715.15
A5: 2020-21$ | B5: =B11 -> 9972 | C5: =C11 -> 3322393 | D5: 66 | E5: 368260.05 | F5: 2177 | G5: =G11 -> 1050353.81 | H5: 212 | I5: 40359.68 | J5: 25 | K5: 1604.49 | L5: 765 | M5: 2742.21 | N5: 1630 | O5: 2098922.56 | P5: 635 | Q5: 102139.5 | R5: 124 | S5: 513385.09 | T5: 794 | U5: 1823503.44 | V5: 115 | W5: 533973.8 | X5: 26 | Y5: 42735.5 | Z5: 27814 | AA5: 1062131.21 | AB5: 44355 | AC5: 10962504.34
A6: Apr-20 | B6: 9916 | C6: 2819840.63 | D6: 66 | E6: 264852.96 | F6: 2088 | G6: 891652.54 | H6: 208 | I6: 38313.55 | J6: 25 | K6: 1678.47 | L6: 693 | M6: 2287.03 | N6: 1621 | O6: 2031625.42 | P6: 600 | Q6: 92221.83 | R6: 121 | S6: 484474.78 | T6: 790 | U6: 1656179.49 | V6: 124 | W6: 486918.55 | X6: 26 | Y6: 42889.59 | Z6: 25629 | AA6: 1000395.04 | AB6: 41907 | AC6: 9813329.88
A7: May-20 | B7: 9912 | C7: 2743734.07 | D7: 66 | E7: 251650.89 | F7: 2098 | G7: 869794.25 | H7: 210 | I7: 38512.69 | J7: 25 | K7: 1564.8 | L7: 698 | M7: 2438.62 | N7: 1622 | O7: 2001267.16 | P7: 600 | Q7: 96705.97 | R7: 121 | S7: 496496.67 | T7: 790 | U7: 1650619.6 | V7: 112 | W7: 493260.74 | X7: 26 | Y7: 44232.99 | Z7: 25655 | AA7: 986317.56 | AB7: 41935 | AC7: 9676596.01
A8: Jun-20 | B8: 9911 | C8: 2979825.58 | D8: 66 | E8: 310240.29 | F8: 2106 | G8: 927607.89 | H8: 211 | I8: 38925.86 | J8: 25 | K8: 1721.14 | L8: 703 | M8: 2639.04 | N8: 1625 | O8: 2032087.29 | P8: 598 | Q8: 98195.29 | R8: 124 | S8: 494660.29 | T8: 793 | U8: 1731728.51 | V8: 112 | W8: 503181.73 | X8: 26 | Y8: 44802.16 | Z8: 25829 | AA8: 1016537.42 | AB8: 42129 | AC8: 10182152.49
A9: Jul-20 | B9: 10059 | C9: 3167785.41 | D9: 66 | E9: 342150.79 | F9: 2145 | G9: 981263.97 | H9: 212 | I9: 39105.11 | J9: 25 | K9: 1769.78 | L9: 740 | M9: 2753.77 | N9: 1630 | O9: 2101536.28 | P9: 615 | Q9: 99802.42 | R9: 124 | S9: 509473.4 | T9: 793 | U9: 1790710.93 | V9: 119 | W9: 513076.48 | X9: 26 | Y9: 45490 | Z9: 26655 | AA9: 1040909.16 | AB9: 43209 | AC9: 10635827.5
A10: Aug-20 | B10: 10071 | C10: 3317805.32 | D10: 66 | E10: 361713.46 | F10: 2155 | G10: 1016525.73 | H10: 212 | I10: 39604.96 | J10: 25 | K10: 1760.36 | L10: 746 | M10: 2879.08 | N10: 1636 | O10: 2158248.83 | P10: 624 | Q10: 101890.3 | R10: 123 | S10: 520463.14 | T10: 792 | U10: 1834368.24 | V10: 119 | W10: 524306.98 | X10: 26 | Y10: 46103.4 | Z10: 27256 | AA10: 1065804.43 | AB10: 43851 | AC10: 10991474.23
A11: Sep-20 | B11: 9972 | C11: 3322393 | D11: 66 | E11: 368260.05 | F11: 2177 | G11: 1050353.81 | H11: 212 | I11: 40359.68 | J11: 25 | K11: 1604.49 | L11: 765 | M11: 2742.21 | N11: 1630 | O11: 2098922.56 | P11: 635 | Q11: 102139.5 | R11: 124 | S11: 513385.09 | T11: 794 | U11: 1823503.44 | V11: 115 | W11: 533973.8 | X11: 26 | Y11: 42735.5 | Z11: 27814 | AA11: 1062131.21 | AB11: 44355 | AC11: 10962504.34
A12: Notes: 1. With the commencement of FPI Regime from June 1, 2014, the erstwhile FIIs, Sub Accounts and QFIs are merged into a new investor class termed as .Foreign Portfolio Investors (FPIs).
A13: 2. "Others" include Portfolio manager, partnership firm, trusts, depository receipts, AIFs, FCCB, HUFs, Brokers etc.
A14: $ indicates as on September 30, 2020
A15: Source: Custodians.

Sheet 56
A1: Table 56: Trends in Resource Mobilization by Mutual Funds
K2: (₹ crore)
A3: Year / Month | B3: Gross Mobilisation | E3: Redemption | H3: Net Inflow/ Outflow | K3: Assets at the End of Period
B4: Pvt. Sector | C4: Public Sector | D4: Total | E4: Pvt. Sector | F4: Public Sector | G4: Total | H4: Pvt. Sector | I4: Public Sector | J4: Total
A5: 2019-20 | B5: 14989990.49 | C5: 3823467.281 | D5: 18813457.77 | E5: 14965931.06 | F5: 3760225.891 | G5: 18726156.95 | H5: 24059.43541 | I5: 63241.39057 | J5: 87300.82598 | K5: 2226202.865
A6: 2020-21$ | B6: =SUM(B7:B12) -> 3364733.851 | C6: =SUM(C7:C12) -> 1216480.863 | D6: 4581214.713 | E6: 3268825.287 | F6: 1165142.236 | G6: 4433967.523 | H6: 95908.56497 | I6: 51338.62689 | J6: 147247.1919 | K6: =K12 -> 2685981.915
A7: Apr-20 | B7: 614258.1871 | C7: 206442.2309 | D7: 820700.4179 | E7: 593456.6231 | F7: 181244.3076 | G7: 774700.9307 | H7: 20801.56393 | I7: 25197.9233 | J7: 45999.48723 | K7: 2393485.543
A8: May-20 | B8: 619156.4729 | C8: 246977.1491 | D8: 866133.6221 | E8: 562437.9669 | F8: 232882.1424 | G8: 795320.1093 | H8: 56718.50607 | I8: 14095.0067 | J8: 70813.51277 | K8: 2454757.53
A9: Jun-20 | B9: 711244.241 | C9: 249561.2634 | D9: 960805.505 | E9: 701503.31 | F9: 252036.224 | G9: 953539.534 | H9: 9740.93206 | I9: -2474.96056 | J9: 7265.9715 | K9: 2548848.434
A10: Jul-20 | B10: 518550.881 | C10: 192070.1494 | D10: 710621.029 | E10: 462909.77 | F10: 157898.9715 | G10: 620808.741 | H10: 55641.10914 | I10: 34171.1778 | J10: 89812.287 | K10: 2711894.15
A11: Aug-20 | B11: 404939.098 | C11: 151656.2072 | D11: 556595.306 | E11: 414119.41 | F11: 157028.7545 | G11: 571148.165 | H11: -9180.3112 | I11: -5372.53724 | J11: -14552.8485 | K11: 2749388.53
A12: Sep-20 | B12: 496584.971 | C12: 169773.8626 | D12: 666358.833 | E12: 534398.207 | F12: 184051.8357 | G12: 718450.043 | H12: -37813.23503 | I12: -14277.98311 | J12: -52091.2181 | K12: 2685981.915
A13: Notes -
A14: $ indicates as on September 30, 2020
A15: Source: SEBI.

Sheet 57
A1: Table 57: Status of Mutual Funds Industry in India
A2: Sr. No. | B2: Scheme Category | C2: 2019-20 | I2: 2020-21$
C3: No. of schemes | D3: No. of Folios | E3: Funds mobilized (₹ crore) | F3: Repurchase/ Redemptio (₹ crore) | G3: Net Inflow (+ve)/ Outflow (-ve) (₹ crore) | H3: Net Assets Under Management as on (₹ crore) | I3: No. of schemes | J3: No. of Folios | K3: Funds mobilized (₹ crore) | L3: Repurchase/ Redemptio (₹ crore) | M3: Net Inflow (+ve)/ Outflow (-ve) (₹ crore) | N3: Net Assets Under Management as on (₹ crore)
A4: A | B4: Open ended Schemes
A5: I | B5: Income/Debt Oriented Schemes
A6: 1 | B6: Overnight Fund | C6: 30 | D6: 86255 | E6: 3104154.067 | F6: 3036499.778 | G6: 67654.28882 | H6: 80174.19229 | I6: 30 | J6: 115107 | K6: 1754294.487 | L6: 1767960.658 | M6: -13666.17062 | N6: 67719.37168
A7: 2 | B7: Liquid Fund | C7: 39 | D7: 1815547 | E7: 14430056.33 | F7: 14505186.05 | G7: -75129.72518 | H7: 334725.3213 | I7: 39 | J7: 2120472 | K7: 2020170.568 | L7: 2001388.45 | M7: 18782.11747 | N7: 362334.2246
A8: 3 | B8: Ultra Short Duration Fund | C8: 29 | D8: 650202 | E8: 185685.0949 | F8: 195237.9458 | G8: -9552.850961 | H8: 72226.36457 | I8: 28 | J8: 694739 | K8: 84279.66918 | L8: 74895.00301 | M8: 9384.666171 | N8: 85043.2772
A9: 4 | B9: Low Duration Fund | C9: 26 | D9: 963640 | E9: 127452.3304 | F9: 136233.1755 | G9: -8780.845038 | H9: 81371.18714 | I9: 26 | J9: 1051330 | K9: 115377.784 | L9: 88276.2948 | M9: 27101.48922 | N9: 112390.5893
A10: 5 | B10: Money Market Fund | C10: 20 | D10: 350429 | E10: 193476.6395 | F10: 193561.7144 | G10: -85.07481983 | H10: 57016.64385 | I10: 19 | J10: 433381 | K10: 116213.035 | L10: 95605.51278 | M10: 20607.52214 | N10: 79835.09649
A11: 6 | B11: Short Duration Fund | C11: 28 | D11: 359856 | E11: 60309.59378 | F11: 51733.48436 | G11: 8576.109422 | H11: 93444.33944 | I11: 26 | J11: 508695 | K11: 75615.64717 | L11: 51999.50263 | M11: 23616.14454 | N11: 121916.2899
A12: 7 | B12: Medium Duration Fund | C12: 18 | D12: 221149 | E12: 7325.883468 | F12: 17778.47486 | G12: -10452.5914 | H12: 28290.28985 | I12: 19 | J12: 258905 | K12: 5647.071099 | L12: 11071.58346 | M12: -5424.512366 | N12: 23399.56887
A13: 8 | B13: Medium to Long Duration Fund | C13: 14 | D13: 108506 | E13: 2086.645906 | F13: 3147.57475 | G13: -1060.928844 | H13: 9804.790811 | I13: 14 | J13: 117379 | K13: 3357.360107 | L13: 2423.750339 | M13: 933.6097679 | N13: 11242.39222
A14: 9 | B14: Long Duration Fund | C14: 2 | D14: 27215 | E14: 628.5458479 | F14: 278.3205613 | G14: 350.2252866 | H14: 1669.574946 | I14: 2 | J14: 30422 | K14: 1151.906118 | L14: 258.0845591 | M14: 893.8215587 | N14: 2644.545384
A15: 10 | B15: Dynamic Bond Fund | C15: 29 | D15: 215543 | E15: 5571.706001 | F15: 8309.800866 | G15: -2738.094865 | H15: 18115.97412 | I15: 28 | J15: 269033 | K15: 8763.847628 | L15: 5468.184981 | M15: 3295.662647 | N15: 22118.58442
A16: 11 | B16: Corporate Bond Fund | C16: 20 | D16: 391721 | E16: 49845.54274 | F16: 31577.58018 | G16: 18267.96256 | H16: 81729.79882 | I16: 21 | J16: 575455 | K16: 65423.60376 | L16: 32103.79207 | M16: 33319.81159 | N16: 120441.9461
A17: 12 | B17: Credit Risk Fund | C17: 23 | D17: 461927 | E17: 9276.414286 | F17: 37303.94986 | G17: -28027.53558 | H17: 55380.52419 | I17: 22 | J17: 375758 | K17: 1182.434635 | L17: 28851.57136 | M17: -27669.13673 | N17: 28251.85747
A18: 13 | B18: Banking and PSU Fund | C18: 19 | D18: 170392 | E18: 59782.85583 | F18: 25271.31264 | G18: 34511.5432 | H18: 72475.85666 | I18: 20 | J18: 318303 | K18: 76674.85947 | L18: 42322.78984 | M18: 34352.06963 | N18: 111559.2874
A19: 14 | B19: Gilt Fund | C19: 21 | D19: 116938 | E19: 5879.977593 | F19: 5170.981117 | G19: 708.9964755 | H19: 9284.975983 | I19: 21 | J19: 205145 | K19: 15049.81545 | L19: 7637.628783 | M19: 7412.186662 | N19: 17259.83641
A20: 15 | B20: Gilt Fund with 10 year constant duration | C20: 4 | D20: 34206 | E20: 789.0591681 | F20: 446.7771239 | G20: 342.2820442 | H20: 941.412194 | I20: 4 | J20: 53227 | K20: 743.4790905 | L20: 372.2809076 | M20: 371.1981829 | N20: 1369.194579
A21: 16 | B21: Floater Fund | C21: 7 | D21: 162058 | E21: 36316.73779 | F21: 35678.48512 | G21: 638.2526652 | H21: 32490.43113 | I21: 7 | J21: 175012 | K21: 31695.60555 | L21: 19525.2645 | M21: 12170.34105 | N21: 46424.79633
B22: Sub total - I (1+2+3+4+5+6+7+8+9+10+11+12+13+14+15+16) | C22: 329 | D22: 6135584 | E22: 18278637.42 | F22: 18283415.41 | G22: -4777.986203 | H22: 1029141.677 | I22: 326 | J22: 7302363 | K22: 4375641.173 | L22: 4230160.352 | M22: 145480.8209 | N22: 1213950.858
A24: II | B24: Growth/Equity Oriented Schemes
A25: 17 | B25: Multi Cap Fund | C25: 34 | D25: 9264215 | E25: 45594.02575 | F25: 30033.96117 | G25: 15560.06458 | H25: 113908.4853 | I25: 35 | J25: 9548024 | K25: 15861.8852 | L25: 17974.99887 | M25: -2113.113673 | N25: 143673.4969
A26: 18 | B26: Large Cap Fund | C26: 29 | D26: 10028315 | E26: 49942.58972 | F26: 33939.25394 | G26: 16003.33578 | H26: 113541.2534 | I26: 29 | J26: 10379106 | K26: 18061.28988 | L26: 17521.71155 | M26: 539.5783296 | N26: 145138.9595
A27: 19 | B27: Large & Mid Cap Fund | C27: 27 | D27: 4735650 | E27: 17834.19661 | F27: 12541.8788 | G27: 5292.317805 | H27: 42971.99542 | I27: 28 | J27: 4838346 | K27: 7662.31149 | L27: 6536.306212 | M27: 1126.005278 | N27: 58454.27322
A28: 20 | B28: Mid Cap Fund | C28: 27 | D28: 6498964 | E28: 30246.46963 | F28: 16729.01499 | G28: 13517.45464 | H28: 65804.84893 | I28: 26 | J28: 6511766 | K28: 9247.585968 | L28: 9683.737215 | M28: -436.1512468 | N28: 90415.66668
A29: 21 | B29: Small Cap Fund | C29: 23 | D29: 5128434 | E29: 21544.74567 | F29: 11113.77449 | G29: 10430.97118 | H29: 35832.03129 | I29: 23 | J29: 5078940 | K29: 6869.739697 | L29: 6005.463934 | M29: 864.275763 | N29: 54056.16304
A30: 22 | B30: Dividend Yield Fund | C30: 6 | D30: 470525 | E30: 365.8621987 | F30: 743.5486267 | G30: -377.686428 | H30: 3282.008448 | I30: 6 | J30: 457933 | K30: 129.7898457 | L30: 240.5066418 | M30: -110.7167961 | N30: 4117.170831
A31: 23 | B31: Value Fund/Contra Fund | C31: 17 | D31: 4131763 | E31: 12840.08476 | F31: 14770.54767 | G31: -1930.462912 | H31: 39459.52367 | I31: 17 | J31: 3996454 | K31: 3962.38608 | L31: 5682.097287 | M31: -1719.711207 | N31: 52448.47294
A32: 24 | B32: Focused Fund | C32: 22 | D32: 3570651 | E32: 23485.73362 | F32: 10650.82171 | G32: 12834.91191 | H32: 39071.92244 | I32: 24 | J32: 3753802 | K32: 8957.747055 | L32: 5864.725583 | M32: 3093.021772 | N32: 52450.35436
A33: 25 | B33: Sectoral/Thematic Funds | C33: 96 | D33: 6528979 | E33: 20900.56014 | F33: 16631.59769 | G33: 4268.962444 | H33: 49844.16051 | I33: 95 | J33: 6891146 | K33: 9765.174144 | L33: 8833.233206 | M33: 931.9410375 | N33: 65757.025
A34: 26 | B34: ELSS | C34: 43 | D34: 12335172 | E34: 17429.36016 | F34: 9242.279732 | G34: 8187.080433 | H34: 74791.49875 | I34: 42 | J34: 12459929 | K34: 6360.248235 | L34: 4039.745632 | M34: 2320.502603 | N34: 97797.91158
B35: Sub total - II (17+18+19+20+21+22+23+24+25+26) | C35: 324 | D35: 62692668 | E35: 240183.6283 | F35: 156396.6788 | G35: 83786.94944 | H35: 578507.7282 | I35: 325 | J35: 63915446 | K35: 86878.15759 | L35: 82382.52613 | M35: 4495.63186 | N35: 764309.4941
A37: III | B37: Hybrid Schemes
A38: 27 | B38: Conservative Hybrid Fund | C38: 22 | D38: 386103 | E38: 1165.589726 | F38: 4894.824068 | G38: -3729.234342 | H38: 11189.68048 | I38: 22 | J38: 378260 | K38: 1130.910925 | L38: 2183.63619 | M38: -1052.725165 | N38: 11118.10718
A39: 28 | B39: Balanced Hybrid Fund/Aggressive Hybrid Fund | C39: 33 | D39: 5272614 | E39: 27229.24323 | F39: 48781.12924 | G39: -21551.88601 | H39: 100990.179 | I39: 33 | J39: 5083693 | K39: 5899.223168 | L39: 15989.92895 | M39: -10090.70568 | N39: 111089.5864
A40: 29 | B40: Dynamic Asset Allocation/Balanced Advantage | C40: 23 | D40: 2657247 | E40: 29572.94699 | F40: 23497.1742 | G40: 6075.772794 | H40: 77091.38953 | I40: 23 | J40: 2686337 | K40: 7615.863103 | L40: 10802.14301 | M40: -3186.279906 | N40: 86751.6974
A41: 30 | B41: Multi Asset Allocation | C41: 8 | D41: 631330 | E41: 4243.5341 | F41: 3490.069057 | G41: 753.4650428 | H41: 9439.405017 | I41: 10 | J41: 722498 | K41: 2040.552222 | L41: 1396.033213 | M41: 644.5190092 | N41: 12073.13822
A42: 31 | B42: Arbitrage Fund | C42: 25 | D42: 296071 | E42: 86320.86078 | F42: 84637.86443 | G42: 1682.99635 | H42: 52210.302 | I42: 27 | J42: 372926 | K42: 42188.67474 | L42: 29267.30257 | M42: 12921.37217 | N42: 63138.0728
A43: 32 | B43: Equity Savings Fund | C43: 23 | D43: 329350 | E43: 2447.915611 | F43: 9445.474456 | G43: -6997.558845 | H43: 11228.91221 | I43: 23 | J43: 309264 | K43: 566.3898877 | L43: 2929.750093 | M43: -2363.360305 | N43: 10156.90431
B44: Sub total - III (27+28+29+30+31+32) | C44: 134 | D44: 9572715 | E44: 150980.0904 | F44: 174746.5355 | G44: -23766.44501 | H44: 262149.8683 | I44: 138 | J44: 9552978 | K44: 59441.61404 | L44: 62568.79402 | M44: -3127.179874 | N44: 294327.5063
A46: IV | B46: Solution Oriented Schemes
A47: 33 | B47: Retirement Fund | C47: 24 | D47: 2544753 | E47: 3155.475985 | F47: 1113.092589 | G47: 2042.383395 | H47: 8507.065204 | I47: 24 | J47: 2546976 | K47: 882.494504 | L47: 643.9838581 | M47: 238.5106459 | N47: 10484.10393
A48: 34 | B48: Childrens' Fund | C48: 9 | D48: 2892087 | E48: 851.9479745 | F48: 440.1860009 | G48: 411.7619736 | H48: 7192.179142 | I48: 10 | J48: 2893720 | K48: 358.1056865 | L48: 127.2805933 | M48: 230.8250932 | N48: 8944.464721
B49: Sub total - IV (33+34) | C49: 33 | D49: 5436840 | E49: 4007.423959 | F49: 1553.27859 | G49: 2454.145369 | H49: 15699.24435 | I49: 34 | J49: 5440696 | K49: 1240.60019 | L49: 771.2644514 | M49: 469.3357391 | N49: 19428.56865
A51: V | B51: Other Schemes
A52: 35 | B52: Index Funds | C52: 32 | D52: 544075 | E52: 8221.72781 | F52: 3205.086812 | G52: 5016.640998 | H52: 8088.996682 | I52: 35 | J52: 738341 | K52: 4917.494727 | L52: 3153.868366 | M52: 1763.626361 | N52: 12581.38531
A53: 36 | B53: GOLD ETFs | C53: 11 | D53: 526671 | E53: 2514.787198 | F53: 901.1952245 | G53: 1613.591974 | H53: 7949.062874 | I53: 11 | J53: 759207 | K53: 4870.936224 | L53: 404.4435902 | M53: 4466.492634 | N53: 13589.99004
A54: 37 | B54: Other ETFs | C54: 76 | D54: 1899781 | E54: 123007.7381 | F54: 63198.32631 | G54: 59809.41176 | H54: 146462.6748 | I54: 83 | J54: 2867915 | K54: 44683.6358 | L54: 21389.7655 | M54: 23293.8703 | N54: 205234.961
A55: 38 | B55: Fund of funds investing overseas | C55: 28 | D55: 189784 | E55: 1392.902934 | F55: 522.3633558 | G55: 870.5395778 | H55: 2734.355115 | I55: 29 | J55: 412311 | K55: 3461.087525 | L55: 838.1488358 | M55: 2622.938689 | N55: 6496.965424
B56: Sub total - V (35+36+37+38) | C56: 147 | D56: 3160311 | E56: 135137.156 | F56: 67826.9717 | G56: 67310.18431 | H56: 165235.0895 | I56: 158 | J56: 4777774 | K56: 57933.15428 | L56: 25786.2263 | M56: 32146.92798 | N56: 237903.3017
B58: Total A-Open ended Schemes | C58: 967 | D58: 86998118 | E58: 18808945.72 | F58: 18683938.87 | G58: 125006.8479 | H58: 2050733.608 | I58: 981 | J58: 90989257 | K58: 4581134.699 | L58: 4401669.163 | M58: 179465.5366 | N58: 2529919.729
A60: B | B60: Close Ended Schemes
A61: I | B61: Income/Debt Oriented Schemes | C61: 815 | D61: 1042672 | E61: 4503.004143 | F61: 38312.89537 | G61: -33809.89123 | H61: 150622.7594
A62: i | B62: Fixed Term Plan | C62: 742 | D62: 851658 | E62: 4013.985541 | F62: 32726.7692 | G62: -28712.78365 | H62: 140594.5246 | I62: 602 | J62: 592447 | K62: 76.44179051 | L62: 25794.37858 | M62: -25717.93579 | N62: 121200.8166
A63: ii | B63: Capital Protection Oriented Schemes | C63: 31 | D63: 107535 | E63: 489.0186014 | F63: 2665.472813 | G63: -2176.454212 | H63: 4209.976861 | I63: 22 | J63: 59825 | K63: 0 | L63: 1867.837476 | M63: -1867.837476 | N63: 2552.216393
A64: iii | B64: Infrastructure Debt Fund | C64: 9 | D64: 89 | E64: 0 | F64: 314.7224281 | G64: -314.7224281 | H64: 2391.370602 | I64: 9 | J64: 89 | K64: 0 | L64: 0 | M64: 0 | N64: 2366.456887
A65: iv | B65: Other Debt | C65: 33 | D65: 83390 | E65: 0 | F65: 2605.930937 | G65: -2605.930937 | H65: 3426.887343 | I65: 12 | J65: 22234 | K65: 0 | L65: 2599.447455 | M65: -2599.447455 | N65: 1014.015557
B66: Sub total (i+ii+iii+iv) | C66: 815 | D66: 1042672 | E66: 4503.004143 | F66: 38312.89537 | G66: -33809.89123 | H66: 150622.7594 | I66: 645 | J66: 674595 | K66: 76.44179051 | L66: 30261.66351 | M66: -30185.22072 | N66: 127133.5054
A68: II | B68: Growth/Equity Oriented Schemes | C68: 111 | D68: 1701373 | E68: 4e-05 | F68: 2190.423062 | G68: -2190.423022 | H68: 24453.84941
A69: i | B69: ELSS | C69: 25 | D69: 470566 | E69: 0 | F69: 322.0982075 | G69: -322.0982075 | H69: 3044.947024 | I69: 25 | J69: 462769 | K69: 0 | L69: 86.3183032 | M69: -86.3183032 | N69: 3968.592848
A70: ii | B70: Others | C70: 86 | D70: 1230807 | E70: 4e-05 | F70: 1868.324854 | G70: -1868.324814 | H70: 21408.90239 | I70: 79 | J70: 1177149 | K70: -1e-05 | L70: 1913.515913 | M70: -1913.515923 | N70: 24594.53484
B71: Sub total (i+ii) | C71: 111 | D71: 1701373 | E71: 4e-05 | F71: 2190.423062 | G71: -2190.423022 | H71: 24453.84941 | I71: 104 | J71: 1639918 | K71: -1e-05 | L71: 1999.834216 | M71: -1999.834226 | N71: 28563.12769
A73: III | B73: Other Schemes | C73: 0 | D73: 0 | E73: 0 | F73: 0 | G73: 0 | H73: 0 | I73: 0 | J73: 0 | K73: 0 | L73: 0 | M73: 0 | N73: 0
B75: Total B -Close ended Schemes | C75: 926 | D75: 2744045 | E75: 4503.004183 | F75: 40503.31844 | G75: -36000.31425 | H75: 175076.6088 | I75: 749 | J75: 2314513 | K75: 76.4417805 | L75: 32261.49773 | M75: -32185.05495 | N75: 155696.6331
A77: C | B77: Interval Schemes
A78: I | B78: Income/Debt Oriented Schemes | C78: 23 | D78: 3888 | E78: 9.047738238 | F78: 1714.755415 | G78: -1705.707676 | H78: 392.6487291 | I78: 23 | J78: 3710 | K78: 3.572611877 | L78: 36.86243407 | M78: -33.28982219 | N78: 365.5524698
A80: II | B80: Growth/Equity Oriented Schemes | C80: 0 | D80: 0 | E80: 0 | F80: 0 | G80: 0 | H80: 0 | I80: 0 | J80: 0 | K80: 0 | L80: 0 | M80: 0 | N80: 0
A82: III | B82: Other Schemes | C82: 0 | D82: 0 | E82: 0 | F82: 0 | G82: 0 | H82: 0 | I82: 0 | J82: 0 | K82: 0 | L82: 0 | M82: 0 | N82: 0
B84: Total C -Interval Schemes | C84: 23 | D84: 3888 | E84: 9.047738238 | F84: 1714.755415 | G84: -1705.707676 | H84: 392.6487291 | I84: 23 | J84: 3710 | K84: 3.572611877 | L84: 36.86243407 | M84: -33.28982219 | N84: 365.5524698
A86: Grand Total (A+B+C) | B86: Grand Total (A+B+C) | C86: 1916 | D86: 89746051 | E86: 18813457.77 | F86: 18726156.95 | G86: 87300.82598 | H86: 2226202.865 | I86: 1753 | J86: 93307480 | K86: 4581214.713 | L86: 4433967.523 | M86: 147247.1919 | N86: 2685981.915
B88: Fund of Funds Scheme (Domestic) | C88: 46 | D88: 637072 | E88: 10813.35155 | F88: 1930.132025 | G88: 8883.21952 | H88: 12257.11305 | I88: 49 | J88: 977691 | K88: 7863.137808 | L88: 2539.934409 | M88: 5323.203399 | N88: 19785.28133
A89: Notes -
A90: $ Indicates as on September 30, 2020
A91: Source: SEBI.

Sheet 58
A1: Table 58: Trends in Transactions on Stock Exchanges by Mutual Funds
J2: (₹ crore)
A3: Year/ Month | B3: Equity | E3: Debt | H3: Total
B4: Gross Purchases | C4: Gross Sales | D4: Net Purchases /Sales | E4: Gross Purchases | F4: Gross Sales | G4: Net Purchases /Sales | H4: Gross Purchases | I4: Gross Sales | J4: Net purchases /Sale
A5: 2019-20 | B5: 8,06,744 | C5: 7,15,142 | D5: 91603 | E5: 22,63,317 | F5: 18,44,703 | G5: 4,18,614 | H5: 30,70,061 | I5: 25,59,845 | J5: 5,10,216
A6: 2020-21$ | B6: =SUM(B7:B12) -> 378742.91 | C6: =SUM(C7:C12) -> 402416.51 | D6: -23673.6 | E6: 901894.68 | F6: 786228.58 | G6: 115666.1 | H6: 1280637.59 | I6: 1188645.09 | J6: 91992.5
A7: Apr-20 | B7: 54525.1 | C7: 62490.6 | D7: =B7-C7 -> -7965.5 | E7: 121444.56 | F7: 131239.1 | G7: =E7-F7 -> -9794.54 | H7: 175969.66 | I7: 193729.7 | J7: =H7-I7 -> -17760.04
A8: May-20 | B8: 70794.76 | C8: 64272.31 | D8: 6522.45 | E8: 139959.84 | F8: 129260.47 | G8: 10699.37 | H8: 210754.6 | I8: 193532.78 | J8: 17221.82
A9: Jun-20 | B9: 73265.58 | C9: 73767.08 | D9: -501.5 | E9: 179002.03 | F9: 137637.32 | G9: 41364.71 | H9: 252267.61 | I9: 211404.4 | J9: 40863.21
A10: Jul-20 | B10: 61103.69 | C10: 70298.73 | D10: -9195.04 | E10: 171073.17 | F10: 139175.32 | G10: 31897.85 | H10: 232176.86 | I10: 209474.05 | J10: 22702.81
A11: Aug-20 | B11: 55152.49 | C11: 63552.13 | D11: -8399.64 | E11: 139359.72 | F11: 114865.98 | G11: 24493.74 | H11: 194512.21 | I11: 178418.11 | J11: 16094.1
A12: Sep-20 | B12: 63901.29 | C12: 68035.66 | D12: -4134.37 | E12: 151055.36 | F12: 134050.39 | G12: 17004.97 | H12: 214956.65 | I12: 202086.05 | J12: 12870.6
A13: Notes -
A14: $ indicates as on September 30, 2020
A15: Source: SEBI

Sheet 59
A1: Table 59: Assets Managed by Portfolio Managers
A2: Year / Month | B2: 2019-20 | F2: 2020-21$
A3: Particulars | B3: Discretionary | C3: Non-Discretionary | D3: Advisory | E3: Total | F3: Discretionary# | G3: Non-Discretionary | H3: Advisory** | I3: Total
A4: No. of Clients | B4: 138829 | C4: 6853 | D4: 4038 | E4: 149720 | F4: 147166 | G4: 9080 | H4: 3162 | I4: =F4+G4+H4 -> 159408
A5: AUM (₹ crore)
A6: Listed Equity | B6: 111995.61 | C6: 18477.08 | D6: 0 | E6: 130472.69 | F6: 128095.166 | G6: 23306.927 | H6: 0 | I6: =SUM(F6:H6) -> 151402.093
A7: Unlisted Equity | B7: 458.85 | C7: 74.69 | D7: 0 | E7: 533.54 | F7: 486.186 | G7: 354.95 | H7: 0 | I7: =SUM(F7:H7) -> 841.136
A8: Plain Debt | B8: 1160856.72 | C8: 74701.85 | D8: 0 | E8: 1235558.57 | F8: 1440369.949 | G8: 82677.89 | H8: 0 | I8: 1523047.839
A9: Structured Debt | B9: 752.86 | C9: 530.57 | D9: 0 | E9: 1283.43 | F9: 1429.234 | G9: 1354.663 | H9: 0 | I9: 2783.897
A10: Equity Derivatives | B10: 466.12 | C10: -1.24 | D10: 0 | E10: 464.88 | F10: 549.984 | G10: 0 | H10: 0 | I10: 549.984
A11: Mutual Funds | B11: 14112.76 | C11: 13856.15 | D11: 0 | E11: 27968.91 | F11: 13147.378 | G11: 14302.224 | H11: 0 | I11: 27449.602
A12: Others | B12: 14498.29 | C12: 1392.08 | D12: 0 | E12: 15890.37 | F12: 8520.618 | G12: 2747.973 | H12: 0 | I12: 11268.591
A13: Total* | B13: 1303141.21 | C13: 109031.18 | D13: 193620 | E13: 1605792.39 | F13: 1592598.515 | G13: 124744.627 | H13: 191503.961 | I13: =SUM(F13:H13) -> 1908847.103
A14: Notes:
A15: 1. **Value of Assets for which Advisory Services are being given.
A16: 2. #of the above AUM Rs. 14,34,594.47/- Crores are contributed by funds from EPFO/PFs.
A17: 3. The above data is based on the monthly report received from Portfolio Managers.
A18: $ indicates up to August 31, 2020
A19: Source: SEBI.

Sheet 60
A1: Table 60: Progress Report of NSDL & CDSL as on end of Jul-20 (Listed Companies)
A2: Parameter | B2: Unit | C2: NSDL | H2: CDSL
C3: Sep-20 | D3: Aug-20 | E3: Sep-19 | F3: % Change during the year | G3: % Change during the month | H3: Sep-20 | I3: Aug-20 | J3: Sep-19 | K3: % Change during the year | L3: % Change during the month
A4: Number of companies signed up to make their shares available for dematerialization | B4: Number | C4: 5633 | D4: 5620 | E4: 5682 | F4: -0.862372404 | G4: 0.231316726 | H4: 5718 | I4: 5709 | J4: 5622 | K4: 1.71 | L4: 0.16 | N4: Number of companies signed up to make their shares available for dematerialization
A5: Number of Depository Participants (registered) | B5: Number | C5: 277 | D5: 277 | E5: 277 | F5: 0 | G5: 0 | H5: 593 | I5: 594 | J5: 601 | K5: -1.33 | L5: -0.17 | N5: Number of Depository Participants (registered)
A6: Number of Clearing Corporations (connected) | B6: Number | C6: 4 | D6: 4 | E6: 3 | F6: 33.33333333 | G6: 0 | H6: 3 | I6: 3 | J6: 3 | K6: 0 | L6: 0 | N6: Number of Stock Exchanges (connected)
A7: Number of Investors Accounts | B7: Lakh | C7: 204.56 | D7: 202.94211 | E7: 204.73632 | F7: -0.086120528 | G7: 0.797217492 | H7: 261.28 | I7: 250.08 | J7: 188.02 | K7: 38.96 | L7: 4.48 | N7: Number of Investors Accounts
A8: Quantity of Shares dematerialized | B8: Crore | C8: 55613.67511 | D8: 55620.05205 | E8: 53662.27127 | F8: 3.636454053 | G8: -0.011465183 | H8: 23468.49 | I8: 23173.03 | J8: 21016.29 | K8: 11.67 | L8: 1.28 | N8: Quantity of Shares dematerialized
A9: Value of Shares dematerialized | B9: Crore | C9: 13565291.63 | D9: 13434946.73 | E9: 12814303.7 | F9: 5.860544139 | G9: 0.970192931 | H9: 1699270.5 | I9: 1773431.29 | J9: 1667314.65 | K9: 1.92 | L9: -4.18 | N9: Value of Shares dematerialized
A10: Quantity of Securities dematerialized # | B10: Crore | C10: 60077.3654 | D10: 60044.66438 | E10: 57751.48912 | F10: 4.027387551 | G10: 0.054461155 | H10: 25779.3 | I10: 25416.08 | J10: 22785.06 | K10: 13.14 | L10: 1.43 | N10: Quantity of Securities dematerialized #
A11: Value of Securities dematerialized # | B11: Crore | C11: 16994230.05 | D11: 16750707.46 | E11: 15679003.6 | F11: 8.388456859 | G11: 1.453804817 | H11: 1870606.19 | I11: 1943253.84 | J11: 1802747.21 | K11: 3.76 | L11: -3.74 | N11: Value of Securities dematerialized #
A12: Quantity of shares settled during the month | B12: Crore | C12: 1444.798318 | D12: 1599.800997 | E12: 1419.724195 | F12: 1.766126335 | G12: -9.68887249 | H12: 1769.75 | I12: 2156.71 | J12: 552.48 | K12: 220.33 | L12: -17.94 | N12: Quantity of shares settled during the month
A13: Average Quantity of shares settled daily (quantity of shares settled during the month) | B13: Crore | C13: 65.67265084 | D13: 76.18099986 | E13: 74.72232608 | F13: -12.11107271 | G13: -13.79392374 | H13: 58.99 | I13: 69.57 | J13: 18.42 | K13: 220.33 | L13: -15.21 | N13: Average Quantity of shares settled daily (quantity of shares settled during the month (divided by 30))
A14: Value of shares settled during the month in dematerialized form | B14: Crore | C14: 335093.5949 | D14: 305967.0502 | E14: 368614.2098 | F14: -9.093684938 | G14: 9.519503714 | H14: 151225.93 | I14: 177712.52 | J14: 64349.89 | K14: 135.01 | L14: -14.9 | N14: Value of shares settled during the month in dematerialized form
A15: Average Value of shares settled daily (value of shares settled during the month) | B15: Crore | C15: 15231.52704 | D15: 14569.85953 | E15: 19400.74788 | F15: -21.49000063 | G15: 4.541344455 | H15: 5040.86 | I15: 5732.66 | J15: 2145 | K15: 135.01 | L15: -12.07 | N15: Average Value of shares settled daily (value of shares settled during the month (divided by 30))
A16: Training Programmes conducted for representatives of Corporates, DPs and Brokers | B16: Number | C16: 6 | D16: 3 | E16: 9 | F16: -33.33333333 | G16: 100 | H16: 0 | I16: 0 | J16: 0 | K16: 0 | L16: 0 | N16: Training Programmes conducted for representatives of Corporates, DPs and Brokers
A17: The ratio of dematerialized equity shares to the total outstanding shares market value | B17: per cent | C17: 87.9 | D17: 87.24 | E17: 87.37795325 | F17: 0.597458208 | G17: 0.7565337 | H17: 11.08 | I17: 11.61 | J17: 11.35 | K17: -2.39 | L17: -4.57 | N17: The ratio of dematerialized equity shares to the total outstanding shares (market value)
A18: Notes: 1. Shares includes only equity shares. 2. Securities include common equity shares, preference shares, debenture, MF units, etc. 3. No. of days taken for calculating Daily Average is 30 days instead of Actual settlement days. 4. Quantity and value of shares mentioned are single sided. 5. #Source for listed securities information: Issuer/ NSE/BSE.
A19: Source: NSDL and CDSL.

Sheet 61
A1: Table 61: Progress of Dematerialisation at NSDL and CDSL (Listed and Unlisted Companies)
A2: Year/ Month | B2: NSDL | G2: CDSL
B3: Companies Live | C3: DPs Live | D3: DPs Locations | E3: Demat Quantity (million securities) | F3: Demat Value (₹ crore) | G3: Companies Live | H3: DPs Live | I3: DPs Locations | J3: Demat Quantity (million securities) | K3: Demat Value (₹ crore)
A4: 2019-20 | B4: 30335 | C4: 279 | D4: 30874 | E4: 2351602.99 | F4: 16032791.79 | G4: 14762 | H4: 599 | I4: 20352 | J4: 455726.55 | K4: 1671972.37
A5: 2020-21$ | B5: =B11 -> 31800 | C5: =C11 -> 277 | D5: 31221 | E5: 2330889.28 | F5: 19770287.74 | G5: 15455 | H5: 593 | I5: 20694 | J5: 454306 | K5: 2077006.853
A6: Apr-20 | B6: 30366 | C6: 280 | D6: 30948 | E6: 2354838.66 | F6: 18960841.86 | G6: 38546 | H6: 595 | I6: 20519 | J6: 438715.09 | K6: 1844619.85
A7: May-20 | B7: 30425 | C7: 280 | D7: 30971 | E7: 2175115.25 | F7: 17045667.54 | G7: 14818 | H7: 596 | I7: 20548 | J7: 437804.87 | K7: 1844324.8
A8: Jun-20 | B8: 30594 | C8: 278 | D8: 30989 | E8: 2183559.3 | F8: 18075718.44 | G8: 14891 | H8: 597 | I8: 20589 | J8: 439758.12 | K8: 2042069.83
A9: Jul-20 | B9: 30802 | C9: 278 | D9: 31024 | E9: 2283349.31 | F9: 19011716.52 | G9: 15011 | H9: 597 | I9: 20672 | J9: 445417.07 | K9: 2068009.11
A10: Aug-20 | B10: 31125 | C10: 277 | D10: 31065 | E10: 2301443.69 | F10: 19610998.64 | G10: 15144 | H10: 594 | I10: 20689 | J10: 448038.24 | K10: 2147565.27
A11: Sep-20 | B11: 31800 | C11: 277 | D11: 31221 | E11: 2330889.28 | F11: 19770287.74 | G11: 15455 | H11: 593 | I11: 20694 | J11: 454306 | K11: 2077006.853
A12: Notes : 1. For CDSL, the current and historical data of Companies Live has been revised to exclude MF schemes count. 2. The Companies Live figure includes only the number of mutual fund companies and not the mutual fund schemes. 3. DPs Locations represents the total live (main DPs and branch DPs as well as non-live (back office connected collection centres).
A13: * Includes Nine Participants which are under closure/termination process and SEBI registration is not yet cancelled/suspended
A14: Source: NSDL and CDSL.

Sheet 62
A1: Table 62: Depository Statistics
A2: Particulars | B2: Unit | C2: Debt | E2: Equity | G2: Others | I2: Total
C3: Listed | D3: Unlisted | E3: Listed | F3: Unlisted | G3: Listed | H3: Unlisted | I3: Listed | J3: Unlisted
A4: NSDL
A5: No.of issuers debt/Companies(equity) | B5: (numbers) | C5: 839 | D5: 2085 | E5: 5633 | F5: 22596 | G5: 233 | H5: 5015 | I5: 6705 | J5: 29696
A6: No.of Active Instruments | B6: (numbers) | C6: 9032 | D6: 8212 | E6: 11417 | F6: 24271 | G6: 5032 | H6: 26692 | I6: 25481 | J6: 59175
A7: Demat Quantity | B7: (lakhs) | C7: 114329.4566 | D7: 636912.9548 | E7: 5561367.511 | F7: 10667314.87 | G7: 332039.5731 | H7: 5996928.317 | I7: 6007736.54 | J7: 17301156.14
A8: Demat Value | B8: (Rs.crore) | C8: 2866775.8 | D8: 600111.1947 | E8: 13565291.63 | F8: 1044256.295 | G8: 562162.621 | H8: 1131690.201 | I8: 16994230.05 | J8: 2776057.691
A9: Quantity settled during the month | B9: (Lakh) | C9: 2616.81695 | D9: 6412.22817 | E9: 144479.8318 | F9: 0.10269 | G9: 2481.870951 | H9: 753.3748118 | I9: 149578.5197 | J9: 7165.705672
A10: Value Settled during the month | B10: (Rs.crore) | C10: 122623.2784 | D10: 9003.897816 | E10: 335093.5949 | F10: 0.0023996 | G10: 2915.647805 | H10: 764.6250282 | I10: 460632.5211 | J10: 9768.525244
A11: CDSL
A12: No. of Issuers (Debt) / Companies (Equity) | B12: (numbers) | C12: 602 | D12: 455 | E12: 5718 | F12: 8507 | G12: 2499 | H12: 697 | I12: 8819 | J12: 9659
A13: No. of Active Instruments | B13: (numbers) | C13: 7320 | D13: 3803 | E13: 5855 | F13: 8806 | G13: 20422 | H13: 2244 | I13: 33597 | J13: 14853
A14: Demat Quantity | B14: (lakh) | C14: 3473.25 | D14: 114211.06 | E14: 2346848.6 | F14: 1708065.22 | G14: 227608.3 | H14: 142853.71 | I14: 2577930.14 | J14: 1965130
A15: Demat Value | B15: (Rs.crore) | C15: 73862.42 | D15: 42853.86 | E15: 1699270.5 | F15: 135620.29 | G15: 97473.27 | H15: 27926.52 | I15: 1870606.19 | J15: 206400.67
A16: Quantity settled during the month | B16: (lakh) | C16: 24.14 | D16: 0 | E16: 176975.26 | F16: 0 | G16: 23147.15 | H16: 0 | I16: 200146.55 | J16: 0
A17: Value Settled during the month | B17: (Rs.crore) | C17: 331.39 | D17: 0 | E17: 151225.93 | F17: 0 | G17: 14265.7 | H17: 0 | I17: 165823.03 | J17: 0
A18: Note: The categories included in Others are Preference Shares, Mutual Fund Units, Warrants, PTCs, Treasury Bills, CPs, CDs and Government Securities.
A19: Source: NSDL and CDSL.
A20: As on September 30, 2020

Sheet 63
A1: Table 63: Number of commodities permitted and traded at exchanges
A2: Exchanges | B2: Particulars | C2: Futures | I2: Options
C3: Agriculture | D3: Metals other than bullion | E3: Bullion | F3: Energy | G3: Gems and Stones | H3: Indices | I3: Agriculture | J3: Metals other than bullion | K3: Bullion | L3: Energy
A4: NCDEX | B4: Permitted for trading | C4: 22 | D4: 0 | E4: 0 | F4: 0 | G4: 0 | H4: 1 | I4: 3 | J4: 0 | K4: 0 | L4: 0
B5: Contracts floated | C5: 21 | D5: 0 | E5: 0 | F5: 0 | G5: 0 | H5: 4 | I5: 3 | J5: 0 | K5: 0 | L5: 0
B6: Traded | C6: 15 | D6: 0 | E6: 0 | F6: 0 | G6: 0 | H6: 2 | I6: 2 | J6: 0 | K6: 0 | L6: 0
A7: MCX | B7: Permitted for trading | C7: 8 | D7: 5 | E7: 2 | F7: 2 | G7: 0 | H7: 2 | I7: 0 | J7: 2 | K7: 2 | L7: 1
B8: Contracts floated | C8: 7 | D8: 5 | E8: 2 | F8: 2 | G8: 0 | H8: 1 | I8: 0 | J8: 2 | K8: 2 | L8: 1
B9: Traded | C9: 5 | D9: 5 | E9: 2 | F9: 2 | G9: 0 | H9: 1 | I9: 0 | J9: 2 | K9: 2 | L9: 1
A10: ICEX | B10: Permitted for trading | C10: 10 | D10: 1 | E10: 0 | F10: 0 | G10: 1 | H10: 0 | I10: 0 | J10: 0 | K10: 0 | L10: 0
B11: Contracts floated | C11: 10 | D11: 1 | E11: 0 | F11: 0 | G11: 1 | H11: 0 | I11: 0 | J11: 0 | K11: 0 | L11: 0
B12: Traded | C12: 1 | D12: 0 | E12: 0 | F12: 0 | G12: 1 | H12: 0 | I12: 0 | J12: 0 | K12: 0 | L12: 0
A13: BSE | B13: Permitted for trading | C13: 8 | D13: 3 | E13: 2 | F13: 2 | G13: 0 | H13: 0 | I13: 0 | J13: 0 | K13: 2 | L13: 0
B14: Contracts floated | C14: 8 | D14: 3 | E14: 2 | F14: 2 | G14: 0 | H14: 0 | I14: 0 | J14: 0 | K14: 2 | L14: 0
B15: Traded | C15: 2 | D15: 0 | E15: 1 | F15: 0 | G15: 0 | H15: 0 | I15: 0 | J15: 0 | K15: 2 | L15: 0
A16: NSE | B16: Permitted for trading | C16: 1 | D16: 1 | E16: 2 | F16: 1 | G16: 0 | H16: 0 | I16: 0 | J16: 1 | K16: 2 | L16: 0
B17: Contracts floated | C17: 0 | D17: 0 | E17: 2 | F17: 1 | G17: 0 | H17: 0 | I17: 0 | J17: 0 | K17: 2 | L17: 0
B18: Traded | C18: 0 | D18: 0 | E18: 1 | F18: 0 | G18: 0 | H18: 0 | I18: 0 | J18: 0 | K18: 1 | L18: 0
A19: Source: NCDEX, MCX, ICEX, BSE and NSE

Sheet 64
A1: Table 64: Trends in Commodity Indices
A2: Year/ Month | B2: MCX INDEX | F2: Nkrishi NCDEX INDEX
B3: Open | C3: High | D3: Low | E3: Close | F3: Open | G3: High | H3: Low | I3: Close
A4: 2019-20 @ MCX COMDEX | B4: 3662.99 | C4: 4172 | D4: 3312 | E4: 3739 | F4: 3051.23 | G4: 3590 | H4: 2838 | I4: 3414
A5: 2019-20 @@ MCX iCOMDEX | B5: 10576 | C5: 10951 | D5: 7662.5 | E5: 8255.52 | F5: 3450.3 | G5: 3674 | H5: 2841.01 | I5: 3179.85
A6: 2020-21$ | B6: 8252.44 | C6: 10649.58 | D6: 7866.92 | E6: =E12 -> 9714.1 | F6: 3176.19 | G6: 3627.98 | H6: 3027.91 | I6: =I12 -> 3614.93
A7: 2020-04-01 | B7: 8252.44 | C7: 8848.23 | D7: 7866.92 | E7: 8007.17 | F7: 3176.19 | G7: 3266.84 | H7: 3027.91 | I7: 3173.55
A8: 2020-05-02 | B8: 8008.34 | C8: 8720.91 | D8: 7994.73 | E8: 8705.89 | F8: 3173.55 | G8: 3233.2 | H8: 3121.31 | I8: 3188.11
A9: 2020-06-03 | B9: 8707.21 | C9: 9102.58 | D9: 8664.18 | E9: 9089.06 | F9: 3188.11 | G9: 3343.94 | H9: 3187.68 | I9: 3238.66
A10: 2020-07-04 | B10: 9090.04 | C10: 10047.24 | D10: 8971.64 | E10: 10001.06 | F10: 3238.66 | G10: 3300.47 | H10: 3219.8 | I10: 3265.1
A11: 2020-08-05 | B11: 10001.56 | C11: 10649.58 | D11: 9773.19 | E11: 10227.33 | F11: 3265.1 | G11: 3586.59 | H11: 3262.37 | I11: 3582.76
A12: 2020-09-06 | B12: 10232.2 | C12: 10320.48 | D12: 9540 | E12: 9714.1 | F12: 3582.76 | G12: 3627.98 | H12: 3427.34 | I12: 3614.93
A13: $ indicates as on September 30, 2020
A14: Note : For the F.Y. 2018-19, MCX Index data pertains to MCX COMDEX.
A15: Note : For the F.Y. 2018-19, MCX Index data pertains to MCX COMDEX.
A16: Source: MCX and NCDEX

Sheet 65
A1: Table 65: Trends in Commodity Derivatives at MCX
A2: Futures
A3: Year/ Month | B3: No.of Trading days | C3: Agriculture | F3: Metals | I3: Bullion | L3: Energy | O3: BULLDEX Index | R3: Total | T3: Open interest at the end of the period
C4: Volume ('000 tonnes) | D4: No. of contracts traded | E4: Turnover (₹ crore) | F4: Volume ('000 tonnes) | G4: No. of contracts traded | H4: Turnover (₹ crore) | I4: Volume ('000 tonnes) | J4: No. of contracts traded | K4: Turnover (₹ crore) | L4: Volume ('000 tonnes)* | M4: No. of contracts traded | N4: Turnover (₹ crore) | O4: Volume ('000 lots)** | P4: No. of contracts traded | Q4: Turnover (₹ crore) | R4: No. of contracts traded | S4: Turnover (₹ crore) | T4: No. of contracts traded | U4: Value (₹ crore)
A5: 2019-20 | B5: 259 | C5: 11353.45303 | D5: 1789350 | E5: 100919.4925 | F5: 54812.69815 | G5: 37596650 | H5: 1568294.471 | I5: 267.940539 | J5: 50829084 | K5: 2915533.563 | L5: 1188816.195 | M5: 205480778 | N5: 3813027.43 | O5: NA | P5: NA | Q5: NA | R5: 295695862 | S5: 8397774.957 | T5: 148505 | U5: 11002.5758
A6: 2020-21$ | B6: =SUM(B7:B12) -> 127 | C6: =SUM(C7:C12) -> 4604.18232 | D6: 535589 | E6: 34086.21093 | F6: 18085.8775 | G6: 7309437 | H6: 686498.9593 | I6: 222.5319967 | J6: 58152239 | K6: 2414086.679 | L6: 208535.6101 | M6: =SUM(M7:M12) -> 37285203 | N6: =SUM(N7:N12) -> 786411.0143 | O6: 91.966 | P6: 91966 | Q6: 7302.535505 | R6: 103374434 | S6: 3928385.399 | T6: =T12 -> 158034 | U6: =U12 -> 13881.93136
A7: 2020-04-01 | B7: 18 | C7: 517.98456 | D7: 66294 | E7: 3671.85573 | F7: 1396.8565 | G7: 1107524 | H7: 43536.21015 | I7: 12.25099258 | J7: 3589671 | K7: 143017.3043 | L7: 54865.71703 | M7: 5858278 | N7: 91621.07468 | O7: NA | P7: NA | Q7: NA | R7: 10621767 | S7: 281846.4448 | T7: 122686 | U7: 11614.03736
A8: 2020-05-02 | B8: 21 | C8: 617.4138 | D8: 76863 | E8: 4106.318418 | F8: 2275.9255 | G8: 1497418 | H8: 79117.77099 | I8: 27.946811 | J8: 7175006 | K8: 296836.6268 | L8: 37857.34025 | M8: 6228088 | N8: 118996.5638 | O8: NA | P8: NA | Q8: NA | R8: 14977375 | S8: 499057.28 | T8: 135281 | U8: 14295.76039
A9: 2020-06-03 | B9: 22 | C9: 877.94938 | D9: 104714 | E9: 6367.65819 | F9: 3261.3175 | G9: 1057395 | H9: 115127.8132 | I9: 37.02126068 | J9: 9153415 | K9: 364906.4095 | L9: 39902.86552 | M9: 6570596 | N9: 143533.8421 | O9: NA | P9: NA | Q9: NA | R9: 16886120 | S9: 629935.7229 | T9: 152305 | U9: 14749.86986
A10: 2020-07-04 | B10: 23 | C10: 989.4659 | D10: 114651 | E10: 7277.396251 | F10: 3745.43 | G10: 1253701 | H10: 149118.7076 | I10: 57.35769892 | J10: 13030913 | K10: 559967.5982 | L10: 30250.28693 | M10: 6432779 | N10: 137758.0235 | O10: NA | P10: NA | Q10: NA | R10: 20832044 | S10: 854121.7255 | T10: 144727 | U10: 15233.68247
A11: 2020-08-05 | B11: 21 | C11: 742.65033 | D11: 82203 | E11: 5824.450484 | F11: 3733.9475 | G11: 1216867 | H11: 152687.2922 | I11: 53.48041365 | J11: 14921463 | K11: 626980.1061 | L11: 21521.77385 | M11: 4927161 | N11: 123009.1633 | O11: 26.304 | P11: 26304 | Q11: 2119.63451 | R11: 21173998 | S11: 910620.6467 | T11: 164840 | U11: 17478.61964
A12: 2020-09-06 | B12: 22 | C12: 858.71835 | D12: 90864 | E12: 6838.53186 | F12: 3672.4005 | G12: 1176532 | H12: 146911.1652 | I12: 34.4748199 | J12: 10281771 | K12: 422378.6342 | L12: 24137.62654 | M12: 7268301 | N12: 171492.347 | O12: 65.662 | P12: 65662 | Q12: 5182.900995 | R12: 18883130 | S12: 752803.5792 | T12: 158034 | U12: 13881.93136
A15: Options
A16: Year / Month | B16: No.of Trading days | C16: Metals | G16: Bullion | K16: Energy | O16: Total | Q16: Open interest at the end of the period
C17: Call Options | E17: Put Options | G17: Call Options | I17: Put Options | K17: Call Options | M17: Put Options | O17: No. of contracts traded | P17: Turnover (₹ crore) | Q17: No. of contracts traded | R17: Notional Value (₹ crore)
C18: No. of contracts traded | D18: Turnover (₹ crore) | E18: No. of contracts traded | F18: Turnover (₹ crore) | G18: No. of contracts traded | H18: Turnover (₹ crore) | I18: No. of contracts traded | J18: Turnover (₹ crore) | K18: No. of contracts traded | L18: Turnover (₹ crore) | M18: No. of contracts traded | N18: Turnover (₹ crore)
A19: 2019-20 | B19: 259 | C19: 18146 | D19: 1293.233604 | E19: 12977 | F19: 969.928682 | G19: 251533 | H19: 74410.13889 | I19: 278935 | J19: 90244.62965 | K19: 1729784 | L19: 69961.98724 | M19: 1393470 | N19: 54862.74249 | O19: 3684845 | P19: 291742.6706 | Q19: 11844 | R19: 698.0797015
A20: 2020-21$ | B20: =SUM(B21:B26) -> 127 | C20: =SUM(C21:C26) -> 170 | D20: 20.923035 | E20: 308 | F20: 31.7785315 | G20: 111520 | H20: 40117.61819 | I20: 160057 | J20: 56814.84921 | K20: 384719 | L20: 10651.90102 | M20: 318530 | N20: =SUM(N21:N26) -> 8138.500492 | O20: =SUM(O21:O26) -> 975304 | P20: 115775.5705 | Q20: =Q26 -> 7154 | R20: =R26 -> 1279.010783
A21: 2020-04-01 | B21: 18 | C21: 3 | D21: 0.32998 | E21: 9 | F21: 0.8910125 | G21: 6999 | H21: 1968.677466 | I21: 10944 | J21: 3679.823701 | K21: 90838 | L21: 1914.003608 | M21: 55438 | N21: 933.480838 | O21: 164231 | P21: 8497.206606 | Q21: 11690 | R21: 1651.020659
A22: 2020-05-02 | B22: 21 | C22: 31 | D22: 3.22686 | E22: 120 | F22: 11.252795 | G22: 11114 | H22: 4286.829843 | I22: 22893 | J22: 8974.658731 | K22: 62769 | L22: 1473.608562 | M22: 65421 | N22: 1300.13799 | O22: 162348 | P22: 16049.71478 | Q22: 7927 | R22: 816.2200095
A23: 2020-06-03 | B23: 22 | C23: 11 | D23: 1.238222 | E23: 15 | F23: 1.609997 | G23: 14448 | H23: 4216.118058 | I23: 19882 | J23: 6425.076092 | K23: 77698 | L23: 2375.349789 | M23: 74545 | N23: 2119.272538 | O23: 186599 | P23: 15138.6647 | Q23: 7860 | R23: 1559.11
A24: 2020-07-04 | B24: 23 | C24: 52 | D24: 6.482054 | E24: 114 | F24: 13.358576 | G24: 16126 | H24: 5916.559862 | I24: 33590 | J24: 11775.03414 | K24: 54977 | L24: 1749.687927 | M24: 52671 | N24: 1603.409256 | O24: 157530 | P24: 21064.53181 | Q24: 7882 | R24: 1184.07
A25: 2020-08-05 | B25: 21 | C25: 51 | D25: 6.733683 | E25: 43 | F25: 3.76247 | G25: 31320 | H25: 11674.08134 | I25: 45055 | J25: 14320.37471 | K25: 51453 | L25: 1688.743729 | M25: 41167 | N25: 1304.544019 | O25: 169089 | P25: 28998.23995 | Q25: 9062 | R25: 3026.305357
A26: 2020-09-06 | B26: 22 | C26: 22 | D26: 2.912236 | E26: 7 | F26: 0.903681 | G26: 31513 | H26: 12055.35163 | I26: 27693 | J26: 11639.88184 | K26: 46984 | L26: 1450.507405 | M26: 29288 | N26: 877.655851 | O26: 135507 | P26: 26027.21264 | Q26: 7154 | R26: 1279.010783
A27: $ indicates as on September 30, 2020
A28: Note : 1. Natural Gas volume is in Trillion BTU and is not included in volume ("000 tonnes") of energy contracts.
A29: 2. Options includes both options on futures and goods.
A30: Source: MCX

Sheet 66
A1: Table 66: Trends in Commodity Derivatives at NCDEX
A2: Year/ Month | B2: No.of Trading days | C2: Futures | M2: Options
C3: Agriculture | F3: Agridex Index | I3: Total | K3: Open interest at the end of the period | M3: Call options | O3: Put options | Q3: Total | S3: Open interest at the end of the period
C4: Volume ('000 tonnes) | D4: No. of contracts traded | E4: Turnover (₹ crore) | F4: Volume ('000 tonnes) | G4: No. of contracts traded | H4: Turnover (₹ crore) | I4: No. of contracts traded | J4: Turnover (₹ crore) | K4: No. of contracts traded | L4: Value (₹ crore) | M4: No. of contracts traded | N4: Turnover (₹ crore) | O4: No. of contracts traded | P4: Turnover (₹ crore) | Q4: No. of contracts traded | R4: Turnover (₹ crore) | S4: No. of contracts traded | T4: Notional Value (₹ crore)
A6: 2019-20 | B6: 247 | C6: 95258.746 | D6: 13080142 | E6: 441966.9694 | F6: Na | G6: Na | H6: Na | I6: Na | J6: Na | K6: 93073 | L6: 2262.96 | M6: 1518 | N6: 41.41 | O6: 22 | P6: 0.74 | Q6: =M6+O6 -> 1540 | R6: 42.15 | S6: 0 | T6: 0
A7: 2020-21$ | B7: =SUM(B8:B13) -> 125 | C7: =SUM(C8:C13) -> 25002.676 | D7: 3809685 | E7: 112975.7327 | F7: 4.233 | G7: =SUM(G8:G13) -> 4882 | H7: 254.8846875 | I7: 3814567 | J7: 113230.6173 | K7: =K13 -> 75975 | L7: =L13 -> 2328.35805 | M7: 169 | N7: =SUM(N8:N13) -> 5.94 | O7: =SUM(O8:O13) -> 5 | P7: 0.11 | Q7: 174 | R7: 6.05 | S7: =S13 -> 19 | T7: =T13 -> 0.1
A8: 2020-04-01 | B8: 18 | C8: 3043.897 | D8: 491426 | E8: 12560.80381 | F8: Na | G8: Na | H8: Na | I8: =SUM(D8,G8) -> 491426 | J8: =SUM(E8,H8) -> 12560.80381 | K8: 69860 | L8: 1730.296536 | M8: 20 | N8: 0.68 | O8: 1 | P8: 0.02 | Q8: 21 | R8: 0.7 | S8: 1 | T8: 0.02
A9: 2020-05-02 | B9: 19 | C9: 2738.565 | D9: 417099 | E9: 11098.38433 | F9: 1.357 | G9: 1357 | H9: 69.0740125 | I9: =SUM(D9,G9) -> 418456 | J9: 11167.45834 | K9: 63805 | L9: 1656.4985 | M9: 50 | N9: 1.53 | O9: 0 | P9: 0 | Q9: 50 | R9: 1.53 | S9: 50 | T9: 0.13
A10: 2020-06-03 | B10: 22 | C10: 4488.21 | D10: 664305 | E10: 18815.04236 | F10: 2.021 | G10: 2021 | H10: 105.1227375 | I10: 666326 | J10: 18920.1651 | K10: 65440 | L10: 1778.6 | M10: 80 | N10: 2.65 | O10: 0 | P10: 0 | Q10: 80 | R10: 2.65 | S10: 80 | T10: 0.26
A11: 2020-07-04 | B11: 23 | C11: 4228.303 | D11: 624760 | E11: 18009.33201 | F11: 0.855 | G11: 855 | H11: 44.82105 | I11: 625615 | J11: 18054.15306 | K11: 65264 | L11: 1959.09 | M11: 2 | N11: 0.1 | O11: 0 | P11: 0 | Q11: 2 | R11: 0.1 | S11: 0 | T11: 0
A12: 2020-08-05 | B12: 21 | C12: 4991.033 | D12: 761709 | E12: 23905.79866 | F12: 0.438 | G12: 438 | H12: 23.934025 | I12: 762147 | J12: 23929.73268 | K12: 74187 | L12: 2323.35889 | M12: 0 | N12: 0 | O12: 0 | P12: 0 | Q12: 0 | R12: 0 | S12: 0 | T12: 0
A13: 2020-09-06 | B13: 22 | C13: 5512.668 | D13: 850386 | E13: 28586.37148 | F13: 0.211 | G13: 211 | H13: 11.9328625 | I13: 850597 | J13: 28598.30434 | K13: 75975 | L13: 2328.35805 | M13: 17 | N13: 0.98 | O13: 4 | P13: 0.09 | Q13: 21 | R13: 1.07 | S13: 19 | T13: 0.1
A14: $ indicates as on September 30, 2020
A15: Source: NCDEX

Sheet 67
A1: Table 67: Trends in Commodity Derivatives at ICEX
A2: Year/ Month | B2: No.of Trading days | C2: Agriculture Futures | F2: Metals Futures | I2: Gems and Stones Futures | L2: Total | N2: Open interest at the end of the period
C3: Volume ('000 tonnes) | D3: No. of contracts traded | E3: Turnover (₹ crore) | F3: Volume ('000 tonnes) | G3: No. of contracts traded | H3: Turnover (₹ crore) | I3: Volume (in cents) | J3: No. of contracts traded | K3: Turnover (₹ crore) | L3: No. of contracts traded | M3: Turnover (₹ crore) | N3: No. of contracts traded | O3: Value (₹ crore)
A4: 2019-20 | B4: 259 | C4: 821.739 | D4: 268376 | E4: 5353.523373 | F4: 2450.71 | G4: 245071 | H4: 7437.7323 | I4: 78395209 | J4: 78395209 | K4: 27720.03751 | L4: 78908656 | M4: 40511.29218 | N4: 8290 | O4: 19.32
A5: 2020-21$ | B5: =SUM(B6:B11) -> 127 | C5: =SUM(C6:C11) -> 64.8627 | D5: 15864 | E5: 307.630813 | F5: 251.66 | G5: 25166 | H5: 747.52123 | I5: 1456847 | J5: 1456847 | K5: 553.8050329 | L5: 1497877 | M5: 1608.957726 | N5: =N11 -> 176 | O5: =O11 -> 0.05
A6: 2020-04-01 | B6: 18 | C6: 50.8377 | D6: 9581 | E6: 213.0219 | F6: 159.34 | G6: 15934 | H6: 472.8693 | I6: 655886 | J6: 655886 | K6: 250.5 | L6: 681401 | M6: 936.39175 | N6: 14307 | O6: 19.65
A7: 2020-05-02 | B7: 21 | C7: 10.79 | D7: 3048 | E7: 53.65 | F7: 83.18 | G7: 8318 | H7: 246.82 | I7: 641368 | J7: 641368 | K7: 242.99 | L7: 652734 | M7: 543.46 | N7: 10497 | O7: 15.64
A8: 2020-06-03 | B8: 22 | C8: 1.321 | D8: 1321 | E8: 16.16 | F8: 8.4 | G8: 840 | H8: 25.6 | I8: 153591 | J8: 153591 | K8: 58.103 | L8: 155752 | M8: 99.863 | N8: 6912 | O8: 7.45
A9: 2020-07-04 | B9: 23 | C9: 1.741 | D9: 1741 | E9: 22.481598 | F9: 0.74 | G9: 74 | H9: 2.23193 | I9: 5821 | J9: 5821 | K9: 2.09509486 | L9: 7636 | M9: 26.80862286 | N9: 3378 | O9: 5.12059014
A10: 2020-08-05 | B10: 21 | C10: 0.17 | D10: 170 | E10: 2.276715 | F10: 0 | G10: 0 | H10: 0 | I10: 5 | J10: 5 | K10: 0.001638 | L10: 175 | M10: 2.278353 | N10: 36 | O10: 0.483696
A11: 2020-09-06 | B11: 22 | C11: 0.003 | D11: 3 | E11: 0.0406 | F11: 0 | G11: 0 | H11: 0 | I11: 176 | J11: 176 | K11: 0.1153 | L11: 179 | M11: 0.156 | N11: 176 | O11: 0.05
A12: $ indicates as on September 30, 2020
A13: Notes : Contract size for all diamond futures contract at ICEX is one cent.
A14: Source: ICEX

Sheet 68
A1: Table 68: Trends in Commodity Derivatives Segment at BSE
A2: Futures
A3: Year/ Month | B3: No.of Trading days | C3: Metal | F3: Bullion | I3: Energy | L3: Agriculture | O3: Total | Q3: Open interest at the end of the period
C4: Volume ( '000 tonnes) | D4: No. of contracts traded | E4: Turnover (₹ crore) | F4: Volume ( '000 tonnes) | G4: No. of contracts traded | H4: Turnover (₹ crore) | I4: Volume ( '000 tonnes) | J4: No. of contracts traded | K4: Turnover (₹ crore) | L4: Volume ( '000 tonnes) | M4: No. of contracts traded | N4: Turnover (₹ crore) | O4: No. of contracts traded | P4: Turnover (₹ crore) | Q4: No. of contracts traded | R4: Value (₹ crore)
A5: 2019-20 | B5: 259 | C5: 0.874 | D5: 874 | E5: 39.2752 | F5: 0.49412 | G5: 41682 | H5: 8836.561185 | I5: 422.8512934 | J5: 30995 | K5: 1246.95 | L5: 6825.5124 | M5: 834466 | N5: 36315.92885 | O5: 908017 | P5: 46438.71523 | Q5: 1 | R5: 0.03
A6: 2020-21$ | B6: =SUM(B7:B12) -> 126 | C6: 0 | D6: 0 | E6: 0 | F6: 0.0006437 | G6: 203 | H6: 22.65 | I6: 0.354706685 | J6: 26 | K6: 0.57201 | L6: 768.77275 | M6: 102558 | N6: 4073.23313 | O6: 102787 | P6: 4096.45514 | Q6: =Q12 -> 67 | R6: =R12 -> 3.86
A7: 2020-04-01 | B7: 18 | C7: 0 | D7: 0 | E7: 0 | F7: 0 | G7: 0 | H7: 0 | I7: 0 | J7: 0 | K7: 0 | L7: 200.3805 | M7: 25734 | N7: 1001.73313 | O7: 25734 | P7: 1001.73313 | Q7: 0 | R7: 0
A8: 2020-05-02 | B8: 20 | C8: 0 | D8: 0 | E8: 0 | F8: 0 | G8: 0 | H8: 0 | I8: 0.354706685 | J8: 26 | K8: 0.57201 | L8: 165.684 | M8: 21380 | N8: 847.49 | O8: 21406 | P8: 848.06201 | Q8: 50 | R8: 2.64
A9: 2020-06-03 | B9: 22 | C9: 0 | D9: 0 | E9: 0 | F9: 0.0006337 | G9: 123 | H9: 18.64 | I9: 0 | J9: 0 | K9: 0 | L9: 314.88175 | M9: 39937 | N9: 1565.29 | O9: 40060 | P9: 1583.93 | Q9: 86 | R9: 4.52
A10: 2020-07-04 | B10: 23 | C10: 0 | D10: 0 | E10: 0 | F10: 0 | G10: 0 | H10: 0 | I10: 0 | J10: 0 | K10: 0 | L10: 46.9645 | M10: 7891 | N10: 323.74 | O10: 7891 | P10: 323.74 | Q10: 83 | R10: 4.12
A11: 2020-08-01 | B11: 21 | C11: 0 | D11: 0 | E11: 0 | F11: 0 | G11: 0 | H11: 0 | I11: 0 | J11: 0 | K11: 0 | L11: 19.513 | M11: 3574 | N11: 153.78 | O11: 3574 | P11: 153.78 | Q11: 67 | R11: 4.08
A12: 2020-09-01 | B12: 22 | C12: 0 | D12: 0 | E12: 0 | F12: 1e-05 | G12: 80 | H12: 4.01 | I12: 0 | J12: 0 | K12: 0 | L12: 21.349 | M12: 4042 | N12: 181.2 | O12: 4122 | P12: 185.21 | Q12: 67 | R12: 3.86
A15: Options
A16: Year / Month | B16: No.of Trading days | C16: Bullion | G16: Total | I16: Open interest at the end of the period
C17: Call Options | E17: Put Options | G17: No. of contracts traded | H17: Turnover (₹ crore) | I17: No. of contracts traded | J17: Notional Value (₹ crore)
C18: No. of contracts traded | D18: Turnover (₹ crore) | E18: No. of contracts traded | F18: Turnover (₹ crore)
A19: 2020-21$ | B19: =SUM(B20:B23) -> 88 | C19: =SUM(C20:C23) -> 1288515 | D19: 76735.7 | E19: 2923977 | F19: 152326.32 | G19: 4212492 | H19: 229062.02 | I19: =I23 -> 38 | J19: =J23 -> 0.09
A20: 2020-06-01 | B20: 22 | C20: 298958 | D20: 13332.21 | E20: 294684 | F20: 13484.56 | G20: 593642 | H20: 26816.77 | I20: 389 | J20: 0.11
A21: 2020-07-01 | B21: 23 | C21: 267903 | D21: 13424.07 | E21: 1238158 | F21: 58818.92 | G21: 1506061 | H21: 72242.99 | I21: 376 | J21: 0.38
A22: 2020-08-01 | B22: 21 | C22: 344179 | D22: 20187.25 | E22: 1036730 | F22: 51483.6 | G22: 1380909 | H22: 71670.85 | I22: 329 | J22: 0.17
A23: 2020-09-01 | B23: 22 | C23: 377475 | D23: 29792.17 | E23: 354405 | F23: 28539.24 | G23: 731880 | H23: 58331.41 | I23: 38 | J23: 0.09
A24: $ indicates as on September 30, 2020
A25: Conversion factors: Brent Crude Oil (1 Tonne = 7.33 Barrels)
A26: Source: BSE

Sheet 69
A1: Table 69: Trends in Commodity Derivatives Segment at NSE
A2: Futures
A3: Year/ Month | B3: No.of Trading days | C3: Bullion | F3: Energy | I3: Total | K3: Open interest at the end of the period
C4: Volume ('000 tonnes) | D4: No. of contracts traded | E4: Turnover (₹ crore) | F4: Volume ('000 tonnes) | G4: No. of contracts traded | H4: Turnover (₹ crore) | I4: No. of contracts traded | J4: Turnover (₹ crore) | K4: No. of contracts traded | L4: Value (₹ crore)
A5: 2019-20 | B5: 259 | C5: 0.0218643 | D5: 65928 | E5: 5773.602194 | F5: 0.01 | G5: 79626 | H5: 588.697081 | I5: 145554 | J5: 6362.004456 | K5: 8 | L5: 0.33
A6: 2020-21$ | B6: =SUM(B7:B12) -> 127 | C6: =SUM(C7:C12) -> 0.0011325 | D6: 11280 | E6: 546.08944 | F6: 0 | G6: 0 | H6: 0 | I6: 11280 | J6: 546.08944 | K6: =K12 -> 7 | L6: =L12 -> 0.35
A7: 2020-04-01 | B7: 18 | C7: 0.0001256 | D7: 1256 | E7: 57.360367 | F7: 0 | G7: 0 | H7: 0 | I7: 1256 | J7: 57.360367 | K7: 17 | L7: 0.76
A8: 2020-05-02 | B8: 21 | C8: 0.0001651 | D8: 1651 | E8: 76.517431 | F8: 0 | G8: 0 | H8: 0 | I8: 1651 | J8: 76.517431 | K8: 3 | L8: 0.14
A9: 2020-06-03 | B9: 22 | C9: 0.0004474 | D9: 4474 | E9: 209.17938 | F9: 0 | G9: 0 | H9: 0 | I9: =SUM(D9,G9) -> 4474 | J9: =SUM(E9,H9) -> 209.17938 | K9: 18 | L9: 0.87
A10: 2020-07-04 | B10: 23 | C10: 9.11e-05 | D10: 911 | E10: 45.49317 | F10: 0 | G10: 0 | H10: 0 | I10: 911 | J10: 45.49317 | K10: 23 | L10: 1.23
A11: 2020-08-05 | B11: 21 | C11: 0.0001748 | D11: 1748 | E11: 92.012485 | F11: 0 | G11: 0 | H11: 0 | I11: 1748 | J11: 92.012485 | K11: 7 | L11: 0.36
A12: 2020-09-06 | B12: 22 | C12: 0.0001285 | D12: 1240 | E12: 65.526607 | F12: 0 | G12: 0 | H12: 0 | I12: 1240 | J12: 65.526607 | K12: 7 | L12: 0.35
A15: Options
A16: Year / Month | B16: No.of Trading days | C16: Bullion | G16: Total | I16: Open interest at the end of the period
C17: Call Options | E17: Put Options | G17: No. of contracts traded | H17: Turnover (₹ crore) | I17: No. of contracts traded | J17: Notional Value (₹ crore)
C18: No. of contracts traded | D18: Turnover (₹ crore) | E18: No. of contracts traded | F18: Turnover (₹ crore)
A19: 2020-21$ | B19: =SUM(B20:B23) -> 88 | C19: =SUM(C20:C23) -> 136716 | D19: 6971.053394 | E19: 102173 | F19: 5132.904434 | G19: 238889 | H19: 12103.95783 | I19: =I23 -> 3787 | J19: =J23 -> 191.08
A20: 2020-06-01 | B20: 22 | C20: 21403 | D20: 1028.346146 | E20: 15232 | F20: 723.5290575 | G20: =SUM(C20,E20) -> 36635 | H20: =SUM(D20,F20) -> 1751.875204 | I20: 1181 | J20: 56.33
A21: 2020-07-01 | B21: 23 | C21: 72333 | D21: 3649.582645 | E21: 52135 | F21: 2586.172328 | G21: 124468 | H21: 6235.754974 | I21: 2760 | J21: 140.36
A22: 2020-08-01 | B22: 21 | C22: 23412 | D22: 1275.977891 | E22: 20669 | F22: 1105.942207 | G22: 44081 | H22: 2381.920097 | I22: 547 | J22: 27.41
A23: 2020-09-01 | B23: 22 | C23: 19568 | D23: 1017.146712 | E23: 14137 | F23: 717.2608415 | G23: 33705 | H23: 1734.407553 | I23: 3787 | J23: 191.08
A24: $ indicates as on September 30, 2020
A25: Source: NSE

Sheet 70
A1: Table 70: Participant-wise percentage Share of Turnover in Commodity Derivatives at various Exchanges
A2: Year/ Month | B2: MCX | F2: NCDEX | K2: ICEX | O2: BSE | S2: NSE
B3: Agri Segment | D3: Non-Agri Segment | F3: Agri Segment | I3: Agridex Index | K3: Agri Segment | M3: Non-Agri Segment | O3: Agri Segment | Q3: Non-Agri Segment | S3: Non-Agri Segment
B4: Proprietary | C4: Client | D4: Proprietary | E4: Client | F4: Proprietary | G4: Client | H4: Hedgers | I4: Proprietary | J4: Client | K4: Proprietary | L4: Client | M4: Proprietary | N4: Client | O4: Proprietary | P4: Client | Q4: Proprietary | R4: Client | S4: Proprietary | T4: Client
A5: 2019-20 | B5: 38.2633752 | C5: 61.7366248 | D5: 36.87670666 | E5: 63.12329334 | F5: 47.19185166 | G5: 52.04284054 | H5: 0.7653077977 | I5: Na | J5: Na | K5: 56.34039194 | L5: 43.65960806 | M5: 70.4888155 | N5: 29.42785117 | O5: 51.22235231 | P5: 26.97950018 | Q5: 17.88576118 | R5: 3.912386337 | S5: 45.26539282 | T5: 54.73460718
A6: 2020-21$ | B6: 35.12492381 | C6: 64.87507619 | D6: 38.80211424 | E6: 61.19788576 | F6: 43.21766596 | G6: 55.52033284 | H6: 1.262001203 | I6: 37.47616753 | J6: 62.52383247 | K6: 23.24 | L6: 76.76 | M6: 50.63 | N6: 49.37 | O6: 20.89697385 | P6: 0.9571145987 | Q6: 48.51906964 | R6: 29.62684191 | S6: 58.15881376 | T6: 41.84118624
A7: 2020-04-01 | B7: 41.228984 | C7: 58.771016 | D7: 36.8383438 | E7: 63.1616562 | F7: 42.83471831 | G7: 55.82364098 | H7: 1.341640711 | I7: Na | J7: Na | K7: 77.48072094 | L7: 22.51927906 | M7: 80.36590679 | N7: 19.63409321 | O7: 50.01482181 | P7: 49.98517819 | Q7: 0 | R7: 0 | S7: 76.10738875 | T7: 23.89261125
A8: 2020-05-02 | B8: 41.82131849 | C8: 58.17868151 | D8: 36.50010864 | E8: 63.49989136 | F8: 44.72332332 | G8: 53.65026611 | H8: 1.626410562 | I8: 42.52468503 | J8: 57.47531497 | K8: 58.5354238 | L8: 41.4645762 | M8: 57.64303036 | N8: 42.35696964 | O8: 59.47961388 | P8: 40.45293723 | Q8: 0.03634747914 | R8: 0.03110141476 | S8: 66.8194813 | T8: 33.1805187
A9: 2020-06-03 | B9: 34.19076582 | C9: 65.80923418 | D9: 36.83886889 | E9: 63.16113111 | F9: 40.51230272 | G9: 57.69991457 | H9: 1.787782714 | I9: 37.10827189 | J9: 62.89172811 | K9: 2.075695767 | L9: 97.92430423 | M9: 37.15491193 | N9: 62.84508807 | O9: 51.4582047 | P9: 38.22541554 | Q9: 8.431090747 | R9: 1.885289009 | S9: 74.49723535 | T9: 25.50276465
A10: 2020-07-04 | B10: 32.39023161 | C10: 67.60976839 | D10: 39.61896498 | E10: 60.38103502 | F10: 41.66 | G10: 56.87 | H10: 1.48 | I10: 43.08 | J10: 56.92 | K10: 0.451487034 | L10: 99.54851297 | M10: 27.29521156 | N10: 72.70478844 | O10: 52.08402687 | P10: 3.861361861 | Q10: 44.02373053 | R10: 0.03088074502 | S10: 54.19844805 | T10: 45.80155195
A11: 2020-09-06 | B11: 33.38559688 | C11: 66.61440312 | D11: 39.14302808 | E11: 60.85697192 | F11: 45.33939712 | G11: 53.9966495 | H11: 0.6639533812 | I11: 17.82310196 | J11: 82.17689804 | K11: 0 | L11: 100 | M11: 1.34 | N11: 98.66 | O11: 68.0563325 | P11: 2.599178861 | Q11: 28.85567313 | R11: 0.488815512 | S11: 53.40058302 | T11: 46.59941698
A12: 2020-09-06 | B12: 33.38559688 | C12: 66.61440312 | D12: 39.14302808 | E12: 60.85697192 | F12: 45.33939712 | G12: 53.9966495 | H12: 0.6639533812 | I12: 17.82310196 | J12: 82.17689804 | K12: 0 | L12: 100 | M12: 1.34 | N12: 98.66 | O12: 68.0563325 | P12: 2.599178861 | Q12: 28.85567313 | R12: 0.488815512 | S12: 53.40058302 | T12: 46.59941698
A13: $ indicates as on September 30, 2020
A14: Source: MCX, NCDEX, ICEX, BSE and NSE

Sheet 71
A1: Table 71: Commodity-wise Turnover and Trading Volume at MCX
A2: Sr.No | B2: Name of the Commodity | C2: 2020-21$ | E2: 2019-09-01 | G2: 2020-08-01 | I2: 2020-09-01
C3: Volume ('000 tonnes) | D3: Value (₹ crore) | E3: Volume ('000 tonnes) | F3: Value (₹ crore) | G3: Volume ('000 tonnes) | H3: Value (₹ crore) | I3: Volume ('000 tonnes) | J3: Value (₹ crore)
A4: Futures
A5: A | B5: Bullion
A6: 1 | B6: Gold | C6: 2.314070744 | D6: 1142001.717 | E6: 0.462229475 | F6: 176915.6358 | G6: 0.488379654 | H6: 257929.5767 | I6: 0.398607904 | J6: 202543.4458
A7: 2 | B7: Silver | C7: 220.217926 | D7: 1272084.962 | E7: 27.001645 | F7: 128763.2506 | G7: 52.992034 | H7: 369050.5294 | I7: 34.076212 | J7: 219835.1884
B8: Total for A | C8: =SUM(C6:C7) -> 222.5319967 | D8: =SUM(D6:D7) -> 2414086.679 | E8: 27.46387448 | F8: 305678.8865 | G8: 53.48041365 | H8: 626980.1061 | I8: 34.4748199 | J8: 422378.6342
A9: B | B9: Metals other than Bullion
A10: 1 | B10: Aluminium | C10: 1120.374 | D10: 15622.41698 | E10: 413.194 | F10: 5747.71161 | G10: 247.665 | H10: 3606.5384 | I10: 219.825 | J10: 3186.601225
A11: 2 | B11: Copper | C11: 5423.95 | D11: 259784.5045 | E11: 1026.6575 | F11: 46051.57354 | G11: 1141.1375 | H11: 58892.12775 | I11: 1131.0625 | J11: 59269.0689
A12: 3 | B12: Lead | C12: 2302.094 | D12: 33300.92743 | E12: 974.246 | F12: 15096.08406 | G12: 459.66 | H12: 7078.115525 | I12: 489.035 | J12: 7284.61605
A13: 4 | B13: Nickel | C13: 2562.9315 | D13: 261156.5327 | E13: 278.5675 | F13: 34777.11917 | G13: 518.25 | H13: 56862.57893 | I13: 462.513 | J13: 50756.27985
A14: 5 | B14: Zinc | C14: 6676.528 | D14: 116634.5778 | E14: 2130.742 | F14: 39362.95568 | G14: 1367.235 | H14: 26247.93162 | I14: 1369.965 | J14: 26414.59915
B15: Total for B | C15: =SUM(C10:C14) -> 18085.8775 | D15: =SUM(D10:D14) -> 686498.9593 | E15: 4823.407 | F15: 141035.4441 | G15: 3733.9475 | H15: 152687.2922 | I15: 3672.4005 | J15: 146911.1652
A16: C | B16: Agricultural commodities
A17: 1 | B17: Cardamom | C17: 0.0237 | D17: 3.997039 | E17: 0.1264 | F17: 34.327807 | G17: 0 | H17: 0 | I17: 0.0003 | J17: 0.0464
A18: 2 | B18: Cotton | C18: 469.4465 | D18: 4478.580725 | E18: 97.291 | F18: 1120.570975 | G18: 41.50125 | H18: 410.064775 | I18: 19.16325 | J18: 201.26445
A19: 3 | B19: CPO | C19: 4100.97 | D19: 28707.68452 | E19: 402.47 | F19: 2238.16268 | G19: 694.67 | H19: 5193.31282 | I19: 831.9 | J19: 6430.81187
A20: 4 | B20: Mentha Oil | C20: 7.56612 | D20: 764.7305796 | E20: 7.84296 | F20: 999.173898 | G20: 1.99908 | H20: 198.4402692 | I20: 1.8468 | J20: 176.46741
A21: 5 | B21: Kapas | C21: 26.176 | D21: 131.21807 | E21: 1.312 | F21: 7.12719 | G21: 4.48 | H21: 22.63262 | I21: 5.808 | J21: 29.94173
B22: Total for C | C22: =SUM(C17:C21) -> 4604.18232 | D22: =SUM(D17:D21) -> 34086.21093 | E22: 509.04236 | F22: 4399.36255 | G22: 742.65033 | H22: 5824.450484 | I22: 858.71835 | J22: 6838.53186
A23: D | B23: Energy
A24: 1 | B24: Crude Oil | C24: 208535.6101 | D24: 371086.7655 | E24: 100825.7723 | F24: 301964.0984 | G24: 21521.77385 | H24: 49838.88171 | I24: 24137.62654 | J24: 51388.29022
A25: 2 | B25: Natural Gas (trln. Btu) | C25: 27499.42875 | D25: 415324.2488 | E25: 1831.5375 | F25: 33017.353 | G25: 4187.01875 | H25: 73170.28159 | I25: 6873.76625 | J25: 120104.0568
B26: Total for D | C26: =C24 -> 208535.6101 | D26: =SUM(D24:D25) -> 786411.0143 | E26: =E24 -> 100825.7723 | F26: =SUM(F24:F25) -> 334981.4514 | G26: =G24 -> 21521.77385 | H26: =SUM(H24:H25) -> 123009.1633 | I26: =I24 -> 24137.62654 | J26: =SUM(J24:J25) -> 171492.347
A27: E | B27: Index Futures
B28: iCOMDEX Bullion | C28: 91.966 | D28: 7302.535505 | E28: Na | F28: Na | G28: 26.304 | H28: 2119.63451 | I28: 65.662 | J28: 5182.900995
B29: Total for E | D29: =SUM(D28) -> 7302.535505 | F29: =SUM(F28) -> 0 | H29: =SUM(H28) -> 2119.63451 | J29: =SUM(J28) -> 5182.900995
A30: Grand Total (A+B+C+D) | C30: =SUM(C8,C15,C22,C26) -> 231448.2019 | D30: =SUM(D8,D15,D22,D26,D29) -> 3928385.399 | E30: =E29+E26+E22+E15+E8 -> 106185.6855 | F30: =SUM(F8,F15,F22,F26,F29) -> 786095.1445 | G30: =G29+G26+G22+G15+G8 -> 26051.85209 | H30: =SUM(H8,H15,H22,H26,H29) -> 910620.6467 | I30: =I29+I26+I22+I15+I8 -> 28703.22021 | J30: =SUM(J8,J15,J22,J26,J29) -> 752803.5792
A31: Options
A32: E | B32: Bullion
A33: 1 | B33: Gold | C33: 0.1582122 | D33: 77963.96142 | E33: 0.040302 | F33: 15411.70924 | G33: 0.032699 | H33: 17197.72721 | I33: 0.0417612 | J33: 21495.01376
A34: 2 | B34: Silver | C34: 3.19326 | D34: 18968.50384 | E34: 0.35967 | F34: 1776.559718 | G34: 1.30866 | H34: 8796.728547 | I34: 0.32187 | J34: 2200.219531
B35: Total of E | C35: =SUM(C33:C34) -> 3.3514722 | D35: =SUM(D33:D34) -> 96932.46526 | E35: 0.399972 | F35: 17188.26896 | G35: 1.341359 | H35: 25994.45576 | I35: 0.3636312 | J35: 23695.23329
A36: F | B36: Metals
A37: 1 | B37: Copper | C37: 1.0875 | D37: 49.02279 | E37: 0.955 | F37: 42.8733625 | G37: 0.1325 | H37: 6.99518 | I37: 0.0725 | J37: 3.815915
A38: 2 | B38: Zinc | C38: 0.215 | D38: 3.678755 | E38: 5.03 | F38: 95.241665 | G38: 0.205 | H38: 3.50097 | I38: 0 | J38: 0
B39: Total of F | C39: =SUM(C37:C38) -> 1.3025 | D39: 52.701545 | E39: 5.985 | F39: 138.1150275 | G39: 0.3375 | H39: 10.49615 | I39: 0.0725 | J39: 3.815915
A40: G | B40: Energy
A41: 1 | B41: Crude Oil | C41: 9594.120194 | D41: 18790.40151 | E41: 4619.126943 | F41: 14131.88919 | G41: 1263.57437 | H41: 2993.287748 | I41: 1040.545718 | J41: 2328.163256
A42: Grand Total (E+F+G) | C42: =SUM(C35+C39+C41) -> 9598.774166 | D42: =SUM(D35+D39+D41) -> 115775.5683 | E42: =SUM(E35+E39+E41) -> 4625.511915 | F42: =SUM(F35+F39+F41) -> 31458.27317 | G42: 1265.253229 | H42: 28998.23966 | I42: 1040.981849 | J42: 26027.21246
A43: $ indicates as on September 30, 2020
A44: Note : 1. Natural Gas volume is in trillion BTU and is not included for computing the total volume in "000 tonnes".
A45: 2. Options includes both options on futures and goods
A46: 3.Conversion factors: Cotton (1 Bale=170 kg), Crude Oil (1 Tonne = 7.33Barrels)
A47: 4. Trading in iCOMDEX Bullion Futures was launched on 24th Aug, 2020
A48: 5. iCOMDEX Bullion volumes are in '000 lots and is not included for computing the total volume in "000 tonnes".
A49: Source : MCX

Sheet 72
A1: Table 72: Commodity-wise Turnover and Trading Volume at NCDEX
A2: Sr.No | B2: Name of Agri. Commodity | C2: 2020-21$ | E2: 2019-09-17 | G2: 2020-08-18 | I2: 2020-09-18
C3: Volume ('000 tonnes) | D3: Value (₹ crore) | E3: Volume ('000 tonnes) | F3: Value (₹ crore) | G3: Volume ('000 tonnes) | H3: Value ( crore) | I3: Volume ('000 tonnes) | J3: Value (₹ crore)
A4: Futures
A5: 1 | B5: AGRIDEX Index | C5: 4.882 | D5: 254.8846875 | E5: Na | F5: Na | G5: 0.438 | H5: 23.934025 | I5: 0.211 | J5: 11.9328625
A6: 2 | B6: Barley | C6: 27.39 | D6: 40.806595 | E6: 2.88 | F6: 5.40286 | G6: 3.48 | H6: 4.761475 | I6: 1.25 | J6: 1.72162
A7: 3 | B7: Castorseed | C7: 911.81 | D7: 3581.04157 | E7: 1327.365 | F7: 7513.06924 | G7: 138.89 | H7: 555.98272 | I7: 184.84 | J7: 763.22192
A8: 4 | B8: Chana | C8: 4237.3 | D8: 19259.06071 | E8: 1108.93 | F8: 4573.75892 | G8: 1045.41 | H8: 4654.10031 | I8: 1329.86 | J8: 6845.90603
A9: 5 | B9: Cotton seed oil cake | C9: 4672.57 | D9: 9176.07491 | E9: 709.26 | F9: 1722.541025 | G9: 633.34 | H9: 1184.22545 | I9: 456.44 | J9: 829.38786
A10: 6 | B10: Coriander | C10: 203.555 | D10: 1259.63397 | E10: 175.26 | F10: 1036.61682 | G10: 29.035 | H10: 194.69931 | I10: 28.5 | J10: 191.61006
A11: 7 | B11: Guar seed | C11: 3030.725 | D11: 11573.4851 | E11: 1333.98 | F11: 5473.03697 | G11: 829.52 | H11: 3393.95882 | I11: 631.825 | J11: 2524.562855
A12: 8 | B12: Guargum | C12: 1926.585 | D12: 11398.64625 | E12: 385.145 | F12: 3063.495555 | G12: 498.06 | H12: 3255.314695 | I12: 363.67 | J12: 2248.59443
A13: 9 | B13: Jeera | C13: 97.632 | D13: 1357.34055 | E13: 51.396 | F13: 867.78639 | G13: 14.169 | H13: 200.899125 | I13: 18.903 | J13: 262.84425
A14: 10 | B14: Kapas | C14: 143.466 | D14: 721.19199 | E14: 87.428 | F14: 467.38272 | G14: 32.464 | H14: 164.24787 | I14: 47.74 | J14: 245.91925
A15: 11 | B15: Maize | C15: 17.26 | D15: 22.088 | E15: 3.96 | F15: 8.29517 | G15: 2.44 | H15: 3.14822 | I15: 0.75 | J15: 1.00921
A16: 12 | B16: Moong | C16: 0.01 | D16: 0.0663 | E16: 1.55 | F16: 9.205635 | G16: 0.01 | H16: 0.0663 | I16: Na | J16: Na
A17: 13 | B17: Paddy Basmati Rice 1121 | C17: 0 | D17: 0 | E17: 0.15 | F17: 0.54627 | G17: Na | H17: Na | I17: Na | J17: Na
A18: 14 | B18: RM seed | C18: 3065.98 | D18: 15063.82457 | E18: 534.62 | F18: 2123.49451 | G18: 715.43 | H18: 3693.96071 | I18: 782.25 | J18: 4224.22859
A19: 15 | B19: Soy bean | C19: 3468.72 | D19: 13289.76686 | E19: 1269.23 | F19: 4787.41677 | G19: 491.165 | H19: 1885.62375 | I19: 866.585 | J19: 3389.934385
A20: 16 | B20: Refined Soy Oil | C20: 2899.405 | D20: 24509.60505 | E20: 350.15 | F20: 2655.5462 | G20: 496.37 | H20: 4348.969415 | I20: 728.675 | J20: 6635.01794
A21: 17 | B21: Turmeric | C21: 300.125 | D21: 1722.06973 | E21: 122.805 | F21: 789.40663 | G21: 61.19 | H21: 365.30894 | I21: 71.325 | J21: 421.93213
A22: 18 | B22: Wheat | C22: 0.01 | D22: 0.018 | E22: 9.48 | F22: 19.34753 | G22: 0 | H22: 0 | I22: 0 | J22: 0
A23: 19 | B23: Sesameseed | C23: 0.115 | D23: 1.0125 | E23: Na | F23: Na | G23: 0.06 | H23: 0.53155 | I23: 0.055 | J23: 0.48095
B24: Total | C24: =SUM(C5:C23) -> 25007.54 | D24: =SUM(D5:D23) -> 113230.6173 | E24: 7473.589 | F24: 35116.34922 | G24: 4991.471 | H24: 23929.73268 | I24: 5512.879 | J24: 28598.30434
A25: Options
A26: 1 | B26: Chana | C26: 0.18 | D26: 1.43 | E26: 0.06 | F26: 0.24 | G26: 0 | H26: 0 | I26: 0.17 | J26: 0.98
A27: 2 | B27: Guargum | C27: 0.7 | D27: 4.41006 | E27: Na | F27: Na | G27: 0 | H27: 0 | I27: 0 | J27: 0
A28: 3 | B28: Guarseed | C28: 0.01 | D28: 0.017325 | E28: 0.14 | F28: 0.59 | G28: 0 | H28: 0 | I28: 0 | J28: 0
A29: 4 | B29: Soybean | C29: 0.02 | D29: 0.09 | E29: Na | F29: Na | G29: 0 | H29: 0 | I29: 0.02 | J29: 0.09
A30: 5 | B30: Ref. Soy Oil | C30: 0 | D30: 0 | E30: Na | F30: Na | G30: 0 | H30: 0 | I30: 0 | J30: 0
A31: 6 | B31: RM Seed | C31: 0.02 | D31: 0.2 | E31: Na | F31: Na | G31: 0 | H31: 0 | I31: 0 | J31: 0
B32: Total | C32: =SUM(C26:C31) -> 0.93 | D32: =SUM(D26:D31) -> 6.147385 | E32: =SUM(E26:E31) -> 0.2 | F32: 0.83 | G32: 0 | H32: 0 | I32: 0.19 | J32: 1.07
A33: $ indicates as on September 30, 2020
A34: Turnover of options contract is notional value.
A35: Source: NCDEX

Sheet 73
A1: Table 73: Commodity-wise Turnover and Trading Volume at ICEX, BSE and NSE
A2: Sr.No | B2: Name of the Commodity | C2: 2020-21$ | E2: 2019-09-01 | G2: 2020-08-01 | I2: 2020-09-01
C3: Volume ('000 tonnes) | D3: Value (₹ crore) | E3: Volume ('000 tonnes) | F3: Value (₹ crore) | G3: Volume ('000 tonnes) | H3: Value (₹ crore) | I3: Volume ('000 tonnes) | J3: Value (₹ crore)
A4: I | B4: ICEX Futures | E4: ICEX
A5: A | B5: Gems & Stones
A6: 1 | B6: Diamond 1 CT | C6: 14568.38 | D6: 553.8142603 | E6: 22053.89 | F6: 788.24 | G6: 5 | H6: 0.0016375 | I6: 1.76 | J6: 0.1153
A7: 2 | B7: Diamond .5 CT | C7: 0.09 | D7: 0.001477 | E7: 4.6 | F7: 0.07 | G7: Na | H7: Na | I7: Na | J7: Na
A8: 3 | B8: Diamond .3 CT | C8: Na | D8: Na | E8: 0.02 | F8: 0 | G8: Na | H8: Na | I8: Na | J8: Na
B9: Total for A | D9: =SUM(D6:D8) -> 553.8157373 | F9: =SUM(F6:F8) -> 788.31 | H9: =SUM(H6:H8) -> 0.0016375 | J9: =SUM(J6:J8) -> 0.1153
A10: B | B10: Metal other than gems & stones
B11: Steel Long | C11: 251.66 | D11: 747.5187 | E11: 145.76 | F11: 415.29 | G11: 0 | H11: 0 | I11: 0 | J11: 0
B12: Total for B | C12: =SUM(C11) -> 251.66 | D12: 747.5187 | E12: 145.76 | F12: 415.29 | G12: =SUM(G11) -> 0 | H12: =SUM(H11) -> 0 | I12: 0 | J12: 0
A13: C | B13: Agricultural Commodities
A14: 1 | B14: Isabgulseed | C14: Na | D14: Na | E14: 5.4 | F14: 49.84 | G14: Na | H14: Na | I14: Na | J14: Na
A15: 2 | B15: Pepper Mini | C15: Na | D15: Na | E15: 5.68 | F15: 189.46 | G15: Na | H15: Na | I15: Na | J15: Na
A16: 3 | B16: Rubber | C16: 10.42 | D16: 122.585462 | E16: 11.59 | F16: 152.6 | G16: 0.17 | H16: 2.276715 | I16: 0.003 | J16: 0.041
A17: 4 | B17: Paddy Basmati | C17: 54.44 | D17: 185.04286 | E17: 4.98 | F17: 165.87 | G17: Na | H17: Na | I17: Na | J17: Na
B18: Total for C | C18: =SUM(C14:C17) -> 64.86 | D18: 307.628322 | E18: 27.65 | F18: 557.77 | G18: 0.17 | H18: 2.276715 | I18: =SUM(I12,I14:I17) -> 0.003 | J18: 0.041
B19: Total - ICEX Futures (A+B+C) | C19: =SUM(C12,C18) -> 316.52 | D19: =SUM(D9,D12,D18) -> 1608.962759 | E19: =SUM(E12,E18) -> 173.41 | F19: =SUM(F9,F12,F18) -> 1761.37 | G19: =SUM(G12,G18) -> 0.17 | H19: =SUM(H9,H12,H18) -> 2.2783525 | I19: =SUM(I12,I18) -> 0.003 | J19: =SUM(J9,J12,J18) -> 0.1563
A20: II | B20: NSE
B21: NSE Futures
A22: A | B22: Bullion
A23: 1 | B23: Gold | C23: 5e-06 | D23: 2.53859 | E23: 0.002152 | F23: 825.92509 | G23: 0 | H23: 0 | I23: 5e-06 | J23: 2.53859
A24: 2 | B24: Gold Mini | C24: 0.0011275 | D24: 543.55085 | E24: 0.0001142 | F24: 43.643349 | G24: 0.0001748 | H24: 92.012485 | I24: 0.0001235 | J24: 62.988017
A25: 3 | B25: Silver | C25: 0 | D25: 0 | E25: 0 | F25: 0 | G25: 0 | H25: 0 | I25: 0 | J25: 0
B26: Total for A | C26: =SUM(C23:C25) -> 0.0011325 | D26: 546.08944 | E26: 0.0022662 | F26: 869.568439 | G26: 0.0001748 | H26: 92.012485 | I26: 0.0001285 | J26: 65.526607
A27: B | B27: Energy
A28: 1 | B28: BR Crude | C28: 0 | D28: 0 | E28: 8.63574352e-05 | F28: 28.29207 | G28: 0 | H28: 0 | I28: 0 | J28: 0
A29: 2 | B29: BR Crude Mini | C29: 0 | D29: 0 | E29: 0.001139427012 | F29: 37.182254 | G29: 0 | H29: 0 | I29: 0 | J29: 0
B30: Total for B | C30: =SUM(C28:C29) -> 0 | D30: =SUM(D28:D29) -> 0 | E30: =SUM(E28:E29) -> 0.001225784447 | F30: 65.474324 | G30: 0 | H30: 0 | I30: 0 | J30: 0
B31: Total -NSE Futures (A+B) | C31: =SUM(C26,C30) -> 0.0011325 | D31: 546.08944 | E31: 0.003491984447 | F31: 935.042763 | G31: 0.0001748 | H31: 92.012485 | I31: 0.0001285 | J31: 65.526607
B32: NSE Options
A33: C | B33: Bullion
B34: Gold Mini | C34: 0.0238889 | D34: 12103.95783 | E34: 0 | F34: 0 | G34: 0.0044081 | H34: 2381.920097 | I34: 0.0033705 | J34: 1734.407553
B35: Total - NSE Options( C) | C35: =SUM(C34) -> 0.0238889 | D35: 12103.95783 | E35: 0 | F35: 0 | G35: 0.0044081 | H35: 2381.920097 | I35: =SUM(I34) -> 0.0033705 | J35: =SUM(J34) -> 1734.407553
A37: III
B38: BSE Futures
A39: A | B39: Bullion
A40: 1 | B40: Gold | C40: 3e-05 | D40: 12.07 | E40: 0.000877 | F40: 337.35385 | G40: 0 | H40: 0 | I40: 0 | J40: 0
A41: 2 | B41: Silver | C41: 0.0006 | D41: 2.91 | E41: 0.03861 | F41: 186.247335 | G41: 0 | H41: 0 | I41: 0 | J41: 0
A42: 3 | B42: Silver KG | C42: 0 | D42: 0 | E42: 0 | F42: 0 | G42: 0 | H42: 0 | I42: 0 | J42: 0
A43: 4 | B43: Silver M | C43: 0 | D43: 0 | E43: 0 | F43: 0 | G43: 0 | H43: 0 | I43: 0 | J43: 0
B44: Gold M | C44: 1.57e-05 | D44: 7.678501 | E44: 0 | F44: 0 | G44: 0 | H44: 0 | I44: 0 | J44: 0
B45: Total for A | C45: =SUM(C40:C44) -> 0.0006457 | D45: 22.658501 | E45: 0.039487 | F45: 523.601185 | G45: 0 | H45: 0 | I45: 0 | J45: 0
A46: B | B46: Metals other than Bullion
B47: Copper | C47: 0 | D47: 0 | E47: 0 | F47: 0 | G47: 0 | H47: 0 | I47: 0 | J47: 0
B48: Total for B | C48: =SUM(C47) -> 0 | D48: 0 | E48: 0 | F48: 0 | G48: 0 | H48: 0 | I48: 0 | J48: 0
A49: C | B49: Agricultural Cmmodities
A50: 1 | B50: Guar Gum | C50: 0 | D50: 0 | E50: 0 | F50: 0 | G50: 0 | H50: 0 | I50: 0 | J50: 0
A51: 2 | B51: Guar Seed | C51: 467.97 | D51: 1652.09934 | E51: 587.67 | F51: 2414.395535 | G51: 4.54 | H51: 18.589535 | I51: 0 | J51: 0
A52: 3 | B52: Cotton | C52: 0 | D52: 0 | E52: 0.02125 | F52: 0.24625 | G52: 0 | H52: 0 | I52: 0 | J52: 0
A53: 4 | B53: Turmeric | C53: 144.41 | D53: 810.52164 | E53: 46.41 | F53: 284.11754 | G53: 13.17 | H53: 78.15309 | I53: 19.23 | J53: 113.34481
B54: Cotton BSE | C54: 0 | D54: 0 | E54: 59.3436 | F54: 680.08952 | G54: 0 | H54: 0 | I54: 0 | J54: 0
A55: 5 | B55: Cotton29 | C55: 150.47975 | D55: 1423.749175 | E55: 0 | F55: 0 | G55: 0 | H55: 0 | I55: 0 | J55: 0
A56: 6 | B56: BSE Almond | C56: 5.913 | D56: 186.86921 | E56: 0 | F56: 0 | G56: 1.803 | H56: 57.03828 | I56: 2.119 | J56: 67.85706
B57: Total for C | C57: =SUM(C50:C56) -> 768.77275 | D57: 4073.239365 | E57: 693.44485 | F57: 3378.848845 | G57: 19.513 | H57: 153.780905 | I57: 21.349 | J57: 181.20187
A58: D | B58: Energy
B59: Brent Crude | C59: 0.354706685 | D59: 0.57201 | E59: 0 | F59: 0 | G59: 0 | H59: 0 | I59: 0 | J59: 0
A60: C. | B60: NSE
A61: 1 | B61: Gold | E61: Na | F61: Na | G61: Na | H61: Na
A62: 2 | B62: Silver | E62: Na | F62: Na | G62: Na | H62: Na
B63: Total (NSE) | D63: 696.19 | E63: Na | F63: Na | G63: Na | H63: Na | J63: 696.19
B64: Total for D | C64: =SUM(C59) -> 0.354706685 | D64: 0.57201 | E64: 0 | F64: 0 | G64: 0 | H64: 0 | I64: 0 | J64: 0
B65: Total- BSE Futures (A+B+C+D) | C65: =SUM(C45,C48,C57,C64) -> 769.1281024 | D65: 4096.469876 | E65: 693.484337 | F65: 3902.45003 | G65: 19.513 | H65: 153.780905 | I65: 21.349 | J65: 181.20187
B66: BSE Options
A67: E | B67: Bullion
B68: Gold | C68: 0.050018 | D68: 25680.77571 | E68: 0 | F68: 0 | G68: 0.005389 | H68: 2823.71 | I68: 0.044629 | J68: 22857.06572
B69: Silver | C69: 0.14349 | D69: 931.5067325 | E69: 0 | F69: 0 | G69: 0.00648 | H69: 42.86 | I69: 0.13701 | J69: 888.6467325
B70: Silver KG | C70: 0.059368 | D70: 336.0220853 | E70: 0 | F70: 0 | G70: 0.013856 | H70: 90.91 | I70: 0.009506 | J70: 60.65208525
B71: Gold M | C71: 0.4098323 | D71: 202113.7255 | E71: 0 | F71: 0 | G71: 0.1361448 | H71: 68713.37 | I71: 0.0673178 | J71: 34525.05268
B72: Total - BSE Options | C72: =SUM(C68:C71) -> 0.6627083 | D72: 229062.0301 | E72: 0 | F72: 0 | G72: 0.1618698 | H72: 71670.85 | I72: 0.2584628 | J72: 58331.41722
A73: $ indicates as on September 30, 2020
A74: Note: | B74: 1 Volume for Diamond 1 CT, 0.5CT & 0.3CT are in cents and are not added to the total volume as they cannot be converted into "000 tonnes".
B75: 2 Conversion factors: Brent Crude Oil (1 Tonne = 7.33 Barrels)
A76: Source : ICEX, BSE and NSE

Sheet 74
A1: Table 74: Macro Economic Indicators
A2: I. GDP at Current prices for 2019-20 (` crore)# | F2: 2,03,39,849
A3: II. Gross Saving as a per cent of Gross national Disposable Income at current market prices in 2018-19! | F3: 29.7
A4: III. Gross Fixed Capital Formation as a per cent of GDP at current market prices in 2019-20# | F4: 29.8
A5: IV. Monetary and Banking Indicators | B5: 2020-05-01 | C5: 2020-06-01 | D5: 2020-07-01 | E5: 2020-08-01 | F5: 2020-09-01
A6: Cash Reserve Ratio (per cent) | B6: 3 | C6: 3 | D6: 3 | E6: 3 | F6: 3
A7: Repo Rate (per cent) | B7: 4 | C7: 4 | D7: 4 | E7: 4 | F7: 4
A8: Money Supply (M3) (₹ billion) | B8: 172315.82 | C8: 173153.64 | D8: 174906.73 | E8: 176478.74 | F8: 177410.65
A9: Aggregate Deposit (₹ billion) | B9: 138305.25 | C9: 138671.14 | D9: 140204.87 | E9: 141767.65 | F9: 142636.74
A10: Bank Credit (₹ billion) | B10: 102231.5 | C10: 102450.3 | D10: 102194.62 | E10: 102117.3 | F10: 102718.57
A11: V. Interest Rate
A12: Call Money Rate (Weighted Average) | B12: 3.62 | C12: 3.54 | D12: 3.46 | E12: 3.43 | F12: 3.41
A13: 91-Day-Treasury Bill (Primary Yield) | B13: 3.19 | C13: 3.19 | D13: 3.3 | E13: 3.24 | F13: 3.36
A14: Base rate (per cent) | B14: 8.15/9.40 | C14: 7.40/9.00 | D14: 7.40/9.00 | E14: 7.40/9.00 | F14: 7.40/9.00
A15: Term Deposit Rate > 1 year (Maximum) | B15: 5.10/5.90 | C15: 5.10/5.65 | D15: 5.10/5.50 | E15: 5.00/5.50 | F15: 4.90/5.50
A16: VI. Capital Market Indicators (₹crore)
A17: Equity Cash Turnover (BSE+NSE) | B17: 1065475.47 | C17: 1460873.424 | D17: 1428613.725 | E17: 1375636.495 | F17: 1293354.004
A18: Market Cap-BSE | B18: 12706528.94 | C18: 13915689.83 | D18: 14739115.83 | E18: 15376302.71 | F18: 15524267.37
A19: Market Cap-NSE | B19: 12516959.59 | C19: 13804601.48 | D19: 14629658.61 | E19: 15234206.7 | F19: 15304722.35
A20: Net FPI Investment in Equity | B20: 14569 | C20: 21832 | D20: 7563 | E20: -156 | F20: 11327
A21: VII. Exchange Rate and Reserves
A22: Forex Reserves (USD million) | B22: 493480 | C22: 506838 | D22: 534568 | E22: 542013 | F22: 545638
A23: Re/ Dollar | B23: 75.64 | C23: 75.527 | D23: 74.77 | E23: 73.35 | F23: 73.73
A24: Re/Euro | B24: 83.91 | C24: 84.6658 | D24: 88.87 | E24: 87.07 | F24: 86.04
A25: Forward Premia of USD 6-month | B25: 3.73 | C25: 3.82 | D25: 3.8 | E25: 4.01 | F25: 3.91
A26: VIII. Public Borrowing and Inflation
A27: Govt. Market Borrowing-Gross (₹ billion) | B27: 1,780^ | C27: 3,140^ | D27: 4,820^ | E27: 6,460^ | F27: 7660^
A28: Wholesale Price Index (2011-12=100) | B28: 117.5 | C28: 119.3 | D28: 120.6 | E28: 121.7 | F28: 122.9
A29: Consumer Price Index (2012 =100) | B29: 150.9 | C29: 151.8 | D29: 154.2 | E29: 155.4 | F29: 157.6
A30: IX. Index of Industrial Production (Base year 2011-12 = 100)
A31: General | B31: 89.5 | C31: 108.9 | D31: 117.6 | E31: 116.1 | F31: NA
A32: Mining | B32: 87.5 | C32: 85.4 | D32: 87.4 | E32: 83 | F32: NA
A33: Manufacturing | B33: 83.6 | C33: 108.4 | D33: 118.2 | E33: 117.4 | F33: NA
A34: Electricity | B34: 150.6 | C34: 156.2 | D34: 166.3 | E34: 162.7 | F34: NA
A35: X. External Sector Indicators (USD million)
A36: Exports | B36: 19054.48 | C36: 21907.55 | D36: 23642.85 | E36: 22700 | F36: 27580
A37: Imports | B37: 22201.68 | C37: 21114.38 | D37: 28469.11 | E37: 29470 | F37: 30310
A38: Trade Balance | B38: -3147.2 | C38: 793.17 | D38: -4826.26 | E38: -6770 | F38: =F36-F37 -> -2730
A39: Notes:
A40: # Provisional Extimates as per MOSPI press release dated 31.05.2020
A41: ^ cumulative figure value of the respective month for 2020-21
A42: Aggregate Deposit, Bank Credit, Money Supply (M3) and Forex Reserve are updated as per available information on WSS dated Aug 07 2020
A43: Data for CPI, WPI, IIP and External sector have been complied based on available information.
A44: @ All Commodities WPI could not be computed for April-2020 due to non availability of manufactured product group index
A45: Source : RBI, FBIL, MOSPI, Ministry of Commerce & Industry, Office of the Economic Adviser.
